﻿Body Name,Body,Date,Department,Beneficiary,Summary of Purpose (SeRCOP),Amount,Merchant Code,Transaction Number
Sandwell Metropolitan Borough Council,http://www.sandwell.gov.uk/info/200202/performance_and_spending/3233/government_procurement_cards,04-Oct-2021,Total Housing Revenue Account,AMZNMKTPLACE AMAZON.CO,Total Housing Revenue Account,79.33,MISCELLANEOUS AND SPECIALTY RETAIL STORES,2021-22Q3_PC0001
Sandwell Metropolitan Borough Council,http://www.sandwell.gov.uk/info/200202/performance_and_spending/3233/government_procurement_cards,04-Oct-2021,Total Borough Economy,AMZNMktplace,Neighbourhoods,79.42,MISCELLANEOUS AND SPECIALTY RETAIL STORES,2021-22Q3_PC0002
Sandwell Metropolitan Borough Council,http://www.sandwell.gov.uk/info/200202/performance_and_spending/3233/government_procurement_cards,04-Oct-2021,Total Borough Economy,FACEBK T4FXY77KY2,Neighbourhoods,18,ADVERTISING SERVICES,2021-22Q3_PC0003
Sandwell Metropolitan Borough Council,http://www.sandwell.gov.uk/info/200202/performance_and_spending/3233/government_procurement_cards,04-Oct-2021,Total Borough Economy,PODBEAN.COM,Neighbourhoods,29.89,COMPUTER SOFTWARE STORES,2021-22Q3_PC0004
Sandwell Metropolitan Borough Council,http://www.sandwell.gov.uk/info/200202/performance_and_spending/3233/government_procurement_cards,04-Oct-2021,Total Borough Economy,ARGOS LTD,Neighbourhoods,10,DISCOUNT STORES,2021-22Q3_PC0005
Sandwell Metropolitan Borough Council,http://www.sandwell.gov.uk/info/200202/performance_and_spending/3233/government_procurement_cards,04-Oct-2021,Total Borough Economy,SAINSBURYS S MKTS,Neighbourhoods,200.77,"GROCERY STORES, SUPERMARKETS",2021-22Q3_PC0006
Sandwell Metropolitan Borough Council,http://www.sandwell.gov.uk/info/200202/performance_and_spending/3233/government_procurement_cards,04-Oct-2021,Total Borough Economy,GLOBAL WINES (BHAM) LT,Neighbourhoods,3.69,"PACKAGE STORES, BEER, WINE, LIQUOR",2021-22Q3_PC0007
Sandwell Metropolitan Borough Council,http://www.sandwell.gov.uk/info/200202/performance_and_spending/3233/government_procurement_cards,04-Oct-2021,Total Borough Economy,MAJESTIC WINE,Neighbourhoods,30.96,"PACKAGE STORES, BEER, WINE, LIQUOR",2021-22Q3_PC0008
Sandwell Metropolitan Borough Council,http://www.sandwell.gov.uk/info/200202/performance_and_spending/3233/government_procurement_cards,04-Oct-2021,Total Borough Economy,GLOBAL WINES (BHAM) LT,Neighbourhoods,38.57,"PACKAGE STORES, BEER, WINE, LIQUOR",2021-22Q3_PC0009
Sandwell Metropolitan Borough Council,http://www.sandwell.gov.uk/info/200202/performance_and_spending/3233/government_procurement_cards,04-Oct-2021,Total Borough Economy,GLOBAL FOODS (BHAM) LT,Neighbourhoods,10.05,"PACKAGE STORES, BEER, WINE, LIQUOR",2021-22Q3_PC0010
Sandwell Metropolitan Borough Council,http://www.sandwell.gov.uk/info/200202/performance_and_spending/3233/government_procurement_cards,04-Oct-2021,Housing & Assets Total,B & Q 1276,Neighbourhoods,158,HOME SUPPLY WAREHOUSE STORES,2021-22Q3_PC0011
Sandwell Metropolitan Borough Council,http://www.sandwell.gov.uk/info/200202/performance_and_spending/3233/government_procurement_cards,04-Oct-2021,Total Public Health,Domino s Pizza,Public Health,43.97,"EATING PLACES, RESTAURANTS",2021-22Q3_PC0012
Sandwell Metropolitan Borough Council,http://www.sandwell.gov.uk/info/200202/performance_and_spending/3233/government_procurement_cards,04-Oct-2021,Total Business Strategy & Change,AMZNMKTPLACE AMAZON.CO,Assistant Chief Executive (Excl SIU),29.99,MISCELLANEOUS AND SPECIALTY RETAIL STORES,2021-22Q3_PC0013
Sandwell Metropolitan Borough Council,http://www.sandwell.gov.uk/info/200202/performance_and_spending/3233/government_procurement_cards,04-Oct-2021,Total Borough Economy,AMZNMktplace,Neighbourhoods,14.91,MISCELLANEOUS AND SPECIALTY RETAIL STORES,2021-22Q3_PC0014
Sandwell Metropolitan Borough Council,http://www.sandwell.gov.uk/info/200202/performance_and_spending/3233/government_procurement_cards,04-Oct-2021,Total Borough Economy,Amazon.co.uk 9D6NA8EA5,Neighbourhoods,7.98,DIRECT MARKETING-OTHER DIRECT MARKETERS/NOT ELSEW.,2021-22Q3_PC0015
Sandwell Metropolitan Borough Council,http://www.sandwell.gov.uk/info/200202/performance_and_spending/3233/government_procurement_cards,04-Oct-2021,Total Borough Economy,AMZ Amazon.co.uk,Neighbourhoods,-13.38,DIRECT MARKETING-OTHER DIRECT MARKETERS/NOT ELSEW.,2021-22Q3_PC0016
Sandwell Metropolitan Borough Council,http://www.sandwell.gov.uk/info/200202/performance_and_spending/3233/government_procurement_cards,04-Oct-2021,Regeneration & Growth,Amazon.co.uk 4D5DD5CN5,Regeneration And The Economy,93.5,DIRECT MARKETING-OTHER DIRECT MARKETERS/NOT ELSEW.,2021-22Q3_PC0017
Sandwell Metropolitan Borough Council,http://www.sandwell.gov.uk/info/200202/performance_and_spending/3233/government_procurement_cards,04-Oct-2021,Regeneration & Growth,RTPI,Regeneration And The Economy,298.8,"CLUBS-CNTRY,MBRSHIP(ATHLET,REC,SPRTS,PRIVATE GOLF",2021-22Q3_PC0018
Sandwell Metropolitan Borough Council,http://www.sandwell.gov.uk/info/200202/performance_and_spending/3233/government_procurement_cards,04-Oct-2021,Total ASCHWB,AMZNMktplace,Total Adult Social Care,6.95,MISCELLANEOUS AND SPECIALTY RETAIL STORES,2021-22Q3_PC0019
Sandwell Metropolitan Borough Council,http://www.sandwell.gov.uk/info/200202/performance_and_spending/3233/government_procurement_cards,04-Oct-2021,Total ASCHWB,AMZNMktplace,Total Adult Social Care,3.99,MISCELLANEOUS AND SPECIALTY RETAIL STORES,2021-22Q3_PC0020
Sandwell Metropolitan Borough Council,http://www.sandwell.gov.uk/info/200202/performance_and_spending/3233/government_procurement_cards,04-Oct-2021,Total ASCHWB,AMZNMktplace,Total Adult Social Care,245,MISCELLANEOUS AND SPECIALTY RETAIL STORES,2021-22Q3_PC0021
Sandwell Metropolitan Borough Council,http://www.sandwell.gov.uk/info/200202/performance_and_spending/3233/government_procurement_cards,04-Oct-2021,Total ASCHWB,AMZNMktplace,Total Adult Social Care,37.38,MISCELLANEOUS AND SPECIALTY RETAIL STORES,2021-22Q3_PC0022
Sandwell Metropolitan Borough Council,http://www.sandwell.gov.uk/info/200202/performance_and_spending/3233/government_procurement_cards,04-Oct-2021,Total ASCHWB,AMZNMktplace,Total Adult Social Care,11.48,MISCELLANEOUS AND SPECIALTY RETAIL STORES,2021-22Q3_PC0023
Sandwell Metropolitan Borough Council,http://www.sandwell.gov.uk/info/200202/performance_and_spending/3233/government_procurement_cards,04-Oct-2021,Childrens Services,AMZNMktplace,Childrens Services,68.19,MISCELLANEOUS AND SPECIALTY RETAIL STORES,2021-22Q3_PC0024
Sandwell Metropolitan Borough Council,http://www.sandwell.gov.uk/info/200202/performance_and_spending/3233/government_procurement_cards,04-Oct-2021,Childrens Services,eBay O 27-07604-51671,Childrens Services,-55,DEPARTMENT STORES,2021-22Q3_PC0025
Sandwell Metropolitan Borough Council,http://www.sandwell.gov.uk/info/200202/performance_and_spending/3233/government_procurement_cards,04-Oct-2021,Childrens Services,TESCO STORES 2770,Childrens Services,14.08,"GROCERY STORES, SUPERMARKETS",2021-22Q3_PC0026
Sandwell Metropolitan Borough Council,http://www.sandwell.gov.uk/info/200202/performance_and_spending/3233/government_procurement_cards,04-Oct-2021,Childrens Services,FARMFOODS 621,Childrens Services,19.17,"GROCERY STORES, SUPERMARKETS",2021-22Q3_PC0027
Sandwell Metropolitan Borough Council,http://www.sandwell.gov.uk/info/200202/performance_and_spending/3233/government_procurement_cards,04-Oct-2021,Childrens Services,ALDI 32 772,Childrens Services,13.15,"GROCERY STORES, SUPERMARKETS",2021-22Q3_PC0028
Sandwell Metropolitan Borough Council,http://www.sandwell.gov.uk/info/200202/performance_and_spending/3233/government_procurement_cards,04-Oct-2021,Housing & Assets Total,SCREWFIX DIR LTD,Neighbourhoods,10,"BUILDING MATERIALS, LUMBER STORES",2021-22Q3_PC0029
Sandwell Metropolitan Borough Council,http://www.sandwell.gov.uk/info/200202/performance_and_spending/3233/government_procurement_cards,04-Oct-2021,Housing & Assets Total,TRAVELODGE,Neighbourhoods,228.7,TRAVELODGE,2021-22Q3_PC0030
Sandwell Metropolitan Borough Council,http://www.sandwell.gov.uk/info/200202/performance_and_spending/3233/government_procurement_cards,04-Oct-2021,Housing & Assets Total,Amazon Prime UP0XM7W15,Neighbourhoods,7.99,DIRECT MARKETING-CONTINUITY/SUBSCRIPTION MERCHANTS,2021-22Q3_PC0031
Sandwell Metropolitan Borough Council,http://www.sandwell.gov.uk/info/200202/performance_and_spending/3233/government_procurement_cards,04-Oct-2021,Total Business Strategy & Change,Google Cloud EMEA Limi,Assistant Chief Executive (Excl SIU),165.92,COMPUTER NETWORK/INFORMATION SERVICES,2021-22Q3_PC0032
Sandwell Metropolitan Borough Council,http://www.sandwell.gov.uk/info/200202/performance_and_spending/3233/government_procurement_cards,04-Oct-2021,Corporate Management,Amazon.co.uk 4Q2UR2SG5,Corporate Management,21.26,DIRECT MARKETING-OTHER DIRECT MARKETERS/NOT ELSEW.,2021-22Q3_PC0033
Sandwell Metropolitan Borough Council,http://www.sandwell.gov.uk/info/200202/performance_and_spending/3233/government_procurement_cards,05-Oct-2021,Total Housing Revenue Account,TRAVIS PERKINS,Total Housing Revenue Account,30.49,"BUILDING MATERIALS, LUMBER STORES",2021-22Q3_PC0034
Sandwell Metropolitan Borough Council,http://www.sandwell.gov.uk/info/200202/performance_and_spending/3233/government_procurement_cards,05-Oct-2021,Total Housing Revenue Account,AMZNMktplace,Total Housing Revenue Account,43.89,MISCELLANEOUS AND SPECIALTY RETAIL STORES,2021-22Q3_PC0035
Sandwell Metropolitan Borough Council,http://www.sandwell.gov.uk/info/200202/performance_and_spending/3233/government_procurement_cards,05-Oct-2021,Housing & Assets Total,FACULTYPARTYWALLSURV,Total Adult Social Care,595,"ORGANIZATIONS, MEMBERSHIP-NOT ELSEWHERE CLASSIFIED",2021-22Q3_PC0036
Sandwell Metropolitan Borough Council,http://www.sandwell.gov.uk/info/200202/performance_and_spending/3233/government_procurement_cards,05-Oct-2021,Total Borough Economy,AMZNMktplace,Neighbourhoods,55.99,MISCELLANEOUS AND SPECIALTY RETAIL STORES,2021-22Q3_PC0037
Sandwell Metropolitan Borough Council,http://www.sandwell.gov.uk/info/200202/performance_and_spending/3233/government_procurement_cards,05-Oct-2021,FINANCE (Inc SIU),SMARTY CO UK,Assistant Chief Executive (Excl SIU),10,TELECOM INCL PREPAID/RECURRING PHONE SVCS,2021-22Q3_PC0038
Sandwell Metropolitan Borough Council,http://www.sandwell.gov.uk/info/200202/performance_and_spending/3233/government_procurement_cards,05-Oct-2021,Total Borough Economy,AMZNMKTPLACE AMAZON.CO,Neighbourhoods,29.91,MISCELLANEOUS AND SPECIALTY RETAIL STORES,2021-22Q3_PC0039
Sandwell Metropolitan Borough Council,http://www.sandwell.gov.uk/info/200202/performance_and_spending/3233/government_procurement_cards,05-Oct-2021,Total Borough Economy,AMZNMKTPLACE AMAZON.CO,Neighbourhoods,29.91,MISCELLANEOUS AND SPECIALTY RETAIL STORES,2021-22Q3_PC0040
Sandwell Metropolitan Borough Council,http://www.sandwell.gov.uk/info/200202/performance_and_spending/3233/government_procurement_cards,05-Oct-2021,Total Borough Economy,Amazon.co.uk YW8V37ZQ5,Regeneration And The Economy,58.5,DIRECT MARKETING-OTHER DIRECT MARKETERS/NOT ELSEW.,2021-22Q3_PC0041
Sandwell Metropolitan Borough Council,http://www.sandwell.gov.uk/info/200202/performance_and_spending/3233/government_procurement_cards,05-Oct-2021,Regeneration & Growth,Amazon.co.uk 6M0F05XF5,Regeneration And The Economy,165,DIRECT MARKETING-OTHER DIRECT MARKETERS/NOT ELSEW.,2021-22Q3_PC0042
Sandwell Metropolitan Borough Council,http://www.sandwell.gov.uk/info/200202/performance_and_spending/3233/government_procurement_cards,05-Oct-2021,Total ASCHWB,WWW.JUSTGLOVES.CO.UK,Total Adult Social Care,107.4,MISCELLANEOUS AND SPECIALTY RETAIL STORES,2021-22Q3_PC0043
Sandwell Metropolitan Borough Council,http://www.sandwell.gov.uk/info/200202/performance_and_spending/3233/government_procurement_cards,05-Oct-2021,Childrens Services,ASDA GROCERIES ONLINE,Childrens Services,-37.8,"GROCERY STORES, SUPERMARKETS",2021-22Q3_PC0044
Sandwell Metropolitan Borough Council,http://www.sandwell.gov.uk/info/200202/performance_and_spending/3233/government_procurement_cards,05-Oct-2021,Childrens Services,ASDA GROCERIES ONLINE,Childrens Services,199.79,"GROCERY STORES, SUPERMARKETS",2021-22Q3_PC0045
Sandwell Metropolitan Borough Council,http://www.sandwell.gov.uk/info/200202/performance_and_spending/3233/government_procurement_cards,05-Oct-2021,Housing & Assets Total,TRAVELODGE,Neighbourhoods,46.9,TRAVELODGE,2021-22Q3_PC0046
Sandwell Metropolitan Borough Council,http://www.sandwell.gov.uk/info/200202/performance_and_spending/3233/government_procurement_cards,05-Oct-2021,Housing & Assets Total,TRAVELODGE,Neighbourhoods,50.98,TRAVELODGE,2021-22Q3_PC0047
Sandwell Metropolitan Borough Council,http://www.sandwell.gov.uk/info/200202/performance_and_spending/3233/government_procurement_cards,05-Oct-2021,Total Business Strategy & Change,Amazon Prime,Assistant Chief Executive (Excl SIU),-7.99,DIRECT MARKETING-CONTINUITY/SUBSCRIPTION MERCHANTS,2021-22Q3_PC0048
Sandwell Metropolitan Borough Council,http://www.sandwell.gov.uk/info/200202/performance_and_spending/3233/government_procurement_cards,05-Oct-2021,Total Business Strategy & Change,Amazon Prime 6Y2AH5E25,Assistant Chief Executive (Excl SIU),7.99,DIRECT MARKETING-CONTINUITY/SUBSCRIPTION MERCHANTS,2021-22Q3_PC0049
Sandwell Metropolitan Borough Council,http://www.sandwell.gov.uk/info/200202/performance_and_spending/3233/government_procurement_cards,06-Oct-2021,Total Borough Economy,WWW.HSS.COM,Neighbourhoods,195.6,"EQUIPMENT RENTAL&LEASING SVS, FURNTURE/TOOL RENTAL",2021-22Q3_PC0050
Sandwell Metropolitan Borough Council,http://www.sandwell.gov.uk/info/200202/performance_and_spending/3233/government_procurement_cards,06-Oct-2021,Total Borough Economy,WWW.HSS.COM,Neighbourhoods,195.6,"EQUIPMENT RENTAL&LEASING SVS, FURNTURE/TOOL RENTAL",2021-22Q3_PC0051
Sandwell Metropolitan Borough Council,http://www.sandwell.gov.uk/info/200202/performance_and_spending/3233/government_procurement_cards,06-Oct-2021,Housing & Assets Total,BESTWAY WHOLESALE,Neighbourhoods,77.8,DAIRY PRODUCTS STORES,2021-22Q3_PC0052
Sandwell Metropolitan Borough Council,http://www.sandwell.gov.uk/info/200202/performance_and_spending/3233/government_procurement_cards,06-Oct-2021,Housing & Assets Total,AMZNMktplace,Total Adult Social Care,127.5,MISCELLANEOUS AND SPECIALTY RETAIL STORES,2021-22Q3_PC0053
Sandwell Metropolitan Borough Council,http://www.sandwell.gov.uk/info/200202/performance_and_spending/3233/government_procurement_cards,06-Oct-2021,Total Borough Economy,AMZNMKTPLACE AMAZON.CO,Neighbourhoods,41.45,MISCELLANEOUS AND SPECIALTY RETAIL STORES,2021-22Q3_PC0054
Sandwell Metropolitan Borough Council,http://www.sandwell.gov.uk/info/200202/performance_and_spending/3233/government_procurement_cards,06-Oct-2021,Total Borough Economy,PAYPAL  AROMAPRIME,Neighbourhoods,154.83,CHEMICALS/ALLIED PRODUCTS NOT ELSEWHERE CLASSIFIED,2021-22Q3_PC0055
Sandwell Metropolitan Borough Council,http://www.sandwell.gov.uk/info/200202/performance_and_spending/3233/government_procurement_cards,06-Oct-2021,Housing & Assets Total,AMZNMktplace,Neighbourhoods,161.34,MISCELLANEOUS AND SPECIALTY RETAIL STORES,2021-22Q3_PC0056
Sandwell Metropolitan Borough Council,http://www.sandwell.gov.uk/info/200202/performance_and_spending/3233/government_procurement_cards,06-Oct-2021,Housing & Assets Total,Amazon.co.uk T57G96YQ5,Neighbourhoods,112.39,DIRECT MARKETING-OTHER DIRECT MARKETERS/NOT ELSEW.,2021-22Q3_PC0057
Sandwell Metropolitan Borough Council,http://www.sandwell.gov.uk/info/200202/performance_and_spending/3233/government_procurement_cards,06-Oct-2021,Housing & Assets Total,AMZNMKTPLACE AMAZON.CO,Neighbourhoods,35.2,MISCELLANEOUS AND SPECIALTY RETAIL STORES,2021-22Q3_PC0058
Sandwell Metropolitan Borough Council,http://www.sandwell.gov.uk/info/200202/performance_and_spending/3233/government_procurement_cards,06-Oct-2021,Housing & Assets Total,Amazon.co.uk NN8RM7LL5,Neighbourhoods,58.63,DIRECT MARKETING-OTHER DIRECT MARKETERS/NOT ELSEW.,2021-22Q3_PC0059
Sandwell Metropolitan Borough Council,http://www.sandwell.gov.uk/info/200202/performance_and_spending/3233/government_procurement_cards,06-Oct-2021,Total Public Health,JONATHANS QUALITY CORP,Public Health,65.7,"EATING PLACES, RESTAURANTS",2021-22Q3_PC0060
Sandwell Metropolitan Borough Council,http://www.sandwell.gov.uk/info/200202/performance_and_spending/3233/government_procurement_cards,06-Oct-2021,Total Business Strategy & Change,AMZNMKTPLACE AMAZON.CO,Assistant Chief Executive (Excl SIU),26.98,MISCELLANEOUS AND SPECIALTY RETAIL STORES,2021-22Q3_PC0061
Sandwell Metropolitan Borough Council,http://www.sandwell.gov.uk/info/200202/performance_and_spending/3233/government_procurement_cards,06-Oct-2021,Total Borough Economy,EB  BEHIND CLOSED DOOR,Neighbourhoods,249,BUSINESS SERVICES-NOT ELSEWHERE CLASSIFIED,2021-22Q3_PC0062
Sandwell Metropolitan Borough Council,http://www.sandwell.gov.uk/info/200202/performance_and_spending/3233/government_procurement_cards,06-Oct-2021,Regeneration & Growth,SMS CONNECTIONS,Regeneration And The Economy,9420.7,"FUEL DEALERS-COAL, FUEL OIL, LIQ PETROLEUM, WOOD",2021-22Q3_PC0063
Sandwell Metropolitan Borough Council,http://www.sandwell.gov.uk/info/200202/performance_and_spending/3233/government_procurement_cards,06-Oct-2021,Total ASCHWB,Amazon.co.uk SJ7VK5PZ5,Total Adult Social Care,22.27,DIRECT MARKETING-OTHER DIRECT MARKETERS/NOT ELSEW.,2021-22Q3_PC0064
Sandwell Metropolitan Borough Council,http://www.sandwell.gov.uk/info/200202/performance_and_spending/3233/government_procurement_cards,06-Oct-2021,Total ASCHWB,Amazon.co.uk DE4CR0RO5,Total Adult Social Care,219,DIRECT MARKETING-OTHER DIRECT MARKETERS/NOT ELSEW.,2021-22Q3_PC0065
Sandwell Metropolitan Borough Council,http://www.sandwell.gov.uk/info/200202/performance_and_spending/3233/government_procurement_cards,06-Oct-2021,Total ASCHWB,Amazon.co.uk LH5WF5XE5,Total Adult Social Care,14.44,DIRECT MARKETING-OTHER DIRECT MARKETERS/NOT ELSEW.,2021-22Q3_PC0066
Sandwell Metropolitan Borough Council,http://www.sandwell.gov.uk/info/200202/performance_and_spending/3233/government_procurement_cards,06-Oct-2021,Total ASCHWB,Amazon.co.uk LH5WF5XE5,Total Adult Social Care,88.59,DIRECT MARKETING-OTHER DIRECT MARKETERS/NOT ELSEW.,2021-22Q3_PC0067
Sandwell Metropolitan Borough Council,http://www.sandwell.gov.uk/info/200202/performance_and_spending/3233/government_procurement_cards,06-Oct-2021,Total ASCHWB,Amazon.co.uk LH5WF5XE5,Total Adult Social Care,25.99,DIRECT MARKETING-OTHER DIRECT MARKETERS/NOT ELSEW.,2021-22Q3_PC0068
Sandwell Metropolitan Borough Council,http://www.sandwell.gov.uk/info/200202/performance_and_spending/3233/government_procurement_cards,06-Oct-2021,Total ASCHWB,Amazon.co.uk LH5WF5XE5,Total Adult Social Care,51.98,DIRECT MARKETING-OTHER DIRECT MARKETERS/NOT ELSEW.,2021-22Q3_PC0069
Sandwell Metropolitan Borough Council,http://www.sandwell.gov.uk/info/200202/performance_and_spending/3233/government_procurement_cards,06-Oct-2021,Total ASCHWB,Amazon.co.uk LH5WF5XE5,Total Adult Social Care,12.25,DIRECT MARKETING-OTHER DIRECT MARKETERS/NOT ELSEW.,2021-22Q3_PC0070
Sandwell Metropolitan Borough Council,http://www.sandwell.gov.uk/info/200202/performance_and_spending/3233/government_procurement_cards,06-Oct-2021,Housing & Assets Total,AMZNMKTPLACE AMAZON.CO,Neighbourhoods,2.44,MISCELLANEOUS AND SPECIALTY RETAIL STORES,2021-22Q3_PC0071
Sandwell Metropolitan Borough Council,http://www.sandwell.gov.uk/info/200202/performance_and_spending/3233/government_procurement_cards,06-Oct-2021,Childrens Services,POST OFFICE COUNTER,Childrens Services,40.8,POSTAL SERVICES-GOVERNMENT ONLY,2021-22Q3_PC0072
Sandwell Metropolitan Borough Council,http://www.sandwell.gov.uk/info/200202/performance_and_spending/3233/government_procurement_cards,06-Oct-2021,Childrens Services,TIMPSON LTD,Childrens Services,22,MISCELLANEOUS AND SPECIALTY RETAIL STORES,2021-22Q3_PC0073
Sandwell Metropolitan Borough Council,http://www.sandwell.gov.uk/info/200202/performance_and_spending/3233/government_procurement_cards,06-Oct-2021,Housing & Assets Total,TRAVELODGE,Neighbourhoods,140.73,TRAVELODGE,2021-22Q3_PC0074
Sandwell Metropolitan Borough Council,http://www.sandwell.gov.uk/info/200202/performance_and_spending/3233/government_procurement_cards,06-Oct-2021,Housing & Assets Total,ASDA SUPERSTORE,Neighbourhoods,31.97,"GROCERY STORES, SUPERMARKETS",2021-22Q3_PC0075
Sandwell Metropolitan Borough Council,http://www.sandwell.gov.uk/info/200202/performance_and_spending/3233/government_procurement_cards,06-Oct-2021,Housing & Assets Total,WWW.SANDWELL.GOV.UK,Neighbourhoods,11,GOVERNMENT SERVICES-NOT ELSEWHERE CLASSIFIED,2021-22Q3_PC0076
Sandwell Metropolitan Borough Council,http://www.sandwell.gov.uk/info/200202/performance_and_spending/3233/government_procurement_cards,07-Oct-2021,Regeneration And The Economy Capital,Decathlon UK Limited,#N/A,19.99,SPORTING GOODS STORES,2021-22Q3_PC0077
Sandwell Metropolitan Borough Council,http://www.sandwell.gov.uk/info/200202/performance_and_spending/3233/government_procurement_cards,07-Oct-2021,Total Housing Revenue Account,WWW.KANE.CO.UK,Total Housing Revenue Account,928.2,HARDWARE EQUIPMENT AND SUPPLIES,2021-22Q3_PC0078
Sandwell Metropolitan Borough Council,http://www.sandwell.gov.uk/info/200202/performance_and_spending/3233/government_procurement_cards,07-Oct-2021,Total Business Strategy & Change,AMZNMktplace,Assistant Chief Executive (Excl SIU),45.03,MISCELLANEOUS AND SPECIALTY RETAIL STORES,2021-22Q3_PC0079
Sandwell Metropolitan Borough Council,http://www.sandwell.gov.uk/info/200202/performance_and_spending/3233/government_procurement_cards,07-Oct-2021,Total Borough Economy,PAYPAL  ron.hawkins,Neighbourhoods,168,PROFESSIONAL SERVICES-NOT ELSEWHERE CLASSIFIED,2021-22Q3_PC0080
Sandwell Metropolitan Borough Council,http://www.sandwell.gov.uk/info/200202/performance_and_spending/3233/government_procurement_cards,07-Oct-2021,Total Borough Economy,CURRYS KIDDERMINSTER,Neighbourhoods,18.24,ELECTRONIC SALES,2021-22Q3_PC0081
Sandwell Metropolitan Borough Council,http://www.sandwell.gov.uk/info/200202/performance_and_spending/3233/government_procurement_cards,07-Oct-2021,Total Public Health,AMZNMKTPLACE AMAZON.CO,Public Health,5.55,MISCELLANEOUS AND SPECIALTY RETAIL STORES,2021-22Q3_PC0082
Sandwell Metropolitan Borough Council,http://www.sandwell.gov.uk/info/200202/performance_and_spending/3233/government_procurement_cards,07-Oct-2021,Regeneration & Growth,AMZNMKTPLACE AMAZON.CO,Regeneration And The Economy,3.9,MISCELLANEOUS AND SPECIALTY RETAIL STORES,2021-22Q3_PC0083
Sandwell Metropolitan Borough Council,http://www.sandwell.gov.uk/info/200202/performance_and_spending/3233/government_procurement_cards,07-Oct-2021,Regeneration & Growth,AMZNMktplace,Regeneration And The Economy,19.99,MISCELLANEOUS AND SPECIALTY RETAIL STORES,2021-22Q3_PC0084
Sandwell Metropolitan Borough Council,http://www.sandwell.gov.uk/info/200202/performance_and_spending/3233/government_procurement_cards,07-Oct-2021,Total Borough Economy,Amazon.co.uk MC8976BE5,Neighbourhoods,24.78,DIRECT MARKETING-OTHER DIRECT MARKETERS/NOT ELSEW.,2021-22Q3_PC0085
Sandwell Metropolitan Borough Council,http://www.sandwell.gov.uk/info/200202/performance_and_spending/3233/government_procurement_cards,07-Oct-2021,Total Borough Economy,AMZNMktplace,Neighbourhoods,95.9,MISCELLANEOUS AND SPECIALTY RETAIL STORES,2021-22Q3_PC0086
Sandwell Metropolitan Borough Council,http://www.sandwell.gov.uk/info/200202/performance_and_spending/3233/government_procurement_cards,07-Oct-2021,Total Borough Economy,AMZNMktplace,Neighbourhoods,20.97,MISCELLANEOUS AND SPECIALTY RETAIL STORES,2021-22Q3_PC0087
Sandwell Metropolitan Borough Council,http://www.sandwell.gov.uk/info/200202/performance_and_spending/3233/government_procurement_cards,07-Oct-2021,Total Borough Economy,TOOLSTATION UK,Neighbourhoods,-5.39,HARDWARE STORES,2021-22Q3_PC0088
Sandwell Metropolitan Borough Council,http://www.sandwell.gov.uk/info/200202/performance_and_spending/3233/government_procurement_cards,07-Oct-2021,Total Borough Economy,AMZNMKTPLACE AMAZON.CO,Neighbourhoods,147.28,MISCELLANEOUS AND SPECIALTY RETAIL STORES,2021-22Q3_PC0089
Sandwell Metropolitan Borough Council,http://www.sandwell.gov.uk/info/200202/performance_and_spending/3233/government_procurement_cards,07-Oct-2021,Regeneration & Growth,SMS CONNECTIONS,Regeneration And The Economy,11910.77,"FUEL DEALERS-COAL, FUEL OIL, LIQ PETROLEUM, WOOD",2021-22Q3_PC0090
Sandwell Metropolitan Borough Council,http://www.sandwell.gov.uk/info/200202/performance_and_spending/3233/government_procurement_cards,07-Oct-2021,Total ASCHWB,AMZNMktplace,Total Adult Social Care,43.09,MISCELLANEOUS AND SPECIALTY RETAIL STORES,2021-22Q3_PC0091
Sandwell Metropolitan Borough Council,http://www.sandwell.gov.uk/info/200202/performance_and_spending/3233/government_procurement_cards,07-Oct-2021,Total ASCHWB,AMZNMktplace,Total Adult Social Care,23.63,MISCELLANEOUS AND SPECIALTY RETAIL STORES,2021-22Q3_PC0092
Sandwell Metropolitan Borough Council,http://www.sandwell.gov.uk/info/200202/performance_and_spending/3233/government_procurement_cards,07-Oct-2021,Total ASCHWB,AMZNMktplace,Total Adult Social Care,54.99,MISCELLANEOUS AND SPECIALTY RETAIL STORES,2021-22Q3_PC0093
Sandwell Metropolitan Borough Council,http://www.sandwell.gov.uk/info/200202/performance_and_spending/3233/government_procurement_cards,07-Oct-2021,Total ASCHWB,AMZNMktplace,Total Adult Social Care,30.98,MISCELLANEOUS AND SPECIALTY RETAIL STORES,2021-22Q3_PC0094
Sandwell Metropolitan Borough Council,http://www.sandwell.gov.uk/info/200202/performance_and_spending/3233/government_procurement_cards,07-Oct-2021,Total ASCHWB,AMZNMKTPLACE AMAZON.CO,Total Adult Social Care,37.98,MISCELLANEOUS AND SPECIALTY RETAIL STORES,2021-22Q3_PC0095
Sandwell Metropolitan Borough Council,http://www.sandwell.gov.uk/info/200202/performance_and_spending/3233/government_procurement_cards,07-Oct-2021,Total ASCHWB,AMZNMKTPLACE AMAZON.CO,Total Adult Social Care,15.98,MISCELLANEOUS AND SPECIALTY RETAIL STORES,2021-22Q3_PC0096
Sandwell Metropolitan Borough Council,http://www.sandwell.gov.uk/info/200202/performance_and_spending/3233/government_procurement_cards,07-Oct-2021,Total ASCHWB,AMZ Amazon.co.uk,Total Adult Social Care,-62.96,DIRECT MARKETING-OTHER DIRECT MARKETERS/NOT ELSEW.,2021-22Q3_PC0097
Sandwell Metropolitan Borough Council,http://www.sandwell.gov.uk/info/200202/performance_and_spending/3233/government_procurement_cards,07-Oct-2021,Total ASCHWB,ARGOS LTD,Total Adult Social Care,153.92,DISCOUNT STORES,2021-22Q3_PC0098
Sandwell Metropolitan Borough Council,http://www.sandwell.gov.uk/info/200202/performance_and_spending/3233/government_procurement_cards,07-Oct-2021,Childrens Services,ASDA GROCERIES ONLINE,Childrens Services,-1.9,"GROCERY STORES, SUPERMARKETS",2021-22Q3_PC0099
Sandwell Metropolitan Borough Council,http://www.sandwell.gov.uk/info/200202/performance_and_spending/3233/government_procurement_cards,07-Oct-2021,Childrens Services,ASDA GROCERIES ONLINE,Childrens Services,42.5,"GROCERY STORES, SUPERMARKETS",2021-22Q3_PC0100
Sandwell Metropolitan Borough Council,http://www.sandwell.gov.uk/info/200202/performance_and_spending/3233/government_procurement_cards,07-Oct-2021,Childrens Services,ASDA GROCERIES ONLINE,Childrens Services,1.66,"GROCERY STORES, SUPERMARKETS",2021-22Q3_PC0101
Sandwell Metropolitan Borough Council,http://www.sandwell.gov.uk/info/200202/performance_and_spending/3233/government_procurement_cards,07-Oct-2021,Childrens Services,ASDA STORES LTD 5865,Childrens Services,47.78,"GROCERY STORES, SUPERMARKETS",2021-22Q3_PC0102
Sandwell Metropolitan Borough Council,http://www.sandwell.gov.uk/info/200202/performance_and_spending/3233/government_procurement_cards,07-Oct-2021,Childrens Services,Amazon.co.uk CU2B12CZ5,Childrens Services,14.97,DIRECT MARKETING-OTHER DIRECT MARKETERS/NOT ELSEW.,2021-22Q3_PC0103
Sandwell Metropolitan Borough Council,http://www.sandwell.gov.uk/info/200202/performance_and_spending/3233/government_procurement_cards,07-Oct-2021,Individual School Budgets With Inclusion,EB  THE NAUGHTY AUTIE,Individual School Budgets With Inclusion,247.86,BUSINESS SERVICES-NOT ELSEWHERE CLASSIFIED,2021-22Q3_PC0104
Sandwell Metropolitan Borough Council,http://www.sandwell.gov.uk/info/200202/performance_and_spending/3233/government_procurement_cards,07-Oct-2021,Childrens Services,Amazon.co.uk B17Z660S5,Childrens Services,37.47,DIRECT MARKETING-OTHER DIRECT MARKETERS/NOT ELSEW.,2021-22Q3_PC0105
Sandwell Metropolitan Borough Council,http://www.sandwell.gov.uk/info/200202/performance_and_spending/3233/government_procurement_cards,07-Oct-2021,Childrens Services,Amazon.co.uk DX6TA4W55,Childrens Services,18.8,DIRECT MARKETING-OTHER DIRECT MARKETERS/NOT ELSEW.,2021-22Q3_PC0106
Sandwell Metropolitan Borough Council,http://www.sandwell.gov.uk/info/200202/performance_and_spending/3233/government_procurement_cards,07-Oct-2021,Childrens Services,Amazon.co.uk JD1BT2L35,Childrens Services,12.99,DIRECT MARKETING-OTHER DIRECT MARKETERS/NOT ELSEW.,2021-22Q3_PC0107
Sandwell Metropolitan Borough Council,http://www.sandwell.gov.uk/info/200202/performance_and_spending/3233/government_procurement_cards,07-Oct-2021,Childrens Services,Amazon.co.uk NY4SM6105,Childrens Services,8.19,DIRECT MARKETING-OTHER DIRECT MARKETERS/NOT ELSEW.,2021-22Q3_PC0108
Sandwell Metropolitan Borough Council,http://www.sandwell.gov.uk/info/200202/performance_and_spending/3233/government_procurement_cards,07-Oct-2021,Childrens Services,Amazon.co.uk G29721R45,Childrens Services,5.44,DIRECT MARKETING-OTHER DIRECT MARKETERS/NOT ELSEW.,2021-22Q3_PC0109
Sandwell Metropolitan Borough Council,http://www.sandwell.gov.uk/info/200202/performance_and_spending/3233/government_procurement_cards,07-Oct-2021,Housing & Assets Total,WWW.VICARAGELODGE.COM,Neighbourhoods,1050,"LODGING-HOTELS,MOTELS,RESORTS-NOT CLASSIFIED",2021-22Q3_PC0110
Sandwell Metropolitan Borough Council,http://www.sandwell.gov.uk/info/200202/performance_and_spending/3233/government_procurement_cards,07-Oct-2021,Housing & Assets Total,WWW.VICARAGELODGE.COM,Neighbourhoods,205,"LODGING-HOTELS,MOTELS,RESORTS-NOT CLASSIFIED",2021-22Q3_PC0111
Sandwell Metropolitan Borough Council,http://www.sandwell.gov.uk/info/200202/performance_and_spending/3233/government_procurement_cards,07-Oct-2021,Housing & Assets Total,WWW.VICARAGELODGE.COM,Neighbourhoods,95,"LODGING-HOTELS,MOTELS,RESORTS-NOT CLASSIFIED",2021-22Q3_PC0112
Sandwell Metropolitan Borough Council,http://www.sandwell.gov.uk/info/200202/performance_and_spending/3233/government_procurement_cards,08-Oct-2021,Total Housing Revenue Account,BIRMINGHAM TELECOMMUNI,Total Housing Revenue Account,892.56,TELECOMMUNICATION EQUIPMENT INCL TELEPHONE SALES,2021-22Q3_PC0113
Sandwell Metropolitan Borough Council,http://www.sandwell.gov.uk/info/200202/performance_and_spending/3233/government_procurement_cards,08-Oct-2021,Total Housing Revenue Account,AMZNMKTPLACE AMAZON.CO,Total Housing Revenue Account,10.2,MISCELLANEOUS AND SPECIALTY RETAIL STORES,2021-22Q3_PC0114
Sandwell Metropolitan Borough Council,http://www.sandwell.gov.uk/info/200202/performance_and_spending/3233/government_procurement_cards,08-Oct-2021,Total Housing Revenue Account,CURRYS KIDDERMINSTER,Total Housing Revenue Account,124.95,ELECTRONIC SALES,2021-22Q3_PC0115
Sandwell Metropolitan Borough Council,http://www.sandwell.gov.uk/info/200202/performance_and_spending/3233/government_procurement_cards,08-Oct-2021,Total Housing Revenue Account,CURRYS KIDDERMINSTER,Total Housing Revenue Account,31.68,ELECTRONIC SALES,2021-22Q3_PC0116
Sandwell Metropolitan Borough Council,http://www.sandwell.gov.uk/info/200202/performance_and_spending/3233/government_procurement_cards,08-Oct-2021,Housing & Assets Total,ARGOS LTD,Neighbourhoods,42,DISCOUNT STORES,2021-22Q3_PC0117
Sandwell Metropolitan Borough Council,http://www.sandwell.gov.uk/info/200202/performance_and_spending/3233/government_procurement_cards,08-Oct-2021,Housing & Assets Total,ARGOS LTD,Neighbourhoods,36,DISCOUNT STORES,2021-22Q3_PC0118
Sandwell Metropolitan Borough Council,http://www.sandwell.gov.uk/info/200202/performance_and_spending/3233/government_procurement_cards,08-Oct-2021,Total Borough Economy,AMZNMktplace,Neighbourhoods,49.95,MISCELLANEOUS AND SPECIALTY RETAIL STORES,2021-22Q3_PC0119
Sandwell Metropolitan Borough Council,http://www.sandwell.gov.uk/info/200202/performance_and_spending/3233/government_procurement_cards,08-Oct-2021,Total Borough Economy,B & Q 1276,Neighbourhoods,-164.44,HOME SUPPLY WAREHOUSE STORES,2021-22Q3_PC0120
Sandwell Metropolitan Borough Council,http://www.sandwell.gov.uk/info/200202/performance_and_spending/3233/government_procurement_cards,08-Oct-2021,Total Borough Economy,GOMPELS HEALTHCARE,Neighbourhoods,32.4,WHOLESALE CLUBS,2021-22Q3_PC0121
Sandwell Metropolitan Borough Council,http://www.sandwell.gov.uk/info/200202/performance_and_spending/3233/government_procurement_cards,08-Oct-2021,Total Borough Economy,Al's Bearwood Cobbler,Neighbourhoods,9,"HAT CLEANING SHOPS, SHOE REPAIR SHOPS, SHOE SHINE",2021-22Q3_PC0122
Sandwell Metropolitan Borough Council,http://www.sandwell.gov.uk/info/200202/performance_and_spending/3233/government_procurement_cards,08-Oct-2021,Regeneration & Growth,AMZNMKTPLACE AMAZON.CO,Regeneration And The Economy,44.91,MISCELLANEOUS AND SPECIALTY RETAIL STORES,2021-22Q3_PC0123
Sandwell Metropolitan Borough Council,http://www.sandwell.gov.uk/info/200202/performance_and_spending/3233/government_procurement_cards,08-Oct-2021,Total ASCHWB,Amazon.co.uk AU2QA4H15,Total Adult Social Care,570.14,DIRECT MARKETING-OTHER DIRECT MARKETERS/NOT ELSEW.,2021-22Q3_PC0124
Sandwell Metropolitan Borough Council,http://www.sandwell.gov.uk/info/200202/performance_and_spending/3233/government_procurement_cards,08-Oct-2021,Childrens Services,Amazon.co.uk NQ51G8Z65,Childrens Services,146,DIRECT MARKETING-OTHER DIRECT MARKETERS/NOT ELSEW.,2021-22Q3_PC0125
Sandwell Metropolitan Borough Council,http://www.sandwell.gov.uk/info/200202/performance_and_spending/3233/government_procurement_cards,08-Oct-2021,Childrens Services,CARTRIDGEPEOPLE.COM,Childrens Services,80.9,STATIONERY/OFFICE SUPPLIES/PRINTING & WRITING PAP.,2021-22Q3_PC0126
Sandwell Metropolitan Borough Council,http://www.sandwell.gov.uk/info/200202/performance_and_spending/3233/government_procurement_cards,08-Oct-2021,Childrens Services,CARTRIDGEPEOPLE.COM,Childrens Services,44.91,STATIONERY/OFFICE SUPPLIES/PRINTING & WRITING PAP.,2021-22Q3_PC0127
Sandwell Metropolitan Borough Council,http://www.sandwell.gov.uk/info/200202/performance_and_spending/3233/government_procurement_cards,08-Oct-2021,Childrens Services,ALDI 772 177,Childrens Services,4.99,"GROCERY STORES, SUPERMARKETS",2021-22Q3_PC0128
Sandwell Metropolitan Borough Council,http://www.sandwell.gov.uk/info/200202/performance_and_spending/3233/government_procurement_cards,08-Oct-2021,Childrens Services,SEVERN VALLEY RAILWAY,Childrens Services,210,TOURIST ATTRACTIONS AND EXHIBITS,2021-22Q3_PC0129
Sandwell Metropolitan Borough Council,http://www.sandwell.gov.uk/info/200202/performance_and_spending/3233/government_procurement_cards,08-Oct-2021,Childrens Services,SEVERN VALLEY RAILWAY,Childrens Services,200.7,TOURIST ATTRACTIONS AND EXHIBITS,2021-22Q3_PC0130
Sandwell Metropolitan Borough Council,http://www.sandwell.gov.uk/info/200202/performance_and_spending/3233/government_procurement_cards,08-Oct-2021,Childrens Services,AMZNMktplace,Childrens Services,3.95,MISCELLANEOUS AND SPECIALTY RETAIL STORES,2021-22Q3_PC0131
Sandwell Metropolitan Borough Council,http://www.sandwell.gov.uk/info/200202/performance_and_spending/3233/government_procurement_cards,08-Oct-2021,Total Business Strategy & Change,AMZNMktplace,Assistant Chief Executive (Excl SIU),25.98,MISCELLANEOUS AND SPECIALTY RETAIL STORES,2021-22Q3_PC0132
Sandwell Metropolitan Borough Council,http://www.sandwell.gov.uk/info/200202/performance_and_spending/3233/government_procurement_cards,11-Oct-2021,Total Housing Revenue Account,HANDLESTORE,Total Housing Revenue Account,85.37,HARDWARE STORES,2021-22Q3_PC0133
Sandwell Metropolitan Borough Council,http://www.sandwell.gov.uk/info/200202/performance_and_spending/3233/government_procurement_cards,11-Oct-2021,Total Housing Revenue Account,AMZNMKTPLACE AMAZON.CO,Total Housing Revenue Account,127,MISCELLANEOUS AND SPECIALTY RETAIL STORES,2021-22Q3_PC0134
Sandwell Metropolitan Borough Council,http://www.sandwell.gov.uk/info/200202/performance_and_spending/3233/government_procurement_cards,11-Oct-2021,Total Housing Revenue Account,Amazon.co.uk E51SH5SS5,Total Housing Revenue Account,134.99,DIRECT MARKETING-OTHER DIRECT MARKETERS/NOT ELSEW.,2021-22Q3_PC0135
Sandwell Metropolitan Borough Council,http://www.sandwell.gov.uk/info/200202/performance_and_spending/3233/government_procurement_cards,11-Oct-2021,Housing & Assets Total,Amazon.co.uk XP5MH5Y25,Neighbourhoods,24,DIRECT MARKETING-OTHER DIRECT MARKETERS/NOT ELSEW.,2021-22Q3_PC0136
Sandwell Metropolitan Borough Council,http://www.sandwell.gov.uk/info/200202/performance_and_spending/3233/government_procurement_cards,11-Oct-2021,Housing & Assets Total,UBER    TRIP,Neighbourhoods,7.1,LIMOUSINES AND TAXICABS,2021-22Q3_PC0137
Sandwell Metropolitan Borough Council,http://www.sandwell.gov.uk/info/200202/performance_and_spending/3233/government_procurement_cards,11-Oct-2021,Total Borough Economy,AMZNMktplace,Total Adult Social Care,79.67,MISCELLANEOUS AND SPECIALTY RETAIL STORES,2021-22Q3_PC0138
Sandwell Metropolitan Borough Council,http://www.sandwell.gov.uk/info/200202/performance_and_spending/3233/government_procurement_cards,11-Oct-2021,Total Borough Economy,thetrainline.com,Neighbourhoods,61.85,PASSENGER RAILWAYS,2021-22Q3_PC0139
Sandwell Metropolitan Borough Council,http://www.sandwell.gov.uk/info/200202/performance_and_spending/3233/government_procurement_cards,11-Oct-2021,Total Borough Economy,B & Q 1357,Neighbourhoods,64,HOME SUPPLY WAREHOUSE STORES,2021-22Q3_PC0140
Sandwell Metropolitan Borough Council,http://www.sandwell.gov.uk/info/200202/performance_and_spending/3233/government_procurement_cards,11-Oct-2021,Total Borough Economy,AMZNMktplace,Neighbourhoods,90.66,MISCELLANEOUS AND SPECIALTY RETAIL STORES,2021-22Q3_PC0141
Sandwell Metropolitan Borough Council,http://www.sandwell.gov.uk/info/200202/performance_and_spending/3233/government_procurement_cards,11-Oct-2021,Total Borough Economy,MYRIADONLINE.CO.UK,Neighbourhoods,81.48,"GAME, TOY, AND HOBBY SHOPS",2021-22Q3_PC0142
Sandwell Metropolitan Borough Council,http://www.sandwell.gov.uk/info/200202/performance_and_spending/3233/government_procurement_cards,11-Oct-2021,Total Borough Economy,PAYPAL  WAYFAIR,Neighbourhoods,62.98,"EQUIP, FURNITURE, HOME FURNSHNGS STRS (EXCPT APPL)",2021-22Q3_PC0143
Sandwell Metropolitan Borough Council,http://www.sandwell.gov.uk/info/200202/performance_and_spending/3233/government_procurement_cards,11-Oct-2021,Total Borough Economy,AMZNMKTPLACE AMAZON.CO,Neighbourhoods,38.99,MISCELLANEOUS AND SPECIALTY RETAIL STORES,2021-22Q3_PC0144
Sandwell Metropolitan Borough Council,http://www.sandwell.gov.uk/info/200202/performance_and_spending/3233/government_procurement_cards,11-Oct-2021,Total Borough Economy,AMZNMKTPLACE AMAZON.CO,Neighbourhoods,14.49,MISCELLANEOUS AND SPECIALTY RETAIL STORES,2021-22Q3_PC0145
Sandwell Metropolitan Borough Council,http://www.sandwell.gov.uk/info/200202/performance_and_spending/3233/government_procurement_cards,11-Oct-2021,Total Borough Economy,SAINSBURYS S MKTS,Neighbourhoods,20,"GROCERY STORES, SUPERMARKETS",2021-22Q3_PC0146
Sandwell Metropolitan Borough Council,http://www.sandwell.gov.uk/info/200202/performance_and_spending/3233/government_procurement_cards,11-Oct-2021,Total Business Strategy & Change,AMZNMKTPLACE AMAZON.CO,Assistant Chief Executive (Excl SIU),35.98,MISCELLANEOUS AND SPECIALTY RETAIL STORES,2021-22Q3_PC0147
Sandwell Metropolitan Borough Council,http://www.sandwell.gov.uk/info/200202/performance_and_spending/3233/government_procurement_cards,11-Oct-2021,Regeneration & Growth,AMZNMKTPLACE AMAZON.CO,Regeneration And The Economy,53.85,MISCELLANEOUS AND SPECIALTY RETAIL STORES,2021-22Q3_PC0148
Sandwell Metropolitan Borough Council,http://www.sandwell.gov.uk/info/200202/performance_and_spending/3233/government_procurement_cards,11-Oct-2021,Regeneration & Growth,AMZNMktplace,Regeneration And The Economy,44.95,MISCELLANEOUS AND SPECIALTY RETAIL STORES,2021-22Q3_PC0149
Sandwell Metropolitan Borough Council,http://www.sandwell.gov.uk/info/200202/performance_and_spending/3233/government_procurement_cards,11-Oct-2021,Regeneration & Growth,AMZNMktplace,Regeneration And The Economy,1.95,MISCELLANEOUS AND SPECIALTY RETAIL STORES,2021-22Q3_PC0150
Sandwell Metropolitan Borough Council,http://www.sandwell.gov.uk/info/200202/performance_and_spending/3233/government_procurement_cards,11-Oct-2021,Regeneration & Growth,AMZNMktplace,Regeneration And The Economy,5.57,MISCELLANEOUS AND SPECIALTY RETAIL STORES,2021-22Q3_PC0151
Sandwell Metropolitan Borough Council,http://www.sandwell.gov.uk/info/200202/performance_and_spending/3233/government_procurement_cards,11-Oct-2021,FINANCE (Inc SIU),Amazon Prime KD03085N5,Assistant Chief Executive (Excl SIU),7.99,DIRECT MARKETING-CONTINUITY/SUBSCRIPTION MERCHANTS,2021-22Q3_PC0152
Sandwell Metropolitan Borough Council,http://www.sandwell.gov.uk/info/200202/performance_and_spending/3233/government_procurement_cards,11-Oct-2021,FINANCE (Inc SIU),AMZNMktplace,Assistant Chief Executive (Excl SIU),34.99,MISCELLANEOUS AND SPECIALTY RETAIL STORES,2021-22Q3_PC0153
Sandwell Metropolitan Borough Council,http://www.sandwell.gov.uk/info/200202/performance_and_spending/3233/government_procurement_cards,11-Oct-2021,Total Borough Economy,CHESWICKS COFFEE SHOP,Neighbourhoods,21.7,"EATING PLACES, RESTAURANTS",2021-22Q3_PC0154
Sandwell Metropolitan Borough Council,http://www.sandwell.gov.uk/info/200202/performance_and_spending/3233/government_procurement_cards,11-Oct-2021,Total Borough Economy,TOOLSTATION UK,Neighbourhoods,55.59,HARDWARE STORES,2021-22Q3_PC0155
Sandwell Metropolitan Borough Council,http://www.sandwell.gov.uk/info/200202/performance_and_spending/3233/government_procurement_cards,11-Oct-2021,Total Borough Economy,Amazon.co.uk UV8O504U5,Neighbourhoods,12.04,DIRECT MARKETING-OTHER DIRECT MARKETERS/NOT ELSEW.,2021-22Q3_PC0156
Sandwell Metropolitan Borough Council,http://www.sandwell.gov.uk/info/200202/performance_and_spending/3233/government_procurement_cards,11-Oct-2021,Regeneration & Growth,SAINSBURYS S/MKTS,Regeneration And The Economy,22,"GROCERY STORES, SUPERMARKETS",2021-22Q3_PC0157
Sandwell Metropolitan Borough Council,http://www.sandwell.gov.uk/info/200202/performance_and_spending/3233/government_procurement_cards,11-Oct-2021,Total ASCHWB,WWW.AALABELS.COM,Total Adult Social Care,-56.77,MISCELLANEOUS AND SPECIALTY RETAIL STORES,2021-22Q3_PC0158
Sandwell Metropolitan Borough Council,http://www.sandwell.gov.uk/info/200202/performance_and_spending/3233/government_procurement_cards,11-Oct-2021,Total ASCHWB,AMZNMktplace,Total Adult Social Care,22.58,MISCELLANEOUS AND SPECIALTY RETAIL STORES,2021-22Q3_PC0159
Sandwell Metropolitan Borough Council,http://www.sandwell.gov.uk/info/200202/performance_and_spending/3233/government_procurement_cards,11-Oct-2021,Total ASCHWB,AMZNMKTPLACE AMAZON.CO,Total Adult Social Care,98.97,MISCELLANEOUS AND SPECIALTY RETAIL STORES,2021-22Q3_PC0160
Sandwell Metropolitan Borough Council,http://www.sandwell.gov.uk/info/200202/performance_and_spending/3233/government_procurement_cards,11-Oct-2021,Total ASCHWB,AMZNMKTPLACE AMAZON.CO,Total Adult Social Care,12.99,MISCELLANEOUS AND SPECIALTY RETAIL STORES,2021-22Q3_PC0161
Sandwell Metropolitan Borough Council,http://www.sandwell.gov.uk/info/200202/performance_and_spending/3233/government_procurement_cards,11-Oct-2021,Housing & Assets Total,AMZNMktplace,Neighbourhoods,73.99,MISCELLANEOUS AND SPECIALTY RETAIL STORES,2021-22Q3_PC0162
Sandwell Metropolitan Borough Council,http://www.sandwell.gov.uk/info/200202/performance_and_spending/3233/government_procurement_cards,11-Oct-2021,Total ASCHWB,AMZNMktplace,Total Adult Social Care,79.99,MISCELLANEOUS AND SPECIALTY RETAIL STORES,2021-22Q3_PC0163
Sandwell Metropolitan Borough Council,http://www.sandwell.gov.uk/info/200202/performance_and_spending/3233/government_procurement_cards,11-Oct-2021,Total ASCHWB,AMZNMKTPLACE AMAZON.CO,Total Adult Social Care,8.45,MISCELLANEOUS AND SPECIALTY RETAIL STORES,2021-22Q3_PC0164
Sandwell Metropolitan Borough Council,http://www.sandwell.gov.uk/info/200202/performance_and_spending/3233/government_procurement_cards,11-Oct-2021,Total ASCHWB,AMZNMKTPLACE AMAZON.CO,Total Adult Social Care,14.99,MISCELLANEOUS AND SPECIALTY RETAIL STORES,2021-22Q3_PC0165
Sandwell Metropolitan Borough Council,http://www.sandwell.gov.uk/info/200202/performance_and_spending/3233/government_procurement_cards,11-Oct-2021,Total ASCHWB,AMZNMKTPLACE AMAZON.CO,Total Adult Social Care,15.44,MISCELLANEOUS AND SPECIALTY RETAIL STORES,2021-22Q3_PC0166
Sandwell Metropolitan Borough Council,http://www.sandwell.gov.uk/info/200202/performance_and_spending/3233/government_procurement_cards,11-Oct-2021,Total ASCHWB,AMZNMKTPLACE AMAZON.CO,Total Adult Social Care,10.48,MISCELLANEOUS AND SPECIALTY RETAIL STORES,2021-22Q3_PC0167
Sandwell Metropolitan Borough Council,http://www.sandwell.gov.uk/info/200202/performance_and_spending/3233/government_procurement_cards,11-Oct-2021,Total ASCHWB,ARGOS LTD,Total Adult Social Care,23.94,DISCOUNT STORES,2021-22Q3_PC0168
Sandwell Metropolitan Borough Council,http://www.sandwell.gov.uk/info/200202/performance_and_spending/3233/government_procurement_cards,11-Oct-2021,Childrens Services,WWW.NISBETS.COM,Childrens Services,103.96,DIRECT MARKETING-CATALOG MERCHANTS,2021-22Q3_PC0169
Sandwell Metropolitan Borough Council,http://www.sandwell.gov.uk/info/200202/performance_and_spending/3233/government_procurement_cards,11-Oct-2021,Childrens Services,SQ  JONES & WHITEHEAD,Childrens Services,108,GENERAL CONTRACTORS/RESIDENTIAL BUILDINGS,2021-22Q3_PC0170
Sandwell Metropolitan Borough Council,http://www.sandwell.gov.uk/info/200202/performance_and_spending/3233/government_procurement_cards,11-Oct-2021,Childrens Services,TVLICENSING.CO.UK,Childrens Services,159,"CONSULTING, MANAGEMENT, AND PUBLIC RELATIONS SVCS",2021-22Q3_PC0171
Sandwell Metropolitan Borough Council,http://www.sandwell.gov.uk/info/200202/performance_and_spending/3233/government_procurement_cards,11-Oct-2021,Childrens Services,B&M 676-SPENNELLS,Childrens Services,6.98,MISCELLANEOUS GENERAL MERCHANDISE,2021-22Q3_PC0172
Sandwell Metropolitan Borough Council,http://www.sandwell.gov.uk/info/200202/performance_and_spending/3233/government_procurement_cards,11-Oct-2021,Childrens Services,TESCO STORES 2770,Childrens Services,49.64,"GROCERY STORES, SUPERMARKETS",2021-22Q3_PC0173
Sandwell Metropolitan Borough Council,http://www.sandwell.gov.uk/info/200202/performance_and_spending/3233/government_procurement_cards,11-Oct-2021,Childrens Services,FARMFOODS 621,Childrens Services,12.18,"GROCERY STORES, SUPERMARKETS",2021-22Q3_PC0174
Sandwell Metropolitan Borough Council,http://www.sandwell.gov.uk/info/200202/performance_and_spending/3233/government_procurement_cards,11-Oct-2021,Childrens Services,Hobbycraft Trading Lim,Childrens Services,38,"ARTIST SUPPLY STORES, CRAFT SHOPS",2021-22Q3_PC0175
Sandwell Metropolitan Borough Council,http://www.sandwell.gov.uk/info/200202/performance_and_spending/3233/government_procurement_cards,11-Oct-2021,Childrens Services,AMZNMktplace,Childrens Services,350,MISCELLANEOUS AND SPECIALTY RETAIL STORES,2021-22Q3_PC0176
Sandwell Metropolitan Borough Council,http://www.sandwell.gov.uk/info/200202/performance_and_spending/3233/government_procurement_cards,11-Oct-2021,Childrens Services,BOOKWHEN- SOFTWARE SUB,Childrens Services,228,COMPUTER SOFTWARE STORES,2021-22Q3_PC0177
Sandwell Metropolitan Borough Council,http://www.sandwell.gov.uk/info/200202/performance_and_spending/3233/government_procurement_cards,11-Oct-2021,Childrens Services,INDIVIDUAL MEMBERSHIP,Childrens Services,80,SCHOOLS & EDUCATIONAL SVC-NOT ELSEWHERE CLASSIFIED,2021-22Q3_PC0178
Sandwell Metropolitan Borough Council,http://www.sandwell.gov.uk/info/200202/performance_and_spending/3233/government_procurement_cards,11-Oct-2021,Childrens Services,AMZNMktplace,Childrens Services,22.23,MISCELLANEOUS AND SPECIALTY RETAIL STORES,2021-22Q3_PC0179
Sandwell Metropolitan Borough Council,http://www.sandwell.gov.uk/info/200202/performance_and_spending/3233/government_procurement_cards,12-Oct-2021,Total Housing Revenue Account,TRAVIS PERKINS,Total Housing Revenue Account,20.95,"BUILDING MATERIALS, LUMBER STORES",2021-22Q3_PC0180
Sandwell Metropolitan Borough Council,http://www.sandwell.gov.uk/info/200202/performance_and_spending/3233/government_procurement_cards,12-Oct-2021,Housing & Assets Total,PRIMARK 476,Neighbourhoods,34,FAMILY CLOTHING STORES,2021-22Q3_PC0181
Sandwell Metropolitan Borough Council,http://www.sandwell.gov.uk/info/200202/performance_and_spending/3233/government_procurement_cards,12-Oct-2021,Total Borough Economy,IZ  Forever Home,Neighbourhoods,24.97,MISCELLANEOUS AND SPECIALTY RETAIL STORES,2021-22Q3_PC0182
Sandwell Metropolitan Borough Council,http://www.sandwell.gov.uk/info/200202/performance_and_spending/3233/government_procurement_cards,12-Oct-2021,Total Borough Economy,AMZNMktplace,Neighbourhoods,18.54,MISCELLANEOUS AND SPECIALTY RETAIL STORES,2021-22Q3_PC0183
Sandwell Metropolitan Borough Council,http://www.sandwell.gov.uk/info/200202/performance_and_spending/3233/government_procurement_cards,12-Oct-2021,Total Borough Economy,ESSINGTON FARM LIMITED,Neighbourhoods,25,"MISC FOOD STORE-CONVENIENCE,MRKT,SPLTY,VENDNG MACS",2021-22Q3_PC0184
Sandwell Metropolitan Borough Council,http://www.sandwell.gov.uk/info/200202/performance_and_spending/3233/government_procurement_cards,12-Oct-2021,Housing & Assets Total,AMZNMktplace,Neighbourhoods,25.29,MISCELLANEOUS AND SPECIALTY RETAIL STORES,2021-22Q3_PC0185
Sandwell Metropolitan Borough Council,http://www.sandwell.gov.uk/info/200202/performance_and_spending/3233/government_procurement_cards,12-Oct-2021,Housing & Assets Total,ASDA STORES,Neighbourhoods,19.01,"GROCERY STORES, SUPERMARKETS",2021-22Q3_PC0186
Sandwell Metropolitan Borough Council,http://www.sandwell.gov.uk/info/200202/performance_and_spending/3233/government_procurement_cards,12-Oct-2021,Regeneration & Growth,AMZNMktplace,Regeneration And The Economy,36.99,MISCELLANEOUS AND SPECIALTY RETAIL STORES,2021-22Q3_PC0187
Sandwell Metropolitan Borough Council,http://www.sandwell.gov.uk/info/200202/performance_and_spending/3233/government_procurement_cards,12-Oct-2021,Total Borough Economy,TOOLSTATION UK,Neighbourhoods,11.96,HARDWARE STORES,2021-22Q3_PC0188
Sandwell Metropolitan Borough Council,http://www.sandwell.gov.uk/info/200202/performance_and_spending/3233/government_procurement_cards,12-Oct-2021,Total Borough Economy,TOOLSTATION UK,Neighbourhoods,14.95,HARDWARE STORES,2021-22Q3_PC0189
Sandwell Metropolitan Borough Council,http://www.sandwell.gov.uk/info/200202/performance_and_spending/3233/government_procurement_cards,12-Oct-2021,Total Borough Economy,AMZNMKTPLACE AMAZON.CO,Neighbourhoods,18.98,MISCELLANEOUS AND SPECIALTY RETAIL STORES,2021-22Q3_PC0190
Sandwell Metropolitan Borough Council,http://www.sandwell.gov.uk/info/200202/performance_and_spending/3233/government_procurement_cards,12-Oct-2021,Total Borough Economy,SCREWFIX DIRECT,Neighbourhoods,39.99,"BUILDING MATERIALS, LUMBER STORES",2021-22Q3_PC0191
Sandwell Metropolitan Borough Council,http://www.sandwell.gov.uk/info/200202/performance_and_spending/3233/government_procurement_cards,12-Oct-2021,Director of Law & Governance,DARLASTON BUILDERS MER,Assistant Chief Executive (Excl SIU),12.6,"BUILDING MATERIALS, LUMBER STORES",2021-22Q3_PC0192
Sandwell Metropolitan Borough Council,http://www.sandwell.gov.uk/info/200202/performance_and_spending/3233/government_procurement_cards,12-Oct-2021,Total Borough Economy,Flextronics,Neighbourhoods,394.05,COMPUTER MAIN./REPAIR/SERVICES NOT ELSEWHERE CLASS,2021-22Q3_PC0193
Sandwell Metropolitan Borough Council,http://www.sandwell.gov.uk/info/200202/performance_and_spending/3233/government_procurement_cards,12-Oct-2021,Total ASCHWB,TVLICENSING.CO.UK,Total Adult Social Care,159,"CONSULTING, MANAGEMENT, AND PUBLIC RELATIONS SVCS",2021-22Q3_PC0194
Sandwell Metropolitan Borough Council,http://www.sandwell.gov.uk/info/200202/performance_and_spending/3233/government_procurement_cards,12-Oct-2021,Total ASCHWB,TVLICENSING.CO.UK,Total Adult Social Care,159,"CONSULTING, MANAGEMENT, AND PUBLIC RELATIONS SVCS",2021-22Q3_PC0195
Sandwell Metropolitan Borough Council,http://www.sandwell.gov.uk/info/200202/performance_and_spending/3233/government_procurement_cards,12-Oct-2021,Total ASCHWB,POWTOON.COM,Total Adult Social Care,339.25,COMPUTER SOFTWARE STORES,2021-22Q3_PC0196
Sandwell Metropolitan Borough Council,http://www.sandwell.gov.uk/info/200202/performance_and_spending/3233/government_procurement_cards,12-Oct-2021,Childrens Services,HARLECH FOODSERVICE LT,Childrens Services,85.7,"MISC FOOD STORE-CONVENIENCE,MRKT,SPLTY,VENDNG MACS",2021-22Q3_PC0197
Sandwell Metropolitan Borough Council,http://www.sandwell.gov.uk/info/200202/performance_and_spending/3233/government_procurement_cards,12-Oct-2021,Childrens Services,WILKO RETAIL LIMITED,Childrens Services,9,MISCELLANEOUS GENERAL MERCHANDISE,2021-22Q3_PC0198
Sandwell Metropolitan Borough Council,http://www.sandwell.gov.uk/info/200202/performance_and_spending/3233/government_procurement_cards,12-Oct-2021,Childrens Services,INTHEEYESOFAPIXIE,Childrens Services,45,DIGITAL GOODS MULTI CATEGORY,2021-22Q3_PC0199
Sandwell Metropolitan Borough Council,http://www.sandwell.gov.uk/info/200202/performance_and_spending/3233/government_procurement_cards,12-Oct-2021,Childrens Services,PSHE ASSOCIATION,Childrens Services,95,"ORGANIZATIONS, CHARITABLE AND SOCIAL SERVICES",2021-22Q3_PC0200
Sandwell Metropolitan Borough Council,http://www.sandwell.gov.uk/info/200202/performance_and_spending/3233/government_procurement_cards,12-Oct-2021,Childrens Services,AMZNMktplace,Childrens Services,130.96,MISCELLANEOUS AND SPECIALTY RETAIL STORES,2021-22Q3_PC0201
Sandwell Metropolitan Borough Council,http://www.sandwell.gov.uk/info/200202/performance_and_spending/3233/government_procurement_cards,12-Oct-2021,Director of Law & Governance,AMZNMKTPLACE AMAZON.CO,Assistant Chief Executive (Excl SIU),32.45,MISCELLANEOUS AND SPECIALTY RETAIL STORES,2021-22Q3_PC0202
Sandwell Metropolitan Borough Council,http://www.sandwell.gov.uk/info/200202/performance_and_spending/3233/government_procurement_cards,13-Oct-2021,Total Borough Economy,WWW.HSS.COM,Neighbourhoods,-195.6,"EQUIPMENT RENTAL&LEASING SVS, FURNTURE/TOOL RENTAL",2021-22Q3_PC0203
Sandwell Metropolitan Borough Council,http://www.sandwell.gov.uk/info/200202/performance_and_spending/3233/government_procurement_cards,13-Oct-2021,Housing & Assets Total,HOMEBASE LTD 085,Neighbourhoods,40,HOME SUPPLY WAREHOUSE STORES,2021-22Q3_PC0204
Sandwell Metropolitan Borough Council,http://www.sandwell.gov.uk/info/200202/performance_and_spending/3233/government_procurement_cards,13-Oct-2021,Total Public Health,Adobe.com,Public Health,49.94,DIGITAL GOODS SOFTWARE APPLICATIONS,2021-22Q3_PC0205
Sandwell Metropolitan Borough Council,http://www.sandwell.gov.uk/info/200202/performance_and_spending/3233/government_procurement_cards,13-Oct-2021,Total Borough Economy,AMZNMKTPLACE AMAZON.CO,Neighbourhoods,86.69,MISCELLANEOUS AND SPECIALTY RETAIL STORES,2021-22Q3_PC0206
Sandwell Metropolitan Borough Council,http://www.sandwell.gov.uk/info/200202/performance_and_spending/3233/government_procurement_cards,13-Oct-2021,Total Borough Economy,CHRISTMAS DIRECT,Neighbourhoods,26.24,"GIFT, CARD, NOVELTY AND SOUVENIR SHOPS",2021-22Q3_PC0207
Sandwell Metropolitan Borough Council,http://www.sandwell.gov.uk/info/200202/performance_and_spending/3233/government_procurement_cards,13-Oct-2021,Housing & Assets Total,EB  ONLINE TRAINING TH,Neighbourhoods,-113.4,BUSINESS SERVICES-NOT ELSEWHERE CLASSIFIED,2021-22Q3_PC0208
Sandwell Metropolitan Borough Council,http://www.sandwell.gov.uk/info/200202/performance_and_spending/3233/government_procurement_cards,13-Oct-2021,Total Public Health,AMZNMKTPLACE AMAZON.CO,Public Health,47.96,MISCELLANEOUS AND SPECIALTY RETAIL STORES,2021-22Q3_PC0209
Sandwell Metropolitan Borough Council,http://www.sandwell.gov.uk/info/200202/performance_and_spending/3233/government_procurement_cards,13-Oct-2021,Total Business Strategy & Change,AMZNMktplace,Assistant Chief Executive (Excl SIU),24.97,MISCELLANEOUS AND SPECIALTY RETAIL STORES,2021-22Q3_PC0210
Sandwell Metropolitan Borough Council,http://www.sandwell.gov.uk/info/200202/performance_and_spending/3233/government_procurement_cards,13-Oct-2021,Total Borough Economy,AMZNMktplace,Neighbourhoods,78.8,MISCELLANEOUS AND SPECIALTY RETAIL STORES,2021-22Q3_PC0211
Sandwell Metropolitan Borough Council,http://www.sandwell.gov.uk/info/200202/performance_and_spending/3233/government_procurement_cards,13-Oct-2021,Total Borough Economy,W M MORRISONS.COM,Neighbourhoods,128.1,"GROCERY STORES, SUPERMARKETS",2021-22Q3_PC0212
Sandwell Metropolitan Borough Council,http://www.sandwell.gov.uk/info/200202/performance_and_spending/3233/government_procurement_cards,13-Oct-2021,Total Borough Economy,Amazon.co.uk 069II7Y25,Neighbourhoods,24.89,DIRECT MARKETING-OTHER DIRECT MARKETERS/NOT ELSEW.,2021-22Q3_PC0213
Sandwell Metropolitan Borough Council,http://www.sandwell.gov.uk/info/200202/performance_and_spending/3233/government_procurement_cards,13-Oct-2021,Total Borough Economy,SAINSBURY'S S M/KT,Neighbourhoods,2,"GROCERY STORES, SUPERMARKETS",2021-22Q3_PC0214
Sandwell Metropolitan Borough Council,http://www.sandwell.gov.uk/info/200202/performance_and_spending/3233/government_procurement_cards,13-Oct-2021,Total Borough Economy,SAINSBURY'S S M/KT,Neighbourhoods,12.13,"GROCERY STORES, SUPERMARKETS",2021-22Q3_PC0215
Sandwell Metropolitan Borough Council,http://www.sandwell.gov.uk/info/200202/performance_and_spending/3233/government_procurement_cards,13-Oct-2021,Total Borough Economy,AMZNMktplace,Neighbourhoods,29,MISCELLANEOUS AND SPECIALTY RETAIL STORES,2021-22Q3_PC0216
Sandwell Metropolitan Borough Council,http://www.sandwell.gov.uk/info/200202/performance_and_spending/3233/government_procurement_cards,13-Oct-2021,Total ASCHWB,AMZNMktplace,Total Adult Social Care,11.98,MISCELLANEOUS AND SPECIALTY RETAIL STORES,2021-22Q3_PC0217
Sandwell Metropolitan Borough Council,http://www.sandwell.gov.uk/info/200202/performance_and_spending/3233/government_procurement_cards,13-Oct-2021,Total ASCHWB,AMZNMKTPLACE AMAZON.CO,Total Adult Social Care,79.99,MISCELLANEOUS AND SPECIALTY RETAIL STORES,2021-22Q3_PC0218
Sandwell Metropolitan Borough Council,http://www.sandwell.gov.uk/info/200202/performance_and_spending/3233/government_procurement_cards,13-Oct-2021,Total ASCHWB,AMZNMktplace,Total Adult Social Care,33.99,MISCELLANEOUS AND SPECIALTY RETAIL STORES,2021-22Q3_PC0219
Sandwell Metropolitan Borough Council,http://www.sandwell.gov.uk/info/200202/performance_and_spending/3233/government_procurement_cards,13-Oct-2021,Childrens Services,PAYPAL  GJMARINERSO,Childrens Services,29.02,PROFESSIONAL SERVICES-NOT ELSEWHERE CLASSIFIED,2021-22Q3_PC0220
Sandwell Metropolitan Borough Council,http://www.sandwell.gov.uk/info/200202/performance_and_spending/3233/government_procurement_cards,13-Oct-2021,Childrens Services,ASDA GROCERIES ONLINE,Childrens Services,-22.24,"GROCERY STORES, SUPERMARKETS",2021-22Q3_PC0221
Sandwell Metropolitan Borough Council,http://www.sandwell.gov.uk/info/200202/performance_and_spending/3233/government_procurement_cards,13-Oct-2021,Childrens Services,ASDA GROCERIES ONLINE,Childrens Services,120.63,"GROCERY STORES, SUPERMARKETS",2021-22Q3_PC0222
Sandwell Metropolitan Borough Council,http://www.sandwell.gov.uk/info/200202/performance_and_spending/3233/government_procurement_cards,13-Oct-2021,Childrens Services,TESCO STORES 2770,Childrens Services,4.91,"GROCERY STORES, SUPERMARKETS",2021-22Q3_PC0223
Sandwell Metropolitan Borough Council,http://www.sandwell.gov.uk/info/200202/performance_and_spending/3233/government_procurement_cards,13-Oct-2021,Childrens Services,AMZNMKTPLACE AMAZON.CO,Childrens Services,93.11,MISCELLANEOUS AND SPECIALTY RETAIL STORES,2021-22Q3_PC0224
Sandwell Metropolitan Borough Council,http://www.sandwell.gov.uk/info/200202/performance_and_spending/3233/government_procurement_cards,13-Oct-2021,Childrens Services,BEEBYS BUBBLES,Childrens Services,97.5,"CLEANING, GARMENT, AND LAUNDRY SERVICES",2021-22Q3_PC0225
Sandwell Metropolitan Borough Council,http://www.sandwell.gov.uk/info/200202/performance_and_spending/3233/government_procurement_cards,13-Oct-2021,Childrens Services,GOMPELS HEALTHCARE,Childrens Services,168.77,WHOLESALE CLUBS,2021-22Q3_PC0226
Sandwell Metropolitan Borough Council,http://www.sandwell.gov.uk/info/200202/performance_and_spending/3233/government_procurement_cards,13-Oct-2021,Childrens Services,Amazon.co.uk R95IG1ED5,Childrens Services,14.44,DIRECT MARKETING-OTHER DIRECT MARKETERS/NOT ELSEW.,2021-22Q3_PC0227
Sandwell Metropolitan Borough Council,http://www.sandwell.gov.uk/info/200202/performance_and_spending/3233/government_procurement_cards,13-Oct-2021,Housing & Assets Total,AMZNMktplace,Neighbourhoods,29.99,MISCELLANEOUS AND SPECIALTY RETAIL STORES,2021-22Q3_PC0228
Sandwell Metropolitan Borough Council,http://www.sandwell.gov.uk/info/200202/performance_and_spending/3233/government_procurement_cards,13-Oct-2021,Total Business Strategy & Change,POST OFFICE COUNTER,Assistant Chief Executive (Excl SIU),25,POSTAL SERVICES-GOVERNMENT ONLY,2021-22Q3_PC0229
Sandwell Metropolitan Borough Council,http://www.sandwell.gov.uk/info/200202/performance_and_spending/3233/government_procurement_cards,13-Oct-2021,Total Business Strategy & Change,POST OFFICE COUNTER,Assistant Chief Executive (Excl SIU),25,POSTAL SERVICES-GOVERNMENT ONLY,2021-22Q3_PC0230
Sandwell Metropolitan Borough Council,http://www.sandwell.gov.uk/info/200202/performance_and_spending/3233/government_procurement_cards,13-Oct-2021,Total Business Strategy & Change,AMZNMKTPLACE AMAZON.CO,Assistant Chief Executive (Excl SIU),63.71,MISCELLANEOUS AND SPECIALTY RETAIL STORES,2021-22Q3_PC0231
Sandwell Metropolitan Borough Council,http://www.sandwell.gov.uk/info/200202/performance_and_spending/3233/government_procurement_cards,14-Oct-2021,Total Housing Revenue Account,AMZNMKTPLACE AMAZON.CO,Total Housing Revenue Account,167.25,MISCELLANEOUS AND SPECIALTY RETAIL STORES,2021-22Q3_PC0232
Sandwell Metropolitan Borough Council,http://www.sandwell.gov.uk/info/200202/performance_and_spending/3233/government_procurement_cards,14-Oct-2021,Total Borough Economy,VIKING UK,Neighbourhoods,371.94,STATIONERY/OFFICE SUPPLIES/PRINTING & WRITING PAP.,2021-22Q3_PC0233
Sandwell Metropolitan Borough Council,http://www.sandwell.gov.uk/info/200202/performance_and_spending/3233/government_procurement_cards,14-Oct-2021,Housing & Assets Total,PRIMARK 476,Neighbourhoods,39,FAMILY CLOTHING STORES,2021-22Q3_PC0234
Sandwell Metropolitan Borough Council,http://www.sandwell.gov.uk/info/200202/performance_and_spending/3233/government_procurement_cards,14-Oct-2021,Total Borough Economy,AMZNMKTPLACE AMAZON.CO,Total Adult Social Care,141.43,MISCELLANEOUS AND SPECIALTY RETAIL STORES,2021-22Q3_PC0235
Sandwell Metropolitan Borough Council,http://www.sandwell.gov.uk/info/200202/performance_and_spending/3233/government_procurement_cards,14-Oct-2021,Total Borough Economy,CHRISTMAS DIRECT,Neighbourhoods,265.96,"GIFT, CARD, NOVELTY AND SOUVENIR SHOPS",2021-22Q3_PC0236
Sandwell Metropolitan Borough Council,http://www.sandwell.gov.uk/info/200202/performance_and_spending/3233/government_procurement_cards,14-Oct-2021,Total Borough Economy,SAINSBURYS S/MKTS,Neighbourhoods,3,"GROCERY STORES, SUPERMARKETS",2021-22Q3_PC0237
Sandwell Metropolitan Borough Council,http://www.sandwell.gov.uk/info/200202/performance_and_spending/3233/government_procurement_cards,14-Oct-2021,Housing & Assets Total,AMZNMktplace,Neighbourhoods,13.44,MISCELLANEOUS AND SPECIALTY RETAIL STORES,2021-22Q3_PC0238
Sandwell Metropolitan Borough Council,http://www.sandwell.gov.uk/info/200202/performance_and_spending/3233/government_procurement_cards,14-Oct-2021,Total Business Strategy & Change,AMZNMktplace,Assistant Chief Executive (Excl SIU),42.49,MISCELLANEOUS AND SPECIALTY RETAIL STORES,2021-22Q3_PC0239
Sandwell Metropolitan Borough Council,http://www.sandwell.gov.uk/info/200202/performance_and_spending/3233/government_procurement_cards,14-Oct-2021,Total Business Strategy & Change,AMZNMktplace,Assistant Chief Executive (Excl SIU),15.48,MISCELLANEOUS AND SPECIALTY RETAIL STORES,2021-22Q3_PC0240
Sandwell Metropolitan Borough Council,http://www.sandwell.gov.uk/info/200202/performance_and_spending/3233/government_procurement_cards,14-Oct-2021,Regeneration & Growth,AMZNMktplace,Regeneration And The Economy,35.9,MISCELLANEOUS AND SPECIALTY RETAIL STORES,2021-22Q3_PC0241
Sandwell Metropolitan Borough Council,http://www.sandwell.gov.uk/info/200202/performance_and_spending/3233/government_procurement_cards,14-Oct-2021,Total Borough Economy,AMZNMKTPLACE AMAZON.CO,Neighbourhoods,20.52,MISCELLANEOUS AND SPECIALTY RETAIL STORES,2021-22Q3_PC0242
Sandwell Metropolitan Borough Council,http://www.sandwell.gov.uk/info/200202/performance_and_spending/3233/government_procurement_cards,14-Oct-2021,Total Borough Economy,CILIP,Neighbourhoods,192,"ORGANIZATIONS, CHARITABLE AND SOCIAL SERVICES",2021-22Q3_PC0243
Sandwell Metropolitan Borough Council,http://www.sandwell.gov.uk/info/200202/performance_and_spending/3233/government_procurement_cards,14-Oct-2021,Total Borough Economy,AMZNMKTPLACE AMAZON.CO,Neighbourhoods,5.99,MISCELLANEOUS AND SPECIALTY RETAIL STORES,2021-22Q3_PC0244
Sandwell Metropolitan Borough Council,http://www.sandwell.gov.uk/info/200202/performance_and_spending/3233/government_procurement_cards,14-Oct-2021,Total Borough Economy,IDCBAND.COM,Neighbourhoods,28.8,MISCELLANEOUS PUBLISHING AND PRINTING,2021-22Q3_PC0245
Sandwell Metropolitan Borough Council,http://www.sandwell.gov.uk/info/200202/performance_and_spending/3233/government_procurement_cards,14-Oct-2021,Director of Law & Governance,NATIONAL MEMORIAL,Assistant Chief Executive (Excl SIU),108,"GIFT, CARD, NOVELTY AND SOUVENIR SHOPS",2021-22Q3_PC0246
Sandwell Metropolitan Borough Council,http://www.sandwell.gov.uk/info/200202/performance_and_spending/3233/government_procurement_cards,14-Oct-2021,Total Borough Economy,AMZNMktplace,Total Adult Social Care,12.6,MISCELLANEOUS AND SPECIALTY RETAIL STORES,2021-22Q3_PC0247
Sandwell Metropolitan Borough Council,http://www.sandwell.gov.uk/info/200202/performance_and_spending/3233/government_procurement_cards,14-Oct-2021,Total Borough Economy,AMZNMktplace,Regeneration And The Economy,45.28,MISCELLANEOUS AND SPECIALTY RETAIL STORES,2021-22Q3_PC0248
Sandwell Metropolitan Borough Council,http://www.sandwell.gov.uk/info/200202/performance_and_spending/3233/government_procurement_cards,14-Oct-2021,Regeneration & Growth,AMZNMktplace,Regeneration And The Economy,197.77,MISCELLANEOUS AND SPECIALTY RETAIL STORES,2021-22Q3_PC0249
Sandwell Metropolitan Borough Council,http://www.sandwell.gov.uk/info/200202/performance_and_spending/3233/government_procurement_cards,14-Oct-2021,Total ASCHWB,Amazon.co.uk 9B3XJ9E35,Total Adult Social Care,23.98,DIRECT MARKETING-OTHER DIRECT MARKETERS/NOT ELSEW.,2021-22Q3_PC0250
Sandwell Metropolitan Borough Council,http://www.sandwell.gov.uk/info/200202/performance_and_spending/3233/government_procurement_cards,14-Oct-2021,Total ASCHWB,AMZNMktplace,Total Adult Social Care,22.98,MISCELLANEOUS AND SPECIALTY RETAIL STORES,2021-22Q3_PC0251
Sandwell Metropolitan Borough Council,http://www.sandwell.gov.uk/info/200202/performance_and_spending/3233/government_procurement_cards,14-Oct-2021,Childrens Services,SEBO UK LIMITED,Childrens Services,55.67,HOUSEHOLD APPLIANCE STORES,2021-22Q3_PC0252
Sandwell Metropolitan Borough Council,http://www.sandwell.gov.uk/info/200202/performance_and_spending/3233/government_procurement_cards,14-Oct-2021,Childrens Services,GWYNEDD DISPOSABLES CY,Childrens Services,268.81,"SANITATION, POLISHING & SPECIALITY CLEANING PREP",2021-22Q3_PC0253
Sandwell Metropolitan Borough Council,http://www.sandwell.gov.uk/info/200202/performance_and_spending/3233/government_procurement_cards,14-Oct-2021,Childrens Services,WWW.CROMARTIEHOBBYCRAF,Childrens Services,64.2,"ARTIST SUPPLY STORES, CRAFT SHOPS",2021-22Q3_PC0254
Sandwell Metropolitan Borough Council,http://www.sandwell.gov.uk/info/200202/performance_and_spending/3233/government_procurement_cards,14-Oct-2021,Childrens Services,FIRSTAID4LESS.CO.UK,Childrens Services,108.84,MISCELLANEOUS AND SPECIALTY RETAIL STORES,2021-22Q3_PC0255
Sandwell Metropolitan Borough Council,http://www.sandwell.gov.uk/info/200202/performance_and_spending/3233/government_procurement_cards,14-Oct-2021,Childrens Services,AMZNMktplace,Childrens Services,12.89,MISCELLANEOUS AND SPECIALTY RETAIL STORES,2021-22Q3_PC0256
Sandwell Metropolitan Borough Council,http://www.sandwell.gov.uk/info/200202/performance_and_spending/3233/government_procurement_cards,14-Oct-2021,Childrens Services,ARGOS OLDBURY,Childrens Services,8,DISCOUNT STORES,2021-22Q3_PC0257
Sandwell Metropolitan Borough Council,http://www.sandwell.gov.uk/info/200202/performance_and_spending/3233/government_procurement_cards,14-Oct-2021,Childrens Services,SAINSBURYS S/MKTS,Childrens Services,29,"GROCERY STORES, SUPERMARKETS",2021-22Q3_PC0258
Sandwell Metropolitan Borough Council,http://www.sandwell.gov.uk/info/200202/performance_and_spending/3233/government_procurement_cards,14-Oct-2021,Childrens Services,Amazon.co.uk YE9DN1M45,Childrens Services,15.63,DIRECT MARKETING-OTHER DIRECT MARKETERS/NOT ELSEW.,2021-22Q3_PC0259
Sandwell Metropolitan Borough Council,http://www.sandwell.gov.uk/info/200202/performance_and_spending/3233/government_procurement_cards,14-Oct-2021,Childrens Services,Amazon.co.uk MP5ZJ6Z25,Childrens Services,15.63,DIRECT MARKETING-OTHER DIRECT MARKETERS/NOT ELSEW.,2021-22Q3_PC0260
Sandwell Metropolitan Borough Council,http://www.sandwell.gov.uk/info/200202/performance_and_spending/3233/government_procurement_cards,14-Oct-2021,Director of Law & Governance,BCC CLEAN AIR ZONE,Assistant Chief Executive (Excl SIU),8,COMPUTER SOFTWARE STORES,2021-22Q3_PC0261
Sandwell Metropolitan Borough Council,http://www.sandwell.gov.uk/info/200202/performance_and_spending/3233/government_procurement_cards,15-Oct-2021,Total Housing Revenue Account,TILE CHOICE LTD,Total Housing Revenue Account,9.45,"BUILDING MATERIALS, LUMBER STORES",2021-22Q3_PC0262
Sandwell Metropolitan Borough Council,http://www.sandwell.gov.uk/info/200202/performance_and_spending/3233/government_procurement_cards,15-Oct-2021,Total Housing Revenue Account,TRAVIS PERKINS,Total Housing Revenue Account,67.79,"BUILDING MATERIALS, LUMBER STORES",2021-22Q3_PC0263
Sandwell Metropolitan Borough Council,http://www.sandwell.gov.uk/info/200202/performance_and_spending/3233/government_procurement_cards,15-Oct-2021,Total Housing Revenue Account,BIRMINGHAM TELECOMMUNI,Total Housing Revenue Account,892.56,TELECOMMUNICATION EQUIPMENT INCL TELEPHONE SALES,2021-22Q3_PC0264
Sandwell Metropolitan Borough Council,http://www.sandwell.gov.uk/info/200202/performance_and_spending/3233/government_procurement_cards,15-Oct-2021,Total Housing Revenue Account,Amazon.co.uk 2N7QC5TQ5,Total Housing Revenue Account,59.27,DIRECT MARKETING-OTHER DIRECT MARKETERS/NOT ELSEW.,2021-22Q3_PC0265
Sandwell Metropolitan Borough Council,http://www.sandwell.gov.uk/info/200202/performance_and_spending/3233/government_procurement_cards,15-Oct-2021,Total Borough Economy,WWW.EARLYYEARSRESOURCE,Neighbourhoods,187.19,MISCELLANEOUS AND SPECIALTY RETAIL STORES,2021-22Q3_PC0266
Sandwell Metropolitan Borough Council,http://www.sandwell.gov.uk/info/200202/performance_and_spending/3233/government_procurement_cards,15-Oct-2021,Total Borough Economy,SEATED FURNITURE LTD,Neighbourhoods,158.93,"EQUIP, FURNITURE, HOME FURNSHNGS STRS (EXCPT APPL)",2021-22Q3_PC0267
Sandwell Metropolitan Borough Council,http://www.sandwell.gov.uk/info/200202/performance_and_spending/3233/government_procurement_cards,15-Oct-2021,Total Borough Economy,AMZNMktplace,Neighbourhoods,38.66,MISCELLANEOUS AND SPECIALTY RETAIL STORES,2021-22Q3_PC0268
Sandwell Metropolitan Borough Council,http://www.sandwell.gov.uk/info/200202/performance_and_spending/3233/government_procurement_cards,15-Oct-2021,Total Borough Economy,Amazon.co.uk ZW92V5YH5,Neighbourhoods,15.89,DIRECT MARKETING-OTHER DIRECT MARKETERS/NOT ELSEW.,2021-22Q3_PC0269
Sandwell Metropolitan Borough Council,http://www.sandwell.gov.uk/info/200202/performance_and_spending/3233/government_procurement_cards,15-Oct-2021,Total Borough Economy,AMZNMktplace,Neighbourhoods,29.98,MISCELLANEOUS AND SPECIALTY RETAIL STORES,2021-22Q3_PC0270
Sandwell Metropolitan Borough Council,http://www.sandwell.gov.uk/info/200202/performance_and_spending/3233/government_procurement_cards,15-Oct-2021,Total Borough Economy,TESCO STORES 5503,Neighbourhoods,7.55,"GROCERY STORES, SUPERMARKETS",2021-22Q3_PC0271
Sandwell Metropolitan Borough Council,http://www.sandwell.gov.uk/info/200202/performance_and_spending/3233/government_procurement_cards,15-Oct-2021,Total Borough Economy,TESCO STORES 2335,Neighbourhoods,22.62,"GROCERY STORES, SUPERMARKETS",2021-22Q3_PC0272
Sandwell Metropolitan Borough Council,http://www.sandwell.gov.uk/info/200202/performance_and_spending/3233/government_procurement_cards,15-Oct-2021,Total Borough Economy,AMZNMKTPLACE AMAZON.CO,Neighbourhoods,12.91,MISCELLANEOUS AND SPECIALTY RETAIL STORES,2021-22Q3_PC0273
Sandwell Metropolitan Borough Council,http://www.sandwell.gov.uk/info/200202/performance_and_spending/3233/government_procurement_cards,15-Oct-2021,Total Public Health,Amazon Prime P76FD33G5,Public Health,7.99,DIRECT MARKETING-CONTINUITY/SUBSCRIPTION MERCHANTS,2021-22Q3_PC0274
Sandwell Metropolitan Borough Council,http://www.sandwell.gov.uk/info/200202/performance_and_spending/3233/government_procurement_cards,15-Oct-2021,Total Borough Economy,AMZ Displaysense UK,Neighbourhoods,558.58,BUSINESS SERVICES-NOT ELSEWHERE CLASSIFIED,2021-22Q3_PC0275
Sandwell Metropolitan Borough Council,http://www.sandwell.gov.uk/info/200202/performance_and_spending/3233/government_procurement_cards,15-Oct-2021,Total Borough Economy,AMZNMktplace,Neighbourhoods,64.17,MISCELLANEOUS AND SPECIALTY RETAIL STORES,2021-22Q3_PC0276
Sandwell Metropolitan Borough Council,http://www.sandwell.gov.uk/info/200202/performance_and_spending/3233/government_procurement_cards,15-Oct-2021,Director of Law & Governance,SCREWFIX DIRECT,Assistant Chief Executive (Excl SIU),97.86,"BUILDING MATERIALS, LUMBER STORES",2021-22Q3_PC0277
Sandwell Metropolitan Borough Council,http://www.sandwell.gov.uk/info/200202/performance_and_spending/3233/government_procurement_cards,15-Oct-2021,Total Borough Economy,AMZNMKTPLACE AMAZON.CO,Regeneration And The Economy,47.99,MISCELLANEOUS AND SPECIALTY RETAIL STORES,2021-22Q3_PC0278
Sandwell Metropolitan Borough Council,http://www.sandwell.gov.uk/info/200202/performance_and_spending/3233/government_procurement_cards,15-Oct-2021,Total Borough Economy,PIXARTPRINTING,Neighbourhoods,51.66,MISCELLANEOUS PUBLISHING AND PRINTING,2021-22Q3_PC0279
Sandwell Metropolitan Borough Council,http://www.sandwell.gov.uk/info/200202/performance_and_spending/3233/government_procurement_cards,15-Oct-2021,Total Borough Economy,WWW.AVANTIWESTCOAST.CO,Neighbourhoods,106.8,PASSENGER RAILWAYS,2021-22Q3_PC0280
Sandwell Metropolitan Borough Council,http://www.sandwell.gov.uk/info/200202/performance_and_spending/3233/government_procurement_cards,15-Oct-2021,Total ASCHWB,Amazon Prime ZU4JO20M5,Total Adult Social Care,7.99,DIRECT MARKETING-CONTINUITY/SUBSCRIPTION MERCHANTS,2021-22Q3_PC0281
Sandwell Metropolitan Borough Council,http://www.sandwell.gov.uk/info/200202/performance_and_spending/3233/government_procurement_cards,15-Oct-2021,Total ASCHWB,Amazon Prime EC6330L15,Total Adult Social Care,7.99,DIRECT MARKETING-CONTINUITY/SUBSCRIPTION MERCHANTS,2021-22Q3_PC0282
Sandwell Metropolitan Borough Council,http://www.sandwell.gov.uk/info/200202/performance_and_spending/3233/government_procurement_cards,15-Oct-2021,Housing & Assets Total,ARGOS LTD,Neighbourhoods,179.99,DISCOUNT STORES,2021-22Q3_PC0283
Sandwell Metropolitan Borough Council,http://www.sandwell.gov.uk/info/200202/performance_and_spending/3233/government_procurement_cards,15-Oct-2021,Childrens Services,AMZNMktplace,Childrens Services,77,MISCELLANEOUS AND SPECIALTY RETAIL STORES,2021-22Q3_PC0284
Sandwell Metropolitan Borough Council,http://www.sandwell.gov.uk/info/200202/performance_and_spending/3233/government_procurement_cards,15-Oct-2021,Childrens Services,ASDA,Childrens Services,13.3,"GROCERY STORES, SUPERMARKETS",2021-22Q3_PC0285
Sandwell Metropolitan Borough Council,http://www.sandwell.gov.uk/info/200202/performance_and_spending/3233/government_procurement_cards,15-Oct-2021,Childrens Services,YORKSHIRE PURCHASING O,Childrens Services,116.17,STATIONERY/OFFICE SUPPLIES/PRINTING & WRITING PAP.,2021-22Q3_PC0286
Sandwell Metropolitan Borough Council,http://www.sandwell.gov.uk/info/200202/performance_and_spending/3233/government_procurement_cards,15-Oct-2021,Childrens Services,ALDI 62 772,Childrens Services,9.51,"GROCERY STORES, SUPERMARKETS",2021-22Q3_PC0287
Sandwell Metropolitan Borough Council,http://www.sandwell.gov.uk/info/200202/performance_and_spending/3233/government_procurement_cards,15-Oct-2021,Childrens Services,WICKES BUILDING,Childrens Services,27.76,"BUILDING MATERIALS, LUMBER STORES",2021-22Q3_PC0288
Sandwell Metropolitan Borough Council,http://www.sandwell.gov.uk/info/200202/performance_and_spending/3233/government_procurement_cards,15-Oct-2021,Individual School Budgets With Inclusion,Amazon.co.uk SI57L6955,Individual School Budgets With Inclusion,170.88,DIRECT MARKETING-OTHER DIRECT MARKETERS/NOT ELSEW.,2021-22Q3_PC0289
Sandwell Metropolitan Borough Council,http://www.sandwell.gov.uk/info/200202/performance_and_spending/3233/government_procurement_cards,15-Oct-2021,Childrens Services,WWW.TTS-GROUPS.CO.UK,Childrens Services,82.72,"OFFICE, SCHOOL SUPPLY, AND STATIONERY STORES",2021-22Q3_PC0290
Sandwell Metropolitan Borough Council,http://www.sandwell.gov.uk/info/200202/performance_and_spending/3233/government_procurement_cards,15-Oct-2021,Childrens Services,Amazon.co.uk OY2OS1715,Childrens Services,14.91,DIRECT MARKETING-OTHER DIRECT MARKETERS/NOT ELSEW.,2021-22Q3_PC0291
Sandwell Metropolitan Borough Council,http://www.sandwell.gov.uk/info/200202/performance_and_spending/3233/government_procurement_cards,15-Oct-2021,Childrens Services,AMZNMktplace,Childrens Services,7.06,MISCELLANEOUS AND SPECIALTY RETAIL STORES,2021-22Q3_PC0292
Sandwell Metropolitan Borough Council,http://www.sandwell.gov.uk/info/200202/performance_and_spending/3233/government_procurement_cards,15-Oct-2021,Childrens Services,Amazon.co.uk ZH1DS4W35,Childrens Services,18.98,DIRECT MARKETING-OTHER DIRECT MARKETERS/NOT ELSEW.,2021-22Q3_PC0293
Sandwell Metropolitan Borough Council,http://www.sandwell.gov.uk/info/200202/performance_and_spending/3233/government_procurement_cards,15-Oct-2021,Childrens Services,Amazon.co.uk KW77B5M85,Childrens Services,28.47,DIRECT MARKETING-OTHER DIRECT MARKETERS/NOT ELSEW.,2021-22Q3_PC0294
Sandwell Metropolitan Borough Council,http://www.sandwell.gov.uk/info/200202/performance_and_spending/3233/government_procurement_cards,15-Oct-2021,Childrens Services,Amazon.co.uk V801B6525,Childrens Services,28.47,DIRECT MARKETING-OTHER DIRECT MARKETERS/NOT ELSEW.,2021-22Q3_PC0295
Sandwell Metropolitan Borough Council,http://www.sandwell.gov.uk/info/200202/performance_and_spending/3233/government_procurement_cards,15-Oct-2021,Childrens Services,TIMPSON LTD,Childrens Services,12,MISCELLANEOUS AND SPECIALTY RETAIL STORES,2021-22Q3_PC0296
Sandwell Metropolitan Borough Council,http://www.sandwell.gov.uk/info/200202/performance_and_spending/3233/government_procurement_cards,15-Oct-2021,Director of Law & Governance,AMZNMktplace,Assistant Chief Executive (Excl SIU),9.99,MISCELLANEOUS AND SPECIALTY RETAIL STORES,2021-22Q3_PC0297
Sandwell Metropolitan Borough Council,http://www.sandwell.gov.uk/info/200202/performance_and_spending/3233/government_procurement_cards,15-Oct-2021,Director of Law & Governance,Amazon Prime CG3LE4YH5,Assistant Chief Executive (Excl SIU),7.99,DIRECT MARKETING-CONTINUITY/SUBSCRIPTION MERCHANTS,2021-22Q3_PC0298
Sandwell Metropolitan Borough Council,http://www.sandwell.gov.uk/info/200202/performance_and_spending/3233/government_procurement_cards,18-Oct-2021,Regeneration And The Economy Capital,BRIGHTKIDZ,#N/A,19.2,MISCELLANEOUS GENERAL MERCHANDISE,2021-22Q3_PC0299
Sandwell Metropolitan Borough Council,http://www.sandwell.gov.uk/info/200202/performance_and_spending/3233/government_procurement_cards,18-Oct-2021,Total Housing Revenue Account,AMZNMktplace,Total Housing Revenue Account,18.81,MISCELLANEOUS AND SPECIALTY RETAIL STORES,2021-22Q3_PC0300
Sandwell Metropolitan Borough Council,http://www.sandwell.gov.uk/info/200202/performance_and_spending/3233/government_procurement_cards,18-Oct-2021,Total Housing Revenue Account,AMZNMktplace,Total Housing Revenue Account,13.98,MISCELLANEOUS AND SPECIALTY RETAIL STORES,2021-22Q3_PC0301
Sandwell Metropolitan Borough Council,http://www.sandwell.gov.uk/info/200202/performance_and_spending/3233/government_procurement_cards,18-Oct-2021,Housing & Assets Total,SAINSBURYS S/MKTS,Neighbourhoods,7.6,"GROCERY STORES, SUPERMARKETS",2021-22Q3_PC0302
Sandwell Metropolitan Borough Council,http://www.sandwell.gov.uk/info/200202/performance_and_spending/3233/government_procurement_cards,18-Oct-2021,Total Public Health,ADOBE CREATIVE CLOUD,Public Health,49.94,COMPUTER SOFTWARE STORES,2021-22Q3_PC0303
Sandwell Metropolitan Borough Council,http://www.sandwell.gov.uk/info/200202/performance_and_spending/3233/government_procurement_cards,18-Oct-2021,Total Borough Economy,AMZNMktplace,Neighbourhoods,35.56,MISCELLANEOUS AND SPECIALTY RETAIL STORES,2021-22Q3_PC0304
Sandwell Metropolitan Borough Council,http://www.sandwell.gov.uk/info/200202/performance_and_spending/3233/government_procurement_cards,18-Oct-2021,Total Borough Economy,AMZNMKTPLACE AMAZON.CO,Neighbourhoods,30.98,MISCELLANEOUS AND SPECIALTY RETAIL STORES,2021-22Q3_PC0305
Sandwell Metropolitan Borough Council,http://www.sandwell.gov.uk/info/200202/performance_and_spending/3233/government_procurement_cards,18-Oct-2021,Total Borough Economy,AMZNMktplace,Neighbourhoods,35.98,MISCELLANEOUS AND SPECIALTY RETAIL STORES,2021-22Q3_PC0306
Sandwell Metropolitan Borough Council,http://www.sandwell.gov.uk/info/200202/performance_and_spending/3233/government_procurement_cards,18-Oct-2021,Total Borough Economy,MONMORE CONFECTIONERY,Neighbourhoods,18.59,"CANDY, NUT, CONFECTIONERY STORES",2021-22Q3_PC0307
Sandwell Metropolitan Borough Council,http://www.sandwell.gov.uk/info/200202/performance_and_spending/3233/government_procurement_cards,18-Oct-2021,Total Borough Economy,SAINSBURYS S/MKTS,Neighbourhoods,22.5,"GROCERY STORES, SUPERMARKETS",2021-22Q3_PC0308
Sandwell Metropolitan Borough Council,http://www.sandwell.gov.uk/info/200202/performance_and_spending/3233/government_procurement_cards,18-Oct-2021,Total Borough Economy,WETRANSFER,Neighbourhoods,10.49,"COMP PROGRAMING,DATA PRCSNG,INTGRTD SYS DSGN SRVS",2021-22Q3_PC0309
Sandwell Metropolitan Borough Council,http://www.sandwell.gov.uk/info/200202/performance_and_spending/3233/government_procurement_cards,18-Oct-2021,Total Borough Economy,POST OFFICE COUNTER,Neighbourhoods,5.97,POSTAL SERVICES-GOVERNMENT ONLY,2021-22Q3_PC0310
Sandwell Metropolitan Borough Council,http://www.sandwell.gov.uk/info/200202/performance_and_spending/3233/government_procurement_cards,18-Oct-2021,Total Borough Economy,HALLOWEEN HOUSE,Neighbourhoods,28.53,FAMILY CLOTHING STORES,2021-22Q3_PC0311
Sandwell Metropolitan Borough Council,http://www.sandwell.gov.uk/info/200202/performance_and_spending/3233/government_procurement_cards,18-Oct-2021,Total Borough Economy,GLOBAL FOODS (BHAM) LT,Neighbourhoods,8.99,"PACKAGE STORES, BEER, WINE, LIQUOR",2021-22Q3_PC0312
Sandwell Metropolitan Borough Council,http://www.sandwell.gov.uk/info/200202/performance_and_spending/3233/government_procurement_cards,18-Oct-2021,Total Borough Economy,MAJESTIC WINE,Neighbourhoods,141.98,"PACKAGE STORES, BEER, WINE, LIQUOR",2021-22Q3_PC0313
Sandwell Metropolitan Borough Council,http://www.sandwell.gov.uk/info/200202/performance_and_spending/3233/government_procurement_cards,18-Oct-2021,Total Borough Economy,MAJESTIC WINE,Neighbourhoods,40,"PACKAGE STORES, BEER, WINE, LIQUOR",2021-22Q3_PC0314
Sandwell Metropolitan Borough Council,http://www.sandwell.gov.uk/info/200202/performance_and_spending/3233/government_procurement_cards,18-Oct-2021,Total Public Health,Piri Pro,Public Health,94.85,"EATING PLACES, RESTAURANTS",2021-22Q3_PC0315
Sandwell Metropolitan Borough Council,http://www.sandwell.gov.uk/info/200202/performance_and_spending/3233/government_procurement_cards,18-Oct-2021,Total Borough Economy,WWW.BUNZLCLEANINGSUPPL,Neighbourhoods,216.6,"CLEANING AND MAINTENANCE, JANITORIAL SERVICES",2021-22Q3_PC0316
Sandwell Metropolitan Borough Council,http://www.sandwell.gov.uk/info/200202/performance_and_spending/3233/government_procurement_cards,18-Oct-2021,Total Borough Economy,AMZNMktplace,Neighbourhoods,19.3,MISCELLANEOUS AND SPECIALTY RETAIL STORES,2021-22Q3_PC0317
Sandwell Metropolitan Borough Council,http://www.sandwell.gov.uk/info/200202/performance_and_spending/3233/government_procurement_cards,18-Oct-2021,Total Borough Economy,AMZNMKTPLACE AMAZON.CO,Neighbourhoods,56.84,MISCELLANEOUS AND SPECIALTY RETAIL STORES,2021-22Q3_PC0318
Sandwell Metropolitan Borough Council,http://www.sandwell.gov.uk/info/200202/performance_and_spending/3233/government_procurement_cards,18-Oct-2021,Total Borough Economy,AMZNMktplace,Neighbourhoods,140.51,MISCELLANEOUS AND SPECIALTY RETAIL STORES,2021-22Q3_PC0319
Sandwell Metropolitan Borough Council,http://www.sandwell.gov.uk/info/200202/performance_and_spending/3233/government_procurement_cards,18-Oct-2021,Director of Law & Governance,AMZNMktplace,Assistant Chief Executive (Excl SIU),140.19,MISCELLANEOUS AND SPECIALTY RETAIL STORES,2021-22Q3_PC0320
Sandwell Metropolitan Borough Council,http://www.sandwell.gov.uk/info/200202/performance_and_spending/3233/government_procurement_cards,18-Oct-2021,Director of Law & Governance,WWW.OFFICETEAMCONNECT.,Assistant Chief Executive (Excl SIU),61.3,STATIONERY/OFFICE SUPPLIES/PRINTING & WRITING PAP.,2021-22Q3_PC0321
Sandwell Metropolitan Borough Council,http://www.sandwell.gov.uk/info/200202/performance_and_spending/3233/government_procurement_cards,18-Oct-2021,Total Borough Economy,AMZNMKTPLACE AMAZON.CO,Total Adult Social Care,68.18,MISCELLANEOUS AND SPECIALTY RETAIL STORES,2021-22Q3_PC0322
Sandwell Metropolitan Borough Council,http://www.sandwell.gov.uk/info/200202/performance_and_spending/3233/government_procurement_cards,18-Oct-2021,Total Borough Economy,AMZNMktplace,Total Adult Social Care,59.99,MISCELLANEOUS AND SPECIALTY RETAIL STORES,2021-22Q3_PC0323
Sandwell Metropolitan Borough Council,http://www.sandwell.gov.uk/info/200202/performance_and_spending/3233/government_procurement_cards,18-Oct-2021,Total Borough Economy,PREMIER INN,Neighbourhoods,132,PREMIER INN,2021-22Q3_PC0324
Sandwell Metropolitan Borough Council,http://www.sandwell.gov.uk/info/200202/performance_and_spending/3233/government_procurement_cards,18-Oct-2021,Regeneration & Growth,SMS CONNECTIONS,Regeneration And The Economy,694.51,"FUEL DEALERS-COAL, FUEL OIL, LIQ PETROLEUM, WOOD",2021-22Q3_PC0325
Sandwell Metropolitan Borough Council,http://www.sandwell.gov.uk/info/200202/performance_and_spending/3233/government_procurement_cards,18-Oct-2021,Regeneration & Growth,AMZNMktplace,Regeneration And The Economy,6.5,MISCELLANEOUS AND SPECIALTY RETAIL STORES,2021-22Q3_PC0326
Sandwell Metropolitan Borough Council,http://www.sandwell.gov.uk/info/200202/performance_and_spending/3233/government_procurement_cards,18-Oct-2021,Regeneration & Growth,AMZNMktplace,Regeneration And The Economy,6.5,MISCELLANEOUS AND SPECIALTY RETAIL STORES,2021-22Q3_PC0327
Sandwell Metropolitan Borough Council,http://www.sandwell.gov.uk/info/200202/performance_and_spending/3233/government_procurement_cards,18-Oct-2021,Total Business Strategy & Change,ADOBE CREATIVE CLOUD,Total Adult Social Care,49.94,COMPUTER SOFTWARE STORES,2021-22Q3_PC0328
Sandwell Metropolitan Borough Council,http://www.sandwell.gov.uk/info/200202/performance_and_spending/3233/government_procurement_cards,18-Oct-2021,Total ASCHWB,AMZNMktplace,Total Adult Social Care,18.97,MISCELLANEOUS AND SPECIALTY RETAIL STORES,2021-22Q3_PC0329
Sandwell Metropolitan Borough Council,http://www.sandwell.gov.uk/info/200202/performance_and_spending/3233/government_procurement_cards,18-Oct-2021,Total ASCHWB,AMZNMktplace,Total Adult Social Care,49.97,MISCELLANEOUS AND SPECIALTY RETAIL STORES,2021-22Q3_PC0330
Sandwell Metropolitan Borough Council,http://www.sandwell.gov.uk/info/200202/performance_and_spending/3233/government_procurement_cards,18-Oct-2021,Total ASCHWB,AMZNMKTPLACE AMAZON.CO,Total Adult Social Care,65.99,MISCELLANEOUS AND SPECIALTY RETAIL STORES,2021-22Q3_PC0331
Sandwell Metropolitan Borough Council,http://www.sandwell.gov.uk/info/200202/performance_and_spending/3233/government_procurement_cards,18-Oct-2021,Childrens Services,Spotify P177B890EB,Childrens Services,9.99,DIGITAL GOODS AUDIOVISUAL MEDIA,2021-22Q3_PC0332
Sandwell Metropolitan Borough Council,http://www.sandwell.gov.uk/info/200202/performance_and_spending/3233/government_procurement_cards,18-Oct-2021,Childrens Services,AMZNMktplace,Childrens Services,30.12,MISCELLANEOUS AND SPECIALTY RETAIL STORES,2021-22Q3_PC0333
Sandwell Metropolitan Borough Council,http://www.sandwell.gov.uk/info/200202/performance_and_spending/3233/government_procurement_cards,18-Oct-2021,Childrens Services,Amazon.co.uk 1P6KR4P65,Childrens Services,24.95,DIRECT MARKETING-OTHER DIRECT MARKETERS/NOT ELSEW.,2021-22Q3_PC0334
Sandwell Metropolitan Borough Council,http://www.sandwell.gov.uk/info/200202/performance_and_spending/3233/government_procurement_cards,18-Oct-2021,Childrens Services,Amazon.co.uk Y57N293Y5,Childrens Services,2,DIRECT MARKETING-OTHER DIRECT MARKETERS/NOT ELSEW.,2021-22Q3_PC0335
Sandwell Metropolitan Borough Council,http://www.sandwell.gov.uk/info/200202/performance_and_spending/3233/government_procurement_cards,18-Oct-2021,Childrens Services,ALDI 62 772,Childrens Services,4.71,"GROCERY STORES, SUPERMARKETS",2021-22Q3_PC0336
Sandwell Metropolitan Borough Council,http://www.sandwell.gov.uk/info/200202/performance_and_spending/3233/government_procurement_cards,18-Oct-2021,Childrens Services,LIDL GB STOURPORT,Childrens Services,5.46,"GROCERY STORES, SUPERMARKETS",2021-22Q3_PC0337
Sandwell Metropolitan Borough Council,http://www.sandwell.gov.uk/info/200202/performance_and_spending/3233/government_procurement_cards,18-Oct-2021,Childrens Services,TESCO STORES 2770,Childrens Services,-1.24,"GROCERY STORES, SUPERMARKETS",2021-22Q3_PC0338
Sandwell Metropolitan Borough Council,http://www.sandwell.gov.uk/info/200202/performance_and_spending/3233/government_procurement_cards,18-Oct-2021,Childrens Services,TESCO STORES 2770,Childrens Services,38.19,"GROCERY STORES, SUPERMARKETS",2021-22Q3_PC0339
Sandwell Metropolitan Borough Council,http://www.sandwell.gov.uk/info/200202/performance_and_spending/3233/government_procurement_cards,18-Oct-2021,Childrens Services,FARMFOODS 621,Childrens Services,14.2,"GROCERY STORES, SUPERMARKETS",2021-22Q3_PC0340
Sandwell Metropolitan Borough Council,http://www.sandwell.gov.uk/info/200202/performance_and_spending/3233/government_procurement_cards,18-Oct-2021,Childrens Services,VODAFONE LTD,Childrens Services,24.57,TELECOM INCL PREPAID/RECURRING PHONE SVCS,2021-22Q3_PC0341
Sandwell Metropolitan Borough Council,http://www.sandwell.gov.uk/info/200202/performance_and_spending/3233/government_procurement_cards,18-Oct-2021,Childrens Services,AMZNMktplace,Childrens Services,22.44,MISCELLANEOUS AND SPECIALTY RETAIL STORES,2021-22Q3_PC0342
Sandwell Metropolitan Borough Council,http://www.sandwell.gov.uk/info/200202/performance_and_spending/3233/government_procurement_cards,18-Oct-2021,Childrens Services,Amazon.co.uk DH1201335,Childrens Services,29.99,DIRECT MARKETING-OTHER DIRECT MARKETERS/NOT ELSEW.,2021-22Q3_PC0343
Sandwell Metropolitan Borough Council,http://www.sandwell.gov.uk/info/200202/performance_and_spending/3233/government_procurement_cards,18-Oct-2021,Childrens Services,Amazon.co.uk GZ04N1HH5,Childrens Services,39.77,DIRECT MARKETING-OTHER DIRECT MARKETERS/NOT ELSEW.,2021-22Q3_PC0344
Sandwell Metropolitan Borough Council,http://www.sandwell.gov.uk/info/200202/performance_and_spending/3233/government_procurement_cards,18-Oct-2021,Director of Law & Governance,TNA DISCOVERY ORDERS,Assistant Chief Executive (Excl SIU),8.4,GOVERNMENT SERVICES-NOT ELSEWHERE CLASSIFIED,2021-22Q3_PC0345
Sandwell Metropolitan Borough Council,http://www.sandwell.gov.uk/info/200202/performance_and_spending/3233/government_procurement_cards,18-Oct-2021,Director of Law & Governance,WWW.OFFICETEAMCONNECT.,Assistant Chief Executive (Excl SIU),50.12,STATIONERY/OFFICE SUPPLIES/PRINTING & WRITING PAP.,2021-22Q3_PC0346
Sandwell Metropolitan Borough Council,http://www.sandwell.gov.uk/info/200202/performance_and_spending/3233/government_procurement_cards,19-Oct-2021,Total Housing Revenue Account,Amazon.co.uk 0E2WS9UY5,Total Housing Revenue Account,19.96,DIRECT MARKETING-OTHER DIRECT MARKETERS/NOT ELSEW.,2021-22Q3_PC0347
Sandwell Metropolitan Borough Council,http://www.sandwell.gov.uk/info/200202/performance_and_spending/3233/government_procurement_cards,19-Oct-2021,Total Housing Revenue Account,Amazon.co.uk PS9S64QK5,Total Housing Revenue Account,19.96,DIRECT MARKETING-OTHER DIRECT MARKETERS/NOT ELSEW.,2021-22Q3_PC0348
Sandwell Metropolitan Borough Council,http://www.sandwell.gov.uk/info/200202/performance_and_spending/3233/government_procurement_cards,19-Oct-2021,Total Borough Economy,iZ  Forever Home,Neighbourhoods,74.93,MISCELLANEOUS AND SPECIALTY RETAIL STORES,2021-22Q3_PC0349
Sandwell Metropolitan Borough Council,http://www.sandwell.gov.uk/info/200202/performance_and_spending/3233/government_procurement_cards,19-Oct-2021,Total Borough Economy,ASDA SUPERSTORE,Neighbourhoods,4,"GROCERY STORES, SUPERMARKETS",2021-22Q3_PC0350
Sandwell Metropolitan Borough Council,http://www.sandwell.gov.uk/info/200202/performance_and_spending/3233/government_procurement_cards,19-Oct-2021,Total Borough Economy,WWW.BRITISHGAS.CO.,Neighbourhoods,90.47,"UTLTS-ELCTRC, GAS, HEATING OIL, SANITARY, WATER",2021-22Q3_PC0351
Sandwell Metropolitan Borough Council,http://www.sandwell.gov.uk/info/200202/performance_and_spending/3233/government_procurement_cards,19-Oct-2021,Total Public Health,BOUDEN TRAVEL LTD,Public Health,475,BUS LINES,2021-22Q3_PC0352
Sandwell Metropolitan Borough Council,http://www.sandwell.gov.uk/info/200202/performance_and_spending/3233/government_procurement_cards,19-Oct-2021,Total Business Strategy & Change,AMZNMktplace,Assistant Chief Executive (Excl SIU),26.26,MISCELLANEOUS AND SPECIALTY RETAIL STORES,2021-22Q3_PC0353
Sandwell Metropolitan Borough Council,http://www.sandwell.gov.uk/info/200202/performance_and_spending/3233/government_procurement_cards,19-Oct-2021,Total Business Strategy & Change,AMZNMktplace,Assistant Chief Executive (Excl SIU),185.98,MISCELLANEOUS AND SPECIALTY RETAIL STORES,2021-22Q3_PC0354
Sandwell Metropolitan Borough Council,http://www.sandwell.gov.uk/info/200202/performance_and_spending/3233/government_procurement_cards,19-Oct-2021,Regeneration & Growth,AMZNMktplace,Regeneration And The Economy,24.99,MISCELLANEOUS AND SPECIALTY RETAIL STORES,2021-22Q3_PC0355
Sandwell Metropolitan Borough Council,http://www.sandwell.gov.uk/info/200202/performance_and_spending/3233/government_procurement_cards,19-Oct-2021,Total Borough Economy,AMZNMktplace,Neighbourhoods,33.97,MISCELLANEOUS AND SPECIALTY RETAIL STORES,2021-22Q3_PC0356
Sandwell Metropolitan Borough Council,http://www.sandwell.gov.uk/info/200202/performance_and_spending/3233/government_procurement_cards,19-Oct-2021,Total Business Strategy & Change,ADOBE CREATIVE CLOUD,Total Adult Social Care,49.94,COMPUTER SOFTWARE STORES,2021-22Q3_PC0357
Sandwell Metropolitan Borough Council,http://www.sandwell.gov.uk/info/200202/performance_and_spending/3233/government_procurement_cards,19-Oct-2021,Total ASCHWB,AMZNMKTPLACE AMAZON.CO,Total Adult Social Care,109.81,MISCELLANEOUS AND SPECIALTY RETAIL STORES,2021-22Q3_PC0358
Sandwell Metropolitan Borough Council,http://www.sandwell.gov.uk/info/200202/performance_and_spending/3233/government_procurement_cards,19-Oct-2021,Childrens Services,ALDI 62 772,Childrens Services,30.51,"GROCERY STORES, SUPERMARKETS",2021-22Q3_PC0359
Sandwell Metropolitan Borough Council,http://www.sandwell.gov.uk/info/200202/performance_and_spending/3233/government_procurement_cards,19-Oct-2021,Childrens Services,TESCO STORES 2770,Childrens Services,15.19,"GROCERY STORES, SUPERMARKETS",2021-22Q3_PC0360
Sandwell Metropolitan Borough Council,http://www.sandwell.gov.uk/info/200202/performance_and_spending/3233/government_procurement_cards,19-Oct-2021,Childrens Services,AMZNMktplace,Childrens Services,20.89,MISCELLANEOUS AND SPECIALTY RETAIL STORES,2021-22Q3_PC0361
Sandwell Metropolitan Borough Council,http://www.sandwell.gov.uk/info/200202/performance_and_spending/3233/government_procurement_cards,19-Oct-2021,Childrens Services,AMZNMKTPLACE AMAZON.CO,Childrens Services,48.17,MISCELLANEOUS AND SPECIALTY RETAIL STORES,2021-22Q3_PC0362
Sandwell Metropolitan Borough Council,http://www.sandwell.gov.uk/info/200202/performance_and_spending/3233/government_procurement_cards,19-Oct-2021,Childrens Services,Amazon.co.uk 5N4LO27P5,Childrens Services,39.92,DIRECT MARKETING-OTHER DIRECT MARKETERS/NOT ELSEW.,2021-22Q3_PC0363
Sandwell Metropolitan Borough Council,http://www.sandwell.gov.uk/info/200202/performance_and_spending/3233/government_procurement_cards,19-Oct-2021,Individual School Budgets With Inclusion,PATOSS LTD,Individual School Budgets With Inclusion,126,"ASSOCIATIONS-CIVIC, SOCIAL, AND FRATERNAL",2021-22Q3_PC0364
Sandwell Metropolitan Borough Council,http://www.sandwell.gov.uk/info/200202/performance_and_spending/3233/government_procurement_cards,19-Oct-2021,Director of Law & Governance,AMZNMktplace,Assistant Chief Executive (Excl SIU),143.23,MISCELLANEOUS AND SPECIALTY RETAIL STORES,2021-22Q3_PC0365
Sandwell Metropolitan Borough Council,http://www.sandwell.gov.uk/info/200202/performance_and_spending/3233/government_procurement_cards,19-Oct-2021,Corporate Management,Trainline.COM,Corporate Management,44.48,PASSENGER RAILWAYS,2021-22Q3_PC0366
Sandwell Metropolitan Borough Council,http://www.sandwell.gov.uk/info/200202/performance_and_spending/3233/government_procurement_cards,20-Oct-2021,Total Housing Revenue Account,AMZNMktplace,Total Housing Revenue Account,14.98,MISCELLANEOUS AND SPECIALTY RETAIL STORES,2021-22Q3_PC0367
Sandwell Metropolitan Borough Council,http://www.sandwell.gov.uk/info/200202/performance_and_spending/3233/government_procurement_cards,20-Oct-2021,Total Housing Revenue Account,AMZNMktplace,Total Housing Revenue Account,69.8,MISCELLANEOUS AND SPECIALTY RETAIL STORES,2021-22Q3_PC0368
Sandwell Metropolitan Borough Council,http://www.sandwell.gov.uk/info/200202/performance_and_spending/3233/government_procurement_cards,20-Oct-2021,Total Housing Revenue Account,AMZNMktplace,Total Housing Revenue Account,19.37,MISCELLANEOUS AND SPECIALTY RETAIL STORES,2021-22Q3_PC0369
Sandwell Metropolitan Borough Council,http://www.sandwell.gov.uk/info/200202/performance_and_spending/3233/government_procurement_cards,20-Oct-2021,Total Borough Economy,AMZNMktplace,Total Adult Social Care,19.46,MISCELLANEOUS AND SPECIALTY RETAIL STORES,2021-22Q3_PC0370
Sandwell Metropolitan Borough Council,http://www.sandwell.gov.uk/info/200202/performance_and_spending/3233/government_procurement_cards,20-Oct-2021,Total Borough Economy,AMZNMktplace,Neighbourhoods,20.77,MISCELLANEOUS AND SPECIALTY RETAIL STORES,2021-22Q3_PC0371
Sandwell Metropolitan Borough Council,http://www.sandwell.gov.uk/info/200202/performance_and_spending/3233/government_procurement_cards,20-Oct-2021,Housing & Assets Total,AMZNMktplace,Neighbourhoods,13.44,MISCELLANEOUS AND SPECIALTY RETAIL STORES,2021-22Q3_PC0372
Sandwell Metropolitan Borough Council,http://www.sandwell.gov.uk/info/200202/performance_and_spending/3233/government_procurement_cards,20-Oct-2021,Regeneration & Growth,AMZNMktplace,Regeneration And The Economy,59.99,MISCELLANEOUS AND SPECIALTY RETAIL STORES,2021-22Q3_PC0373
Sandwell Metropolitan Borough Council,http://www.sandwell.gov.uk/info/200202/performance_and_spending/3233/government_procurement_cards,20-Oct-2021,Total Borough Economy,AMZNMKTPLACE AMAZON.CO,Neighbourhoods,11.98,MISCELLANEOUS AND SPECIALTY RETAIL STORES,2021-22Q3_PC0374
Sandwell Metropolitan Borough Council,http://www.sandwell.gov.uk/info/200202/performance_and_spending/3233/government_procurement_cards,20-Oct-2021,Total Borough Economy,AMZNMKTPLACE AMAZON.CO,Neighbourhoods,60.96,MISCELLANEOUS AND SPECIALTY RETAIL STORES,2021-22Q3_PC0375
Sandwell Metropolitan Borough Council,http://www.sandwell.gov.uk/info/200202/performance_and_spending/3233/government_procurement_cards,20-Oct-2021,Total Borough Economy,ASDA SUPERSTORE,Neighbourhoods,25.2,"GROCERY STORES, SUPERMARKETS",2021-22Q3_PC0376
Sandwell Metropolitan Borough Council,http://www.sandwell.gov.uk/info/200202/performance_and_spending/3233/government_procurement_cards,20-Oct-2021,Director of Law & Governance,AMZNMktplace,Assistant Chief Executive (Excl SIU),13.89,MISCELLANEOUS AND SPECIALTY RETAIL STORES,2021-22Q3_PC0377
Sandwell Metropolitan Borough Council,http://www.sandwell.gov.uk/info/200202/performance_and_spending/3233/government_procurement_cards,20-Oct-2021,Director of Law & Governance,Amazon.co.uk JV4N31RO5,Assistant Chief Executive (Excl SIU),122.38,DIRECT MARKETING-OTHER DIRECT MARKETERS/NOT ELSEW.,2021-22Q3_PC0378
Sandwell Metropolitan Borough Council,http://www.sandwell.gov.uk/info/200202/performance_and_spending/3233/government_procurement_cards,20-Oct-2021,Regeneration & Growth,AMZNMktplace,Regeneration And The Economy,7.5,MISCELLANEOUS AND SPECIALTY RETAIL STORES,2021-22Q3_PC0379
Sandwell Metropolitan Borough Council,http://www.sandwell.gov.uk/info/200202/performance_and_spending/3233/government_procurement_cards,20-Oct-2021,FINANCE (Inc SIU),AMZNMktplace,Total Adult Social Care,42.83,MISCELLANEOUS AND SPECIALTY RETAIL STORES,2021-22Q3_PC0380
Sandwell Metropolitan Borough Council,http://www.sandwell.gov.uk/info/200202/performance_and_spending/3233/government_procurement_cards,20-Oct-2021,Total ASCHWB,AMZNMktplace,Total Adult Social Care,112.9,MISCELLANEOUS AND SPECIALTY RETAIL STORES,2021-22Q3_PC0381
Sandwell Metropolitan Borough Council,http://www.sandwell.gov.uk/info/200202/performance_and_spending/3233/government_procurement_cards,20-Oct-2021,Housing & Assets Total,Amazon Prime IK0N38CR5,Neighbourhoods,7.99,DIRECT MARKETING-CONTINUITY/SUBSCRIPTION MERCHANTS,2021-22Q3_PC0382
Sandwell Metropolitan Borough Council,http://www.sandwell.gov.uk/info/200202/performance_and_spending/3233/government_procurement_cards,20-Oct-2021,Childrens Services,WWW.NISBETS.COM,Childrens Services,53.99,DIRECT MARKETING-CATALOG MERCHANTS,2021-22Q3_PC0383
Sandwell Metropolitan Borough Council,http://www.sandwell.gov.uk/info/200202/performance_and_spending/3233/government_procurement_cards,20-Oct-2021,Childrens Services,thetrainline.com,Childrens Services,44.48,PASSENGER RAILWAYS,2021-22Q3_PC0384
Sandwell Metropolitan Borough Council,http://www.sandwell.gov.uk/info/200202/performance_and_spending/3233/government_procurement_cards,20-Oct-2021,Childrens Services,AMZNMKTPLACE AMAZON.CO,Childrens Services,21.98,MISCELLANEOUS AND SPECIALTY RETAIL STORES,2021-22Q3_PC0385
Sandwell Metropolitan Borough Council,http://www.sandwell.gov.uk/info/200202/performance_and_spending/3233/government_procurement_cards,20-Oct-2021,Corporate Management,Trainline.COM,Corporate Management,30.1,PASSENGER RAILWAYS,2021-22Q3_PC0386
Sandwell Metropolitan Borough Council,http://www.sandwell.gov.uk/info/200202/performance_and_spending/3233/government_procurement_cards,20-Oct-2021,Total Business Strategy & Change,ALEXANDRA WEBSITE,Assistant Chief Executive (Excl SIU),38.74,MEN'S/WOMEN'S/CHILDREN'S UNIFORMS/COMMERCIAL CLOTH,2021-22Q3_PC0387
Sandwell Metropolitan Borough Council,http://www.sandwell.gov.uk/info/200202/performance_and_spending/3233/government_procurement_cards,21-Oct-2021,Total Housing Revenue Account,CAPITA GAS,Total Housing Revenue Account,31.18,"ORGANIZATIONS, MEMBERSHIP-NOT ELSEWHERE CLASSIFIED",2021-22Q3_PC0388
Sandwell Metropolitan Borough Council,http://www.sandwell.gov.uk/info/200202/performance_and_spending/3233/government_procurement_cards,21-Oct-2021,Housing & Assets Total,KENT COUNTY COUNCIL,Neighbourhoods,11,GOVERNMENT SERVICES-NOT ELSEWHERE CLASSIFIED,2021-22Q3_PC0389
Sandwell Metropolitan Borough Council,http://www.sandwell.gov.uk/info/200202/performance_and_spending/3233/government_procurement_cards,21-Oct-2021,Housing & Assets Total,AMZNMktplace,Total Adult Social Care,138.49,MISCELLANEOUS AND SPECIALTY RETAIL STORES,2021-22Q3_PC0390
Sandwell Metropolitan Borough Council,http://www.sandwell.gov.uk/info/200202/performance_and_spending/3233/government_procurement_cards,21-Oct-2021,Total Borough Economy,SP   FLU SUPPLIES,Neighbourhoods,43.55,DENTAL/LAB/MED/OPHTHALMIC HOSP EQUIP & SUPPLIES,2021-22Q3_PC0391
Sandwell Metropolitan Borough Council,http://www.sandwell.gov.uk/info/200202/performance_and_spending/3233/government_procurement_cards,21-Oct-2021,FINANCE (Inc SIU),AMZNMKTPLACE AMAZON.CO,Assistant Chief Executive (Excl SIU),11.9,MISCELLANEOUS AND SPECIALTY RETAIL STORES,2021-22Q3_PC0392
Sandwell Metropolitan Borough Council,http://www.sandwell.gov.uk/info/200202/performance_and_spending/3233/government_procurement_cards,21-Oct-2021,Total Borough Economy,AMZNMKTPLACE AMAZON.CO,Neighbourhoods,29.97,MISCELLANEOUS AND SPECIALTY RETAIL STORES,2021-22Q3_PC0393
Sandwell Metropolitan Borough Council,http://www.sandwell.gov.uk/info/200202/performance_and_spending/3233/government_procurement_cards,21-Oct-2021,Total Borough Economy,AMZNMktplace,Neighbourhoods,12.99,MISCELLANEOUS AND SPECIALTY RETAIL STORES,2021-22Q3_PC0394
Sandwell Metropolitan Borough Council,http://www.sandwell.gov.uk/info/200202/performance_and_spending/3233/government_procurement_cards,21-Oct-2021,Director of Law & Governance,SCREWFIX DIRECT,Assistant Chief Executive (Excl SIU),163.14,"BUILDING MATERIALS, LUMBER STORES",2021-22Q3_PC0395
Sandwell Metropolitan Borough Council,http://www.sandwell.gov.uk/info/200202/performance_and_spending/3233/government_procurement_cards,21-Oct-2021,Regeneration & Growth,AMZNMktplace,Regeneration And The Economy,166,MISCELLANEOUS AND SPECIALTY RETAIL STORES,2021-22Q3_PC0396
Sandwell Metropolitan Borough Council,http://www.sandwell.gov.uk/info/200202/performance_and_spending/3233/government_procurement_cards,21-Oct-2021,Regeneration & Growth,Amazon.co.uk KI2CB6R35,Regeneration And The Economy,139,DIRECT MARKETING-OTHER DIRECT MARKETERS/NOT ELSEW.,2021-22Q3_PC0397
Sandwell Metropolitan Borough Council,http://www.sandwell.gov.uk/info/200202/performance_and_spending/3233/government_procurement_cards,21-Oct-2021,Regeneration & Growth,WWW.LABC.UK.COM,Regeneration And The Economy,360,BUSINESS SERVICES-NOT ELSEWHERE CLASSIFIED,2021-22Q3_PC0398
Sandwell Metropolitan Borough Council,http://www.sandwell.gov.uk/info/200202/performance_and_spending/3233/government_procurement_cards,21-Oct-2021,Total ASCHWB,AMZNMKTPLACE AMAZON.CO,Total Adult Social Care,23.98,MISCELLANEOUS AND SPECIALTY RETAIL STORES,2021-22Q3_PC0399
Sandwell Metropolitan Borough Council,http://www.sandwell.gov.uk/info/200202/performance_and_spending/3233/government_procurement_cards,21-Oct-2021,Childrens Services,PAYPAL  GJMARINERSO,Childrens Services,-29.02,PROFESSIONAL SERVICES-NOT ELSEWHERE CLASSIFIED,2021-22Q3_PC0400
Sandwell Metropolitan Borough Council,http://www.sandwell.gov.uk/info/200202/performance_and_spending/3233/government_procurement_cards,21-Oct-2021,Childrens Services,MARKS&SPENCER PLC,Childrens Services,-20,"GROCERY STORES, SUPERMARKETS",2021-22Q3_PC0401
Sandwell Metropolitan Borough Council,http://www.sandwell.gov.uk/info/200202/performance_and_spending/3233/government_procurement_cards,21-Oct-2021,Childrens Services,MARKS&SPENCER PLC,Childrens Services,20,"GROCERY STORES, SUPERMARKETS",2021-22Q3_PC0402
Sandwell Metropolitan Borough Council,http://www.sandwell.gov.uk/info/200202/performance_and_spending/3233/government_procurement_cards,21-Oct-2021,Childrens Services,MARKS&SPENCER PLC,Childrens Services,25,"GROCERY STORES, SUPERMARKETS",2021-22Q3_PC0403
Sandwell Metropolitan Borough Council,http://www.sandwell.gov.uk/info/200202/performance_and_spending/3233/government_procurement_cards,21-Oct-2021,Childrens Services,WWW.THEWORKS.CO.UK,Childrens Services,32.4,DISCOUNT STORES,2021-22Q3_PC0404
Sandwell Metropolitan Borough Council,http://www.sandwell.gov.uk/info/200202/performance_and_spending/3233/government_procurement_cards,21-Oct-2021,Childrens Services,Amazon.co.uk XK7VY44N5,Childrens Services,14.79,DIRECT MARKETING-OTHER DIRECT MARKETERS/NOT ELSEW.,2021-22Q3_PC0405
Sandwell Metropolitan Borough Council,http://www.sandwell.gov.uk/info/200202/performance_and_spending/3233/government_procurement_cards,21-Oct-2021,Childrens Services,J VAN VLIET BIRMINGHAM,Childrens Services,70.08,MISCELLANEOUS GENERAL MERCHANDISE,2021-22Q3_PC0406
Sandwell Metropolitan Borough Council,http://www.sandwell.gov.uk/info/200202/performance_and_spending/3233/government_procurement_cards,21-Oct-2021,Childrens Services,BEEBYS BUBBLES,Childrens Services,67.5,"CLEANING, GARMENT, AND LAUNDRY SERVICES",2021-22Q3_PC0407
Sandwell Metropolitan Borough Council,http://www.sandwell.gov.uk/info/200202/performance_and_spending/3233/government_procurement_cards,21-Oct-2021,Childrens Services,WWW.THEWORKS.CO.UK,Childrens Services,30,DISCOUNT STORES,2021-22Q3_PC0408
Sandwell Metropolitan Borough Council,http://www.sandwell.gov.uk/info/200202/performance_and_spending/3233/government_procurement_cards,21-Oct-2021,Childrens Services,MYHERMES.CO.UK,Childrens Services,20.1,"FREIGHT CARRIER,TRUCKING-LCL/LNG DIST, MVG/STORAGE",2021-22Q3_PC0409
Sandwell Metropolitan Borough Council,http://www.sandwell.gov.uk/info/200202/performance_and_spending/3233/government_procurement_cards,21-Oct-2021,Individual School Budgets With Inclusion,AMZNMKTPLACE AMAZON.CO,Individual School Budgets With Inclusion,38.27,MISCELLANEOUS AND SPECIALTY RETAIL STORES,2021-22Q3_PC0410
Sandwell Metropolitan Borough Council,http://www.sandwell.gov.uk/info/200202/performance_and_spending/3233/government_procurement_cards,21-Oct-2021,Childrens Services,WWW.CULTPEN.COM,Childrens Services,60.95,"OFFICE, SCHOOL SUPPLY, AND STATIONERY STORES",2021-22Q3_PC0411
Sandwell Metropolitan Borough Council,http://www.sandwell.gov.uk/info/200202/performance_and_spending/3233/government_procurement_cards,21-Oct-2021,Childrens Services,AMZNMKTPLACE AMAZON.CO,Childrens Services,42.98,MISCELLANEOUS AND SPECIALTY RETAIL STORES,2021-22Q3_PC0412
Sandwell Metropolitan Borough Council,http://www.sandwell.gov.uk/info/200202/performance_and_spending/3233/government_procurement_cards,21-Oct-2021,Childrens Services,AMZNMktplace,Childrens Services,34.77,MISCELLANEOUS AND SPECIALTY RETAIL STORES,2021-22Q3_PC0413
Sandwell Metropolitan Borough Council,http://www.sandwell.gov.uk/info/200202/performance_and_spending/3233/government_procurement_cards,21-Oct-2021,Childrens Services,MYHERMES.CO.UK,Childrens Services,7.82,"FREIGHT CARRIER,TRUCKING-LCL/LNG DIST, MVG/STORAGE",2021-22Q3_PC0414
Sandwell Metropolitan Borough Council,http://www.sandwell.gov.uk/info/200202/performance_and_spending/3233/government_procurement_cards,22-Oct-2021,Total Housing Revenue Account,RS COMPONENTS,Total Housing Revenue Account,53.22,ELECTRICAL PARTS AND EQUIPMENT,2021-22Q3_PC0415
Sandwell Metropolitan Borough Council,http://www.sandwell.gov.uk/info/200202/performance_and_spending/3233/government_procurement_cards,22-Oct-2021,Total Housing Revenue Account,AMZNMktplace,Total Housing Revenue Account,90.75,MISCELLANEOUS AND SPECIALTY RETAIL STORES,2021-22Q3_PC0416
Sandwell Metropolitan Borough Council,http://www.sandwell.gov.uk/info/200202/performance_and_spending/3233/government_procurement_cards,22-Oct-2021,Total Business Strategy & Change,AMZNMktplace,Assistant Chief Executive (Excl SIU),2.99,MISCELLANEOUS AND SPECIALTY RETAIL STORES,2021-22Q3_PC0417
Sandwell Metropolitan Borough Council,http://www.sandwell.gov.uk/info/200202/performance_and_spending/3233/government_procurement_cards,22-Oct-2021,Total Borough Economy,AMZNMKTPLACE AMAZON.CO,Total Adult Social Care,41.97,MISCELLANEOUS AND SPECIALTY RETAIL STORES,2021-22Q3_PC0418
Sandwell Metropolitan Borough Council,http://www.sandwell.gov.uk/info/200202/performance_and_spending/3233/government_procurement_cards,22-Oct-2021,Total Public Health,ADOBE STOCK,Public Health,23.99,COMPUTER SOFTWARE STORES,2021-22Q3_PC0419
Sandwell Metropolitan Borough Council,http://www.sandwell.gov.uk/info/200202/performance_and_spending/3233/government_procurement_cards,22-Oct-2021,Total Borough Economy,BAKER ROSS,Neighbourhoods,210.98,"ARTIST SUPPLY STORES, CRAFT SHOPS",2021-22Q3_PC0420
Sandwell Metropolitan Borough Council,http://www.sandwell.gov.uk/info/200202/performance_and_spending/3233/government_procurement_cards,22-Oct-2021,Total Borough Economy,AMZNMktplace,Neighbourhoods,9,MISCELLANEOUS AND SPECIALTY RETAIL STORES,2021-22Q3_PC0421
Sandwell Metropolitan Borough Council,http://www.sandwell.gov.uk/info/200202/performance_and_spending/3233/government_procurement_cards,22-Oct-2021,Total Borough Economy,CANVA  I03215-16749807,Neighbourhoods,10.99,PHOTOGRAPHIC STUDIOS,2021-22Q3_PC0422
Sandwell Metropolitan Borough Council,http://www.sandwell.gov.uk/info/200202/performance_and_spending/3233/government_procurement_cards,22-Oct-2021,Total Borough Economy,ICELAND,Neighbourhoods,18.05,"GROCERY STORES, SUPERMARKETS",2021-22Q3_PC0423
Sandwell Metropolitan Borough Council,http://www.sandwell.gov.uk/info/200202/performance_and_spending/3233/government_procurement_cards,22-Oct-2021,Housing & Assets Total,B&M 049 - ASTLE PARK,Neighbourhoods,23.9,MISCELLANEOUS GENERAL MERCHANDISE,2021-22Q3_PC0424
Sandwell Metropolitan Borough Council,http://www.sandwell.gov.uk/info/200202/performance_and_spending/3233/government_procurement_cards,22-Oct-2021,FINANCE (Inc SIU),WWW.CIPFA.ORG.UK,Assistant Chief Executive (Excl SIU),220,"ORGANIZATIONS, MEMBERSHIP-NOT ELSEWHERE CLASSIFIED",2021-22Q3_PC0425
Sandwell Metropolitan Borough Council,http://www.sandwell.gov.uk/info/200202/performance_and_spending/3233/government_procurement_cards,22-Oct-2021,Total Borough Economy,THE SANDWICH SHOP,Neighbourhoods,11.5,"EATING PLACES, RESTAURANTS",2021-22Q3_PC0426
Sandwell Metropolitan Borough Council,http://www.sandwell.gov.uk/info/200202/performance_and_spending/3233/government_procurement_cards,22-Oct-2021,Total Borough Economy,Amazon.co.uk BY7VO42L5,Neighbourhoods,20.38,DIRECT MARKETING-OTHER DIRECT MARKETERS/NOT ELSEW.,2021-22Q3_PC0427
Sandwell Metropolitan Borough Council,http://www.sandwell.gov.uk/info/200202/performance_and_spending/3233/government_procurement_cards,22-Oct-2021,Total Borough Economy,AMZNMktplace,Neighbourhoods,3.49,MISCELLANEOUS AND SPECIALTY RETAIL STORES,2021-22Q3_PC0428
Sandwell Metropolitan Borough Council,http://www.sandwell.gov.uk/info/200202/performance_and_spending/3233/government_procurement_cards,22-Oct-2021,Total Borough Economy,AMZNMKTPLACE AMAZON.CO,Neighbourhoods,36.99,MISCELLANEOUS AND SPECIALTY RETAIL STORES,2021-22Q3_PC0429
Sandwell Metropolitan Borough Council,http://www.sandwell.gov.uk/info/200202/performance_and_spending/3233/government_procurement_cards,22-Oct-2021,Total Borough Economy,AMZNMktplace,Neighbourhoods,96.42,MISCELLANEOUS AND SPECIALTY RETAIL STORES,2021-22Q3_PC0430
Sandwell Metropolitan Borough Council,http://www.sandwell.gov.uk/info/200202/performance_and_spending/3233/government_procurement_cards,22-Oct-2021,Total Borough Economy,TESCO STORES 2335,Neighbourhoods,31.7,"GROCERY STORES, SUPERMARKETS",2021-22Q3_PC0431
Sandwell Metropolitan Borough Council,http://www.sandwell.gov.uk/info/200202/performance_and_spending/3233/government_procurement_cards,22-Oct-2021,Director of Law & Governance,AMZNMKTPLACE AMAZON.CO,Assistant Chief Executive (Excl SIU),68.9,MISCELLANEOUS AND SPECIALTY RETAIL STORES,2021-22Q3_PC0432
Sandwell Metropolitan Borough Council,http://www.sandwell.gov.uk/info/200202/performance_and_spending/3233/government_procurement_cards,22-Oct-2021,Director of Law & Governance,AMZNMktplace,Assistant Chief Executive (Excl SIU),99.98,MISCELLANEOUS AND SPECIALTY RETAIL STORES,2021-22Q3_PC0433
Sandwell Metropolitan Borough Council,http://www.sandwell.gov.uk/info/200202/performance_and_spending/3233/government_procurement_cards,22-Oct-2021,Regeneration & Growth,AMZNMktplace,Regeneration And The Economy,47.19,MISCELLANEOUS AND SPECIALTY RETAIL STORES,2021-22Q3_PC0434
Sandwell Metropolitan Borough Council,http://www.sandwell.gov.uk/info/200202/performance_and_spending/3233/government_procurement_cards,22-Oct-2021,Regeneration & Growth,AMZNMktplace,Regeneration And The Economy,41.23,MISCELLANEOUS AND SPECIALTY RETAIL STORES,2021-22Q3_PC0435
Sandwell Metropolitan Borough Council,http://www.sandwell.gov.uk/info/200202/performance_and_spending/3233/government_procurement_cards,22-Oct-2021,Total ASCHWB,AMZNMKTPLACE AMAZON.CO,Total Adult Social Care,75.75,MISCELLANEOUS AND SPECIALTY RETAIL STORES,2021-22Q3_PC0436
Sandwell Metropolitan Borough Council,http://www.sandwell.gov.uk/info/200202/performance_and_spending/3233/government_procurement_cards,22-Oct-2021,Total ASCHWB,WWW.LOCAL.GOV.UK,Total Adult Social Care,214.8,BUSINESS SERVICES-NOT ELSEWHERE CLASSIFIED,2021-22Q3_PC0437
Sandwell Metropolitan Borough Council,http://www.sandwell.gov.uk/info/200202/performance_and_spending/3233/government_procurement_cards,22-Oct-2021,Childrens Services,B & Q 1169,Childrens Services,50,HOME SUPPLY WAREHOUSE STORES,2021-22Q3_PC0438
Sandwell Metropolitan Borough Council,http://www.sandwell.gov.uk/info/200202/performance_and_spending/3233/government_procurement_cards,22-Oct-2021,Childrens Services,LYCO GROUP LTD,Childrens Services,69.38,ELECTRICAL PARTS AND EQUIPMENT,2021-22Q3_PC0439
Sandwell Metropolitan Borough Council,http://www.sandwell.gov.uk/info/200202/performance_and_spending/3233/government_procurement_cards,22-Oct-2021,Childrens Services,ASDA STORES LTD 5865,Childrens Services,22.7,"GROCERY STORES, SUPERMARKETS",2021-22Q3_PC0440
Sandwell Metropolitan Borough Council,http://www.sandwell.gov.uk/info/200202/performance_and_spending/3233/government_procurement_cards,22-Oct-2021,Childrens Services,AMZNMKTPLACE AMAZON.CO,Childrens Services,20.59,MISCELLANEOUS AND SPECIALTY RETAIL STORES,2021-22Q3_PC0441
Sandwell Metropolitan Borough Council,http://www.sandwell.gov.uk/info/200202/performance_and_spending/3233/government_procurement_cards,22-Oct-2021,Childrens Services,AMZNMktplace,Childrens Services,30.96,MISCELLANEOUS AND SPECIALTY RETAIL STORES,2021-22Q3_PC0442
Sandwell Metropolitan Borough Council,http://www.sandwell.gov.uk/info/200202/performance_and_spending/3233/government_procurement_cards,22-Oct-2021,Childrens Services,AMZNMKTPLACE AMAZON.CO,Childrens Services,13.99,MISCELLANEOUS AND SPECIALTY RETAIL STORES,2021-22Q3_PC0443
Sandwell Metropolitan Borough Council,http://www.sandwell.gov.uk/info/200202/performance_and_spending/3233/government_procurement_cards,22-Oct-2021,Childrens Services,AMZNMKTPLACE AMAZON.CO,Childrens Services,2.99,MISCELLANEOUS AND SPECIALTY RETAIL STORES,2021-22Q3_PC0444
Sandwell Metropolitan Borough Council,http://www.sandwell.gov.uk/info/200202/performance_and_spending/3233/government_procurement_cards,22-Oct-2021,Childrens Services,AMZNMKTPLACE AMAZON.CO,Childrens Services,7.99,MISCELLANEOUS AND SPECIALTY RETAIL STORES,2021-22Q3_PC0445
Sandwell Metropolitan Borough Council,http://www.sandwell.gov.uk/info/200202/performance_and_spending/3233/government_procurement_cards,22-Oct-2021,Childrens Services,SP   VICTIMFOCUS RESOU,Childrens Services,33.98,COMPUTER SOFTWARE STORES,2021-22Q3_PC0446
Sandwell Metropolitan Borough Council,http://www.sandwell.gov.uk/info/200202/performance_and_spending/3233/government_procurement_cards,22-Oct-2021,Childrens Services,ASDA SUPERSTORE,Childrens Services,22.29,"GROCERY STORES, SUPERMARKETS",2021-22Q3_PC0447
Sandwell Metropolitan Borough Council,http://www.sandwell.gov.uk/info/200202/performance_and_spending/3233/government_procurement_cards,22-Oct-2021,Childrens Services,Amazon.co.uk 9L6052Z65,Childrens Services,23.44,DIRECT MARKETING-OTHER DIRECT MARKETERS/NOT ELSEW.,2021-22Q3_PC0448
Sandwell Metropolitan Borough Council,http://www.sandwell.gov.uk/info/200202/performance_and_spending/3233/government_procurement_cards,22-Oct-2021,Childrens Services,AMZNMktplace,Childrens Services,164.98,MISCELLANEOUS AND SPECIALTY RETAIL STORES,2021-22Q3_PC0449
Sandwell Metropolitan Borough Council,http://www.sandwell.gov.uk/info/200202/performance_and_spending/3233/government_procurement_cards,22-Oct-2021,Childrens Services,AMZNMktplace,Childrens Services,28.96,MISCELLANEOUS AND SPECIALTY RETAIL STORES,2021-22Q3_PC0450
Sandwell Metropolitan Borough Council,http://www.sandwell.gov.uk/info/200202/performance_and_spending/3233/government_procurement_cards,22-Oct-2021,Childrens Services,WWW.NCRQ.ORG.UK,Childrens Services,234,SCHOOLS & EDUCATIONAL SVC-NOT ELSEWHERE CLASSIFIED,2021-22Q3_PC0451
Sandwell Metropolitan Borough Council,http://www.sandwell.gov.uk/info/200202/performance_and_spending/3233/government_procurement_cards,22-Oct-2021,Director of Law & Governance,Amazon Prime 9J8AV7JC5,Assistant Chief Executive (Excl SIU),7.99,DIRECT MARKETING-CONTINUITY/SUBSCRIPTION MERCHANTS,2021-22Q3_PC0452
Sandwell Metropolitan Borough Council,http://www.sandwell.gov.uk/info/200202/performance_and_spending/3233/government_procurement_cards,22-Oct-2021,Total Business Strategy & Change,CANVA  I03215-26384142,Assistant Chief Executive (Excl SIU),99.99,PHOTOGRAPHIC STUDIOS,2021-22Q3_PC0453
Sandwell Metropolitan Borough Council,http://www.sandwell.gov.uk/info/200202/performance_and_spending/3233/government_procurement_cards,22-Oct-2021,Total Business Strategy & Change,MIDMEDS LTD,Assistant Chief Executive (Excl SIU),47.99,MISCELLANEOUS AND SPECIALTY RETAIL STORES,2021-22Q3_PC0454
Sandwell Metropolitan Borough Council,http://www.sandwell.gov.uk/info/200202/performance_and_spending/3233/government_procurement_cards,25-Oct-2021,Total Housing Revenue Account,AMZNMktplace,Total Housing Revenue Account,68.28,MISCELLANEOUS AND SPECIALTY RETAIL STORES,2021-22Q3_PC0455
Sandwell Metropolitan Borough Council,http://www.sandwell.gov.uk/info/200202/performance_and_spending/3233/government_procurement_cards,25-Oct-2021,Total Housing Revenue Account,BIRMINGHAM TELECOMMUNI,Total Housing Revenue Account,414.13,TELECOMMUNICATION EQUIPMENT INCL TELEPHONE SALES,2021-22Q3_PC0456
Sandwell Metropolitan Borough Council,http://www.sandwell.gov.uk/info/200202/performance_and_spending/3233/government_procurement_cards,25-Oct-2021,Housing & Assets Total,AMZNMKTPLACE AMAZON.CO,Total Adult Social Care,138.99,MISCELLANEOUS AND SPECIALTY RETAIL STORES,2021-22Q3_PC0457
Sandwell Metropolitan Borough Council,http://www.sandwell.gov.uk/info/200202/performance_and_spending/3233/government_procurement_cards,25-Oct-2021,Total Borough Economy,AMZNMKTPLACE AMAZON.CO,Total Adult Social Care,76.89,MISCELLANEOUS AND SPECIALTY RETAIL STORES,2021-22Q3_PC0458
Sandwell Metropolitan Borough Council,http://www.sandwell.gov.uk/info/200202/performance_and_spending/3233/government_procurement_cards,25-Oct-2021,Total Borough Economy,MAJESTIC WINE,Neighbourhoods,7.98,"PACKAGE STORES, BEER, WINE, LIQUOR",2021-22Q3_PC0459
Sandwell Metropolitan Borough Council,http://www.sandwell.gov.uk/info/200202/performance_and_spending/3233/government_procurement_cards,25-Oct-2021,Total Borough Economy,MAJESTIC WINE,Neighbourhoods,34.96,"PACKAGE STORES, BEER, WINE, LIQUOR",2021-22Q3_PC0460
Sandwell Metropolitan Borough Council,http://www.sandwell.gov.uk/info/200202/performance_and_spending/3233/government_procurement_cards,25-Oct-2021,Total Public Health,Amazon.co.uk Y05M130N5,Public Health,11.85,DIRECT MARKETING-OTHER DIRECT MARKETERS/NOT ELSEW.,2021-22Q3_PC0461
Sandwell Metropolitan Borough Council,http://www.sandwell.gov.uk/info/200202/performance_and_spending/3233/government_procurement_cards,25-Oct-2021,FINANCE (Inc SIU),ACCA,Assistant Chief Executive (Excl SIU),136,"ASSOCIATIONS-CIVIC, SOCIAL, AND FRATERNAL",2021-22Q3_PC0462
Sandwell Metropolitan Borough Council,http://www.sandwell.gov.uk/info/200202/performance_and_spending/3233/government_procurement_cards,25-Oct-2021,Total Borough Economy,Amazon.co.uk MU9L75NM5,Neighbourhoods,12.44,DIRECT MARKETING-OTHER DIRECT MARKETERS/NOT ELSEW.,2021-22Q3_PC0463
Sandwell Metropolitan Borough Council,http://www.sandwell.gov.uk/info/200202/performance_and_spending/3233/government_procurement_cards,25-Oct-2021,Total Borough Economy,W M MORRISONS.COM,Neighbourhoods,75.3,"GROCERY STORES, SUPERMARKETS",2021-22Q3_PC0464
Sandwell Metropolitan Borough Council,http://www.sandwell.gov.uk/info/200202/performance_and_spending/3233/government_procurement_cards,25-Oct-2021,Total Borough Economy,AMZNMktplace,Neighbourhoods,55.9,MISCELLANEOUS AND SPECIALTY RETAIL STORES,2021-22Q3_PC0465
Sandwell Metropolitan Borough Council,http://www.sandwell.gov.uk/info/200202/performance_and_spending/3233/government_procurement_cards,25-Oct-2021,Total Borough Economy,AMZNMktplace,Neighbourhoods,24.99,MISCELLANEOUS AND SPECIALTY RETAIL STORES,2021-22Q3_PC0466
Sandwell Metropolitan Borough Council,http://www.sandwell.gov.uk/info/200202/performance_and_spending/3233/government_procurement_cards,25-Oct-2021,Director of Law & Governance,WICKES HANDSWORTH,Assistant Chief Executive (Excl SIU),112.6,HOME SUPPLY WAREHOUSE STORES,2021-22Q3_PC0467
Sandwell Metropolitan Borough Council,http://www.sandwell.gov.uk/info/200202/performance_and_spending/3233/government_procurement_cards,25-Oct-2021,Regeneration & Growth,BOURNVILLE GARDEN CENT,Regeneration And The Economy,130.9,LAWN AND GARDEN SUPPLY STORES,2021-22Q3_PC0468
Sandwell Metropolitan Borough Council,http://www.sandwell.gov.uk/info/200202/performance_and_spending/3233/government_procurement_cards,25-Oct-2021,Regeneration & Growth,Amazon.co.uk JH6BW3K45,Regeneration And The Economy,29.94,DIRECT MARKETING-OTHER DIRECT MARKETERS/NOT ELSEW.,2021-22Q3_PC0469
Sandwell Metropolitan Borough Council,http://www.sandwell.gov.uk/info/200202/performance_and_spending/3233/government_procurement_cards,25-Oct-2021,Total ASCHWB,Amazon.co.uk WR7LP7XQ5,Total Adult Social Care,8.56,DIRECT MARKETING-OTHER DIRECT MARKETERS/NOT ELSEW.,2021-22Q3_PC0470
Sandwell Metropolitan Borough Council,http://www.sandwell.gov.uk/info/200202/performance_and_spending/3233/government_procurement_cards,25-Oct-2021,Total ASCHWB,ONEBELOW,Total Adult Social Care,4.74,"GROCERY STORES, SUPERMARKETS",2021-22Q3_PC0471
Sandwell Metropolitan Borough Council,http://www.sandwell.gov.uk/info/200202/performance_and_spending/3233/government_procurement_cards,25-Oct-2021,Total ASCHWB,ONEBELOW,Total Adult Social Care,11.5,"GROCERY STORES, SUPERMARKETS",2021-22Q3_PC0472
Sandwell Metropolitan Borough Council,http://www.sandwell.gov.uk/info/200202/performance_and_spending/3233/government_procurement_cards,25-Oct-2021,Total ASCHWB,AMZNMktplace,Total Adult Social Care,17,MISCELLANEOUS AND SPECIALTY RETAIL STORES,2021-22Q3_PC0473
Sandwell Metropolitan Borough Council,http://www.sandwell.gov.uk/info/200202/performance_and_spending/3233/government_procurement_cards,25-Oct-2021,Total ASCHWB,AMZNMKTPLACE AMAZON.CO,Total Adult Social Care,58.46,MISCELLANEOUS AND SPECIALTY RETAIL STORES,2021-22Q3_PC0474
Sandwell Metropolitan Borough Council,http://www.sandwell.gov.uk/info/200202/performance_and_spending/3233/government_procurement_cards,25-Oct-2021,Total ASCHWB,ARGOS LTD,Total Adult Social Care,572.92,DISCOUNT STORES,2021-22Q3_PC0475
Sandwell Metropolitan Borough Council,http://www.sandwell.gov.uk/info/200202/performance_and_spending/3233/government_procurement_cards,25-Oct-2021,Childrens Services,HOME BARGAINS,Childrens Services,5.78,HARDWARE STORES,2021-22Q3_PC0476
Sandwell Metropolitan Borough Council,http://www.sandwell.gov.uk/info/200202/performance_and_spending/3233/government_procurement_cards,25-Oct-2021,Childrens Services,ALDI 9 772,Childrens Services,40.76,"GROCERY STORES, SUPERMARKETS",2021-22Q3_PC0477
Sandwell Metropolitan Borough Council,http://www.sandwell.gov.uk/info/200202/performance_and_spending/3233/government_procurement_cards,25-Oct-2021,Childrens Services,SAINSBURYS S/MKTS,Childrens Services,34,"GROCERY STORES, SUPERMARKETS",2021-22Q3_PC0478
Sandwell Metropolitan Borough Council,http://www.sandwell.gov.uk/info/200202/performance_and_spending/3233/government_procurement_cards,25-Oct-2021,Childrens Services,POUNDLAND LTD 1729,Childrens Services,8,DISCOUNT STORES,2021-22Q3_PC0479
Sandwell Metropolitan Borough Council,http://www.sandwell.gov.uk/info/200202/performance_and_spending/3233/government_procurement_cards,25-Oct-2021,Childrens Services,POUNDLAND LTD 1576,Childrens Services,8,DISCOUNT STORES,2021-22Q3_PC0480
Sandwell Metropolitan Borough Council,http://www.sandwell.gov.uk/info/200202/performance_and_spending/3233/government_procurement_cards,25-Oct-2021,Childrens Services,POUNDLAND LTD 1093,Childrens Services,16,DISCOUNT STORES,2021-22Q3_PC0481
Sandwell Metropolitan Borough Council,http://www.sandwell.gov.uk/info/200202/performance_and_spending/3233/government_procurement_cards,25-Oct-2021,Childrens Services,ASDA SUPERSTORE,Childrens Services,42.88,"GROCERY STORES, SUPERMARKETS",2021-22Q3_PC0482
Sandwell Metropolitan Borough Council,http://www.sandwell.gov.uk/info/200202/performance_and_spending/3233/government_procurement_cards,25-Oct-2021,Director of Law & Governance,SAINSBURYS S/MKTS,Assistant Chief Executive (Excl SIU),4.8,"GROCERY STORES, SUPERMARKETS",2021-22Q3_PC0483
Sandwell Metropolitan Borough Council,http://www.sandwell.gov.uk/info/200202/performance_and_spending/3233/government_procurement_cards,25-Oct-2021,Corporate Management,FS  JotForm,Corporate Management,17.09,DIGITAL GOODS SOFTWARE APPLICATIONS,2021-22Q3_PC0484
Sandwell Metropolitan Borough Council,http://www.sandwell.gov.uk/info/200202/performance_and_spending/3233/government_procurement_cards,25-Oct-2021,Corporate Management,AMZNMktplace,Corporate Management,32.99,MISCELLANEOUS AND SPECIALTY RETAIL STORES,2021-22Q3_PC0485
Sandwell Metropolitan Borough Council,http://www.sandwell.gov.uk/info/200202/performance_and_spending/3233/government_procurement_cards,26-Oct-2021,Total Housing Revenue Account,SumUp   Megasheds Limi,Total Housing Revenue Account,1971,GENERAL CONTRACTORS/RESIDENTIAL BUILDINGS,2021-22Q3_PC0486
Sandwell Metropolitan Borough Council,http://www.sandwell.gov.uk/info/200202/performance_and_spending/3233/government_procurement_cards,26-Oct-2021,Total Borough Economy,HALLOWEEN HOUSE,Neighbourhoods,5.99,FAMILY CLOTHING STORES,2021-22Q3_PC0487
Sandwell Metropolitan Borough Council,http://www.sandwell.gov.uk/info/200202/performance_and_spending/3233/government_procurement_cards,26-Oct-2021,Total Borough Economy,ASDA SUPERSTORE,Neighbourhoods,5.4,"GROCERY STORES, SUPERMARKETS",2021-22Q3_PC0488
Sandwell Metropolitan Borough Council,http://www.sandwell.gov.uk/info/200202/performance_and_spending/3233/government_procurement_cards,26-Oct-2021,Total Borough Economy,WWW.HMV.COM,Neighbourhoods,5.99,RECORD SHOPS,2021-22Q3_PC0489
Sandwell Metropolitan Borough Council,http://www.sandwell.gov.uk/info/200202/performance_and_spending/3233/government_procurement_cards,26-Oct-2021,Total Borough Economy,WorldOfBooks.com,Neighbourhoods,10.99,"BOOKS,PERIODICALS AND NEWSPAPERS",2021-22Q3_PC0490
Sandwell Metropolitan Borough Council,http://www.sandwell.gov.uk/info/200202/performance_and_spending/3233/government_procurement_cards,26-Oct-2021,Total Borough Economy,PASS  PORTABLE APPLIAN,Neighbourhoods,73.54,TESTING LABORATORIES (NON-MEDICAL),2021-22Q3_PC0491
Sandwell Metropolitan Borough Council,http://www.sandwell.gov.uk/info/200202/performance_and_spending/3233/government_procurement_cards,26-Oct-2021,Total Borough Economy,CHRISTMAS DIRECT,Neighbourhoods,-26.24,"GIFT, CARD, NOVELTY AND SOUVENIR SHOPS",2021-22Q3_PC0492
Sandwell Metropolitan Borough Council,http://www.sandwell.gov.uk/info/200202/performance_and_spending/3233/government_procurement_cards,26-Oct-2021,Total Public Health,AMZNMktplace,Public Health,11.1,MISCELLANEOUS AND SPECIALTY RETAIL STORES,2021-22Q3_PC0493
Sandwell Metropolitan Borough Council,http://www.sandwell.gov.uk/info/200202/performance_and_spending/3233/government_procurement_cards,26-Oct-2021,FINANCE (Inc SIU),WWW.CIPFA.ORG.UK,Assistant Chief Executive (Excl SIU),110,"ORGANIZATIONS, MEMBERSHIP-NOT ELSEWHERE CLASSIFIED",2021-22Q3_PC0494
Sandwell Metropolitan Borough Council,http://www.sandwell.gov.uk/info/200202/performance_and_spending/3233/government_procurement_cards,26-Oct-2021,Total Borough Economy,TIMPSON LTD,Neighbourhoods,35,MISCELLANEOUS AND SPECIALTY RETAIL STORES,2021-22Q3_PC0495
Sandwell Metropolitan Borough Council,http://www.sandwell.gov.uk/info/200202/performance_and_spending/3233/government_procurement_cards,26-Oct-2021,Total ASCHWB,AMZNMKTPLACE AMAZON.CO,Total Adult Social Care,17.56,MISCELLANEOUS AND SPECIALTY RETAIL STORES,2021-22Q3_PC0496
Sandwell Metropolitan Borough Council,http://www.sandwell.gov.uk/info/200202/performance_and_spending/3233/government_procurement_cards,26-Oct-2021,Childrens Services,CARRIER BAG SHOP,Childrens Services,40.44,BUSINESS SERVICES-NOT ELSEWHERE CLASSIFIED,2021-22Q3_PC0497
Sandwell Metropolitan Borough Council,http://www.sandwell.gov.uk/info/200202/performance_and_spending/3233/government_procurement_cards,26-Oct-2021,Childrens Services,THE RANGE,Childrens Services,10,MISCELLANEOUS HOUSE FURNISHING SPECIALTY SHOPS,2021-22Q3_PC0498
Sandwell Metropolitan Borough Council,http://www.sandwell.gov.uk/info/200202/performance_and_spending/3233/government_procurement_cards,26-Oct-2021,Childrens Services,ASDA GROCERIES ONLINE,Childrens Services,-3.5,"GROCERY STORES, SUPERMARKETS",2021-22Q3_PC0499
Sandwell Metropolitan Borough Council,http://www.sandwell.gov.uk/info/200202/performance_and_spending/3233/government_procurement_cards,26-Oct-2021,Childrens Services,ASDA GROCERIES ONLINE,Childrens Services,116.16,"GROCERY STORES, SUPERMARKETS",2021-22Q3_PC0500
Sandwell Metropolitan Borough Council,http://www.sandwell.gov.uk/info/200202/performance_and_spending/3233/government_procurement_cards,26-Oct-2021,Childrens Services,ANTHONY PHILLIPS,Childrens Services,228,"OFFICE, SCHOOL SUPPLY, AND STATIONERY STORES",2021-22Q3_PC0501
Sandwell Metropolitan Borough Council,http://www.sandwell.gov.uk/info/200202/performance_and_spending/3233/government_procurement_cards,26-Oct-2021,Childrens Services,ANTHONY PHILLIPS,Childrens Services,134,"OFFICE, SCHOOL SUPPLY, AND STATIONERY STORES",2021-22Q3_PC0502
Sandwell Metropolitan Borough Council,http://www.sandwell.gov.uk/info/200202/performance_and_spending/3233/government_procurement_cards,26-Oct-2021,FINANCE (Inc SIU),TIMPSON LTD,Assistant Chief Executive (Excl SIU),10,MISCELLANEOUS AND SPECIALTY RETAIL STORES,2021-22Q3_PC0503
Sandwell Metropolitan Borough Council,http://www.sandwell.gov.uk/info/200202/performance_and_spending/3233/government_procurement_cards,27-Oct-2021,Total Housing Revenue Account,WWW.EQUIP4WORK.CO.UK,Total Housing Revenue Account,120,OFFICE AND COMMERCIAL FURNITURE,2021-22Q3_PC0504
Sandwell Metropolitan Borough Council,http://www.sandwell.gov.uk/info/200202/performance_and_spending/3233/government_procurement_cards,27-Oct-2021,Housing & Assets Total,AMZNMktplace,Total Adult Social Care,132.49,MISCELLANEOUS AND SPECIALTY RETAIL STORES,2021-22Q3_PC0505
Sandwell Metropolitan Borough Council,http://www.sandwell.gov.uk/info/200202/performance_and_spending/3233/government_procurement_cards,27-Oct-2021,Total Borough Economy,BARRY L HAWKINS,Neighbourhoods,69.52,PROFESSIONAL SERVICES-NOT ELSEWHERE CLASSIFIED,2021-22Q3_PC0506
Sandwell Metropolitan Borough Council,http://www.sandwell.gov.uk/info/200202/performance_and_spending/3233/government_procurement_cards,27-Oct-2021,Total Borough Economy,WM MORRISONS STORE,Neighbourhoods,5,"GROCERY STORES, SUPERMARKETS",2021-22Q3_PC0507
Sandwell Metropolitan Borough Council,http://www.sandwell.gov.uk/info/200202/performance_and_spending/3233/government_procurement_cards,27-Oct-2021,Total Borough Economy,ASDA SUPERSTORE,Neighbourhoods,6,"GROCERY STORES, SUPERMARKETS",2021-22Q3_PC0508
Sandwell Metropolitan Borough Council,http://www.sandwell.gov.uk/info/200202/performance_and_spending/3233/government_procurement_cards,27-Oct-2021,Total Borough Economy,WM MORRISONS STORE,Neighbourhoods,23.3,"GROCERY STORES, SUPERMARKETS",2021-22Q3_PC0509
Sandwell Metropolitan Borough Council,http://www.sandwell.gov.uk/info/200202/performance_and_spending/3233/government_procurement_cards,27-Oct-2021,Total Borough Economy,AMZNMktplace,Neighbourhoods,19.98,MISCELLANEOUS AND SPECIALTY RETAIL STORES,2021-22Q3_PC0510
Sandwell Metropolitan Borough Council,http://www.sandwell.gov.uk/info/200202/performance_and_spending/3233/government_procurement_cards,27-Oct-2021,Total Borough Economy,OSBORNE STATIONERS,Neighbourhoods,16.67,"OFFICE, SCHOOL SUPPLY, AND STATIONERY STORES",2021-22Q3_PC0511
Sandwell Metropolitan Borough Council,http://www.sandwell.gov.uk/info/200202/performance_and_spending/3233/government_procurement_cards,27-Oct-2021,Regeneration & Growth,SCREWFIX DIRECT,Regeneration And The Economy,59.99,"BUILDING MATERIALS, LUMBER STORES",2021-22Q3_PC0512
Sandwell Metropolitan Borough Council,http://www.sandwell.gov.uk/info/200202/performance_and_spending/3233/government_procurement_cards,27-Oct-2021,Regeneration & Growth,AMZNMktplace,Regeneration And The Economy,77.94,MISCELLANEOUS AND SPECIALTY RETAIL STORES,2021-22Q3_PC0513
Sandwell Metropolitan Borough Council,http://www.sandwell.gov.uk/info/200202/performance_and_spending/3233/government_procurement_cards,27-Oct-2021,Total Borough Economy,Amazon Prime RC78I1WY5,Neighbourhoods,7.99,DIRECT MARKETING-CONTINUITY/SUBSCRIPTION MERCHANTS,2021-22Q3_PC0514
Sandwell Metropolitan Borough Council,http://www.sandwell.gov.uk/info/200202/performance_and_spending/3233/government_procurement_cards,27-Oct-2021,Total ASCHWB,AMZNMktplace,Total Adult Social Care,49.29,MISCELLANEOUS AND SPECIALTY RETAIL STORES,2021-22Q3_PC0515
Sandwell Metropolitan Borough Council,http://www.sandwell.gov.uk/info/200202/performance_and_spending/3233/government_procurement_cards,27-Oct-2021,Total ASCHWB,AMZNMktplace,Total Adult Social Care,27.98,MISCELLANEOUS AND SPECIALTY RETAIL STORES,2021-22Q3_PC0516
Sandwell Metropolitan Borough Council,http://www.sandwell.gov.uk/info/200202/performance_and_spending/3233/government_procurement_cards,27-Oct-2021,Childrens Services,AMZNMKTPLACE AMAZON.CO,Childrens Services,10.88,MISCELLANEOUS AND SPECIALTY RETAIL STORES,2021-22Q3_PC0517
Sandwell Metropolitan Borough Council,http://www.sandwell.gov.uk/info/200202/performance_and_spending/3233/government_procurement_cards,27-Oct-2021,Childrens Services,GWYNEDD DISPOSABLES CY,Childrens Services,121.44,"SANITATION, POLISHING & SPECIALITY CLEANING PREP",2021-22Q3_PC0518
Sandwell Metropolitan Borough Council,http://www.sandwell.gov.uk/info/200202/performance_and_spending/3233/government_procurement_cards,27-Oct-2021,Childrens Services,SCREWFIX DIRECT,Childrens Services,39.99,"BUILDING MATERIALS, LUMBER STORES",2021-22Q3_PC0519
Sandwell Metropolitan Borough Council,http://www.sandwell.gov.uk/info/200202/performance_and_spending/3233/government_procurement_cards,27-Oct-2021,Childrens Services,ASDA,Childrens Services,41.62,"GROCERY STORES, SUPERMARKETS",2021-22Q3_PC0520
Sandwell Metropolitan Borough Council,http://www.sandwell.gov.uk/info/200202/performance_and_spending/3233/government_procurement_cards,27-Oct-2021,Childrens Services,ARGOS OLDBURY,Childrens Services,30.2,DISCOUNT STORES,2021-22Q3_PC0521
Sandwell Metropolitan Borough Council,http://www.sandwell.gov.uk/info/200202/performance_and_spending/3233/government_procurement_cards,27-Oct-2021,Childrens Services,SAINSBURYS S/MKTS,Childrens Services,7.5,"GROCERY STORES, SUPERMARKETS",2021-22Q3_PC0522
Sandwell Metropolitan Borough Council,http://www.sandwell.gov.uk/info/200202/performance_and_spending/3233/government_procurement_cards,27-Oct-2021,Housing & Assets Total,Amazon Prime,Neighbourhoods,-7.99,DIRECT MARKETING-CONTINUITY/SUBSCRIPTION MERCHANTS,2021-22Q3_PC0523
Sandwell Metropolitan Borough Council,http://www.sandwell.gov.uk/info/200202/performance_and_spending/3233/government_procurement_cards,28-Oct-2021,Total Borough Economy,VIKING UK,Neighbourhoods,114.05,STATIONERY/OFFICE SUPPLIES/PRINTING & WRITING PAP.,2021-22Q3_PC0524
Sandwell Metropolitan Borough Council,http://www.sandwell.gov.uk/info/200202/performance_and_spending/3233/government_procurement_cards,28-Oct-2021,Total Borough Economy,SCREWFIX DIRECT,Neighbourhoods,73.96,"BUILDING MATERIALS, LUMBER STORES",2021-22Q3_PC0525
Sandwell Metropolitan Borough Council,http://www.sandwell.gov.uk/info/200202/performance_and_spending/3233/government_procurement_cards,28-Oct-2021,Total Borough Economy,TESCO STORES 5362,Neighbourhoods,14.77,"GROCERY STORES, SUPERMARKETS",2021-22Q3_PC0526
Sandwell Metropolitan Borough Council,http://www.sandwell.gov.uk/info/200202/performance_and_spending/3233/government_procurement_cards,28-Oct-2021,Total Borough Economy,ALDI 6 772,Neighbourhoods,15.12,"GROCERY STORES, SUPERMARKETS",2021-22Q3_PC0527
Sandwell Metropolitan Borough Council,http://www.sandwell.gov.uk/info/200202/performance_and_spending/3233/government_procurement_cards,28-Oct-2021,Total Borough Economy,WM MORRISONS STORE,Neighbourhoods,5,"GROCERY STORES, SUPERMARKETS",2021-22Q3_PC0528
Sandwell Metropolitan Borough Council,http://www.sandwell.gov.uk/info/200202/performance_and_spending/3233/government_procurement_cards,28-Oct-2021,Total Borough Economy,GOMPELS HEALTHCARE,Neighbourhoods,120.21,WHOLESALE CLUBS,2021-22Q3_PC0529
Sandwell Metropolitan Borough Council,http://www.sandwell.gov.uk/info/200202/performance_and_spending/3233/government_procurement_cards,28-Oct-2021,Total Borough Economy,GLOBAL FOODS (BHAM) LT,Neighbourhoods,3.69,"PACKAGE STORES, BEER, WINE, LIQUOR",2021-22Q3_PC0530
Sandwell Metropolitan Borough Council,http://www.sandwell.gov.uk/info/200202/performance_and_spending/3233/government_procurement_cards,28-Oct-2021,Total Business Strategy & Change,AMZNMktplace,Neighbourhoods,100.8,MISCELLANEOUS AND SPECIALTY RETAIL STORES,2021-22Q3_PC0531
Sandwell Metropolitan Borough Council,http://www.sandwell.gov.uk/info/200202/performance_and_spending/3233/government_procurement_cards,28-Oct-2021,Total Business Strategy & Change,HARDY SIGNS LTD,Neighbourhoods,150,HARDWARE EQUIPMENT AND SUPPLIES,2021-22Q3_PC0532
Sandwell Metropolitan Borough Council,http://www.sandwell.gov.uk/info/200202/performance_and_spending/3233/government_procurement_cards,28-Oct-2021,Total Business Strategy & Change,HARDY SIGNS LTD,Neighbourhoods,150,HARDWARE EQUIPMENT AND SUPPLIES,2021-22Q3_PC0533
Sandwell Metropolitan Borough Council,http://www.sandwell.gov.uk/info/200202/performance_and_spending/3233/government_procurement_cards,28-Oct-2021,Regeneration & Growth,Amazon.co.uk 7V93Y0Q45,Regeneration And The Economy,23.9,DIRECT MARKETING-OTHER DIRECT MARKETERS/NOT ELSEW.,2021-22Q3_PC0534
Sandwell Metropolitan Borough Council,http://www.sandwell.gov.uk/info/200202/performance_and_spending/3233/government_procurement_cards,28-Oct-2021,Total Borough Economy,AMZNMKTPLACE AMAZON.CO,Neighbourhoods,37.33,MISCELLANEOUS AND SPECIALTY RETAIL STORES,2021-22Q3_PC0535
Sandwell Metropolitan Borough Council,http://www.sandwell.gov.uk/info/200202/performance_and_spending/3233/government_procurement_cards,28-Oct-2021,Director of Law & Governance,THE CREDIT PROTECTION,Assistant Chief Executive (Excl SIU),49.11,OTHER SERVICES (NOT ELSEWHERE CLASSIFIED),2021-22Q3_PC0536
Sandwell Metropolitan Borough Council,http://www.sandwell.gov.uk/info/200202/performance_and_spending/3233/government_procurement_cards,28-Oct-2021,Regeneration & Growth,WWW.EMAP.COM/EVENTS,Regeneration And The Economy,420,MISCELLANEOUS PUBLISHING AND PRINTING,2021-22Q3_PC0537
Sandwell Metropolitan Borough Council,http://www.sandwell.gov.uk/info/200202/performance_and_spending/3233/government_procurement_cards,28-Oct-2021,Regeneration & Growth,WWW.EMAP.COM/EVENTS,Regeneration And The Economy,420,MISCELLANEOUS PUBLISHING AND PRINTING,2021-22Q3_PC0538
Sandwell Metropolitan Borough Council,http://www.sandwell.gov.uk/info/200202/performance_and_spending/3233/government_procurement_cards,28-Oct-2021,Regeneration & Growth,AMZNMktplace,Regeneration And The Economy,10.04,MISCELLANEOUS AND SPECIALTY RETAIL STORES,2021-22Q3_PC0539
Sandwell Metropolitan Borough Council,http://www.sandwell.gov.uk/info/200202/performance_and_spending/3233/government_procurement_cards,28-Oct-2021,Total ASCHWB,Amazon.co.uk KX8D29MC5,Total Adult Social Care,54,DIRECT MARKETING-OTHER DIRECT MARKETERS/NOT ELSEW.,2021-22Q3_PC0540
Sandwell Metropolitan Borough Council,http://www.sandwell.gov.uk/info/200202/performance_and_spending/3233/government_procurement_cards,28-Oct-2021,Childrens Services,FARMFOODS 621,Childrens Services,21.15,"GROCERY STORES, SUPERMARKETS",2021-22Q3_PC0541
Sandwell Metropolitan Borough Council,http://www.sandwell.gov.uk/info/200202/performance_and_spending/3233/government_procurement_cards,28-Oct-2021,Childrens Services,TESCO STORES 2770,Childrens Services,39.03,"GROCERY STORES, SUPERMARKETS",2021-22Q3_PC0542
Sandwell Metropolitan Borough Council,http://www.sandwell.gov.uk/info/200202/performance_and_spending/3233/government_procurement_cards,28-Oct-2021,Childrens Services,UBER    EATS,Childrens Services,57.18,"EATING PLACES, RESTAURANTS",2021-22Q3_PC0543
Sandwell Metropolitan Borough Council,http://www.sandwell.gov.uk/info/200202/performance_and_spending/3233/government_procurement_cards,28-Oct-2021,Director of Law & Governance,Trainline.COM,Assistant Chief Executive (Excl SIU),5.4,PASSENGER RAILWAYS,2021-22Q3_PC0544
Sandwell Metropolitan Borough Council,http://www.sandwell.gov.uk/info/200202/performance_and_spending/3233/government_procurement_cards,28-Oct-2021,Director of Law & Governance,thetrainline.com,Assistant Chief Executive (Excl SIU),7.02,PASSENGER RAILWAYS,2021-22Q3_PC0545
Sandwell Metropolitan Borough Council,http://www.sandwell.gov.uk/info/200202/performance_and_spending/3233/government_procurement_cards,28-Oct-2021,Director of Law & Governance,thetrainline.com,Assistant Chief Executive (Excl SIU),7.02,PASSENGER RAILWAYS,2021-22Q3_PC0546
Sandwell Metropolitan Borough Council,http://www.sandwell.gov.uk/info/200202/performance_and_spending/3233/government_procurement_cards,28-Oct-2021,Corporate Management,AMZNMKTPLACE AMAZON.CO,Corporate Management,8.49,MISCELLANEOUS AND SPECIALTY RETAIL STORES,2021-22Q3_PC0547
Sandwell Metropolitan Borough Council,http://www.sandwell.gov.uk/info/200202/performance_and_spending/3233/government_procurement_cards,29-Oct-2021,Total Housing Revenue Account,AMZNMktplace,Total Housing Revenue Account,37.04,MISCELLANEOUS AND SPECIALTY RETAIL STORES,2021-22Q3_PC0548
Sandwell Metropolitan Borough Council,http://www.sandwell.gov.uk/info/200202/performance_and_spending/3233/government_procurement_cards,29-Oct-2021,Total Housing Revenue Account,Amazon.co.uk L13V76H55,Total Housing Revenue Account,43.98,DIRECT MARKETING-OTHER DIRECT MARKETERS/NOT ELSEW.,2021-22Q3_PC0549
Sandwell Metropolitan Borough Council,http://www.sandwell.gov.uk/info/200202/performance_and_spending/3233/government_procurement_cards,29-Oct-2021,Housing & Assets Total,WorldOfBooks.com,Total Adult Social Care,9.79,"BOOKS,PERIODICALS AND NEWSPAPERS",2021-22Q3_PC0550
Sandwell Metropolitan Borough Council,http://www.sandwell.gov.uk/info/200202/performance_and_spending/3233/government_procurement_cards,29-Oct-2021,Total Borough Economy,SCREWFIX DIRECT,Total Adult Social Care,49.99,"BUILDING MATERIALS, LUMBER STORES",2021-22Q3_PC0551
Sandwell Metropolitan Borough Council,http://www.sandwell.gov.uk/info/200202/performance_and_spending/3233/government_procurement_cards,29-Oct-2021,Total Borough Economy,AMZNMktplace,Neighbourhoods,5.95,MISCELLANEOUS AND SPECIALTY RETAIL STORES,2021-22Q3_PC0552
Sandwell Metropolitan Borough Council,http://www.sandwell.gov.uk/info/200202/performance_and_spending/3233/government_procurement_cards,29-Oct-2021,Total Borough Economy,AMZNMktplace,Neighbourhoods,11.99,MISCELLANEOUS AND SPECIALTY RETAIL STORES,2021-22Q3_PC0553
Sandwell Metropolitan Borough Council,http://www.sandwell.gov.uk/info/200202/performance_and_spending/3233/government_procurement_cards,29-Oct-2021,Total Borough Economy,PPOINT_ Ruby News 3111,Neighbourhoods,1,"MISC FOOD STORE-CONVENIENCE,MRKT,SPLTY,VENDNG MACS",2021-22Q3_PC0554
Sandwell Metropolitan Borough Council,http://www.sandwell.gov.uk/info/200202/performance_and_spending/3233/government_procurement_cards,29-Oct-2021,Total Borough Economy,SAINSBURYS,Neighbourhoods,171,"GROCERY STORES, SUPERMARKETS",2021-22Q3_PC0555
Sandwell Metropolitan Borough Council,http://www.sandwell.gov.uk/info/200202/performance_and_spending/3233/government_procurement_cards,29-Oct-2021,Housing & Assets Total,B&Q LTD,Neighbourhoods,407.66,"BUILDING MATERIALS, LUMBER STORES",2021-22Q3_PC0556
Sandwell Metropolitan Borough Council,http://www.sandwell.gov.uk/info/200202/performance_and_spending/3233/government_procurement_cards,29-Oct-2021,Total Business Strategy & Change,MENTIMETER,Assistant Chief Executive (Excl SIU),108.05,"COMPUTERS, COMPUTER PERIPHERAL EQUIPMENT, SOFTWARE",2021-22Q3_PC0557
Sandwell Metropolitan Borough Council,http://www.sandwell.gov.uk/info/200202/performance_and_spending/3233/government_procurement_cards,29-Oct-2021,Total Business Strategy & Change,KAHOOT! ASA,Assistant Chief Executive (Excl SIU),230.4,COMPUTER SOFTWARE STORES,2021-22Q3_PC0558
Sandwell Metropolitan Borough Council,http://www.sandwell.gov.uk/info/200202/performance_and_spending/3233/government_procurement_cards,29-Oct-2021,FINANCE (Inc SIU),Flextronics,Assistant Chief Executive (Excl SIU),395.13,COMPUTER MAIN./REPAIR/SERVICES NOT ELSEWHERE CLASS,2021-22Q3_PC0559
Sandwell Metropolitan Borough Council,http://www.sandwell.gov.uk/info/200202/performance_and_spending/3233/government_procurement_cards,29-Oct-2021,Total Borough Economy,Trainline,Neighbourhoods,64.8,PASSENGER RAILWAYS,2021-22Q3_PC0560
Sandwell Metropolitan Borough Council,http://www.sandwell.gov.uk/info/200202/performance_and_spending/3233/government_procurement_cards,29-Oct-2021,Total ASCHWB,VALUE PRODUCTS LTD,Total Adult Social Care,51.3,MISCELLANEOUS AND SPECIALTY RETAIL STORES,2021-22Q3_PC0561
Sandwell Metropolitan Borough Council,http://www.sandwell.gov.uk/info/200202/performance_and_spending/3233/government_procurement_cards,29-Oct-2021,Childrens Services,ALDI 32 772,Childrens Services,2.7,"GROCERY STORES, SUPERMARKETS",2021-22Q3_PC0562
Sandwell Metropolitan Borough Council,http://www.sandwell.gov.uk/info/200202/performance_and_spending/3233/government_procurement_cards,29-Oct-2021,Childrens Services,B&M 676-SPENNELLS,Childrens Services,3.16,MISCELLANEOUS GENERAL MERCHANDISE,2021-22Q3_PC0563
Sandwell Metropolitan Borough Council,http://www.sandwell.gov.uk/info/200202/performance_and_spending/3233/government_procurement_cards,29-Oct-2021,Childrens Services,UBER    EATS,Childrens Services,102.28,"EATING PLACES, RESTAURANTS",2021-22Q3_PC0564
Sandwell Metropolitan Borough Council,http://www.sandwell.gov.uk/info/200202/performance_and_spending/3233/government_procurement_cards,29-Oct-2021,Childrens Services,WWW.MARKALLENGROUP.COM,Childrens Services,118.8,SCHOOLS & EDUCATIONAL SVC-NOT ELSEWHERE CLASSIFIED,2021-22Q3_PC0565
Sandwell Metropolitan Borough Council,http://www.sandwell.gov.uk/info/200202/performance_and_spending/3233/government_procurement_cards,29-Oct-2021,Housing & Assets Total,AMZNMktplace,Neighbourhoods,184.16,MISCELLANEOUS AND SPECIALTY RETAIL STORES,2021-22Q3_PC0566
Sandwell Metropolitan Borough Council,http://www.sandwell.gov.uk/info/200202/performance_and_spending/3233/government_procurement_cards,29-Oct-2021,Director of Law & Governance,KINGS PARK HOTEL,Assistant Chief Executive (Excl SIU),1450,"LODGING-HOTELS,MOTELS,RESORTS-NOT CLASSIFIED",2021-22Q3_PC0567
Sandwell Metropolitan Borough Council,http://www.sandwell.gov.uk/info/200202/performance_and_spending/3233/government_procurement_cards,29-Oct-2021,Director of Law & Governance,Trainline.COM,Assistant Chief Executive (Excl SIU),249.6,PASSENGER RAILWAYS,2021-22Q3_PC0568
Sandwell Metropolitan Borough Council,http://www.sandwell.gov.uk/info/200202/performance_and_spending/3233/government_procurement_cards,29-Oct-2021,Director of Law & Governance,thetrainline.com,Assistant Chief Executive (Excl SIU),200.28,PASSENGER RAILWAYS,2021-22Q3_PC0569
Sandwell Metropolitan Borough Council,http://www.sandwell.gov.uk/info/200202/performance_and_spending/3233/government_procurement_cards,29-Oct-2021,Director of Law & Governance,AMZNMKTPLACE AMAZON.CO,Assistant Chief Executive (Excl SIU),143.97,MISCELLANEOUS AND SPECIALTY RETAIL STORES,2021-22Q3_PC0570
Sandwell Metropolitan Borough Council,http://www.sandwell.gov.uk/info/200202/performance_and_spending/3233/government_procurement_cards,29-Oct-2021,Director of Law & Governance,thetrainline.com,Assistant Chief Executive (Excl SIU),11.61,PASSENGER RAILWAYS,2021-22Q3_PC0571
Sandwell Metropolitan Borough Council,http://www.sandwell.gov.uk/info/200202/performance_and_spending/3233/government_procurement_cards,01-Nov-2021,Total Housing Revenue Account,AMZNMktplace,Total Housing Revenue Account,21.19,MISCELLANEOUS AND SPECIALTY RETAIL STORES,2021-22Q3_PC0572
Sandwell Metropolitan Borough Council,http://www.sandwell.gov.uk/info/200202/performance_and_spending/3233/government_procurement_cards,01-Nov-2021,Total Borough Economy,SCREWFIX DIRECT,Neighbourhoods,39.99,"BUILDING MATERIALS, LUMBER STORES",2021-22Q3_PC0573
Sandwell Metropolitan Borough Council,http://www.sandwell.gov.uk/info/200202/performance_and_spending/3233/government_procurement_cards,01-Nov-2021,Total Borough Economy,SAINSBURYS,Neighbourhoods,68.4,"GROCERY STORES, SUPERMARKETS",2021-22Q3_PC0574
Sandwell Metropolitan Borough Council,http://www.sandwell.gov.uk/info/200202/performance_and_spending/3233/government_procurement_cards,01-Nov-2021,Total Borough Economy,GLOBAL WINES (BHAM) LT,Neighbourhoods,5.27,"PACKAGE STORES, BEER, WINE, LIQUOR",2021-22Q3_PC0575
Sandwell Metropolitan Borough Council,http://www.sandwell.gov.uk/info/200202/performance_and_spending/3233/government_procurement_cards,01-Nov-2021,Total Borough Economy,SAINSBURYS S MKTS,Neighbourhoods,221.05,"GROCERY STORES, SUPERMARKETS",2021-22Q3_PC0576
Sandwell Metropolitan Borough Council,http://www.sandwell.gov.uk/info/200202/performance_and_spending/3233/government_procurement_cards,01-Nov-2021,Total Borough Economy,GLOBAL WINES (BHAM) LT,Neighbourhoods,6.76,"PACKAGE STORES, BEER, WINE, LIQUOR",2021-22Q3_PC0577
Sandwell Metropolitan Borough Council,http://www.sandwell.gov.uk/info/200202/performance_and_spending/3233/government_procurement_cards,01-Nov-2021,Regeneration & Growth,Amazon.co.uk W75KE1YD5,Regeneration And The Economy,175,DIRECT MARKETING-OTHER DIRECT MARKETERS/NOT ELSEW.,2021-22Q3_PC0578
Sandwell Metropolitan Borough Council,http://www.sandwell.gov.uk/info/200202/performance_and_spending/3233/government_procurement_cards,01-Nov-2021,Regeneration & Growth,WWW.LABC.UK.COM,Regeneration And The Economy,90,BUSINESS SERVICES-NOT ELSEWHERE CLASSIFIED,2021-22Q3_PC0579
Sandwell Metropolitan Borough Council,http://www.sandwell.gov.uk/info/200202/performance_and_spending/3233/government_procurement_cards,01-Nov-2021,Total ASCHWB,AMZNMktplace,Total Adult Social Care,9.18,MISCELLANEOUS AND SPECIALTY RETAIL STORES,2021-22Q3_PC0580
Sandwell Metropolitan Borough Council,http://www.sandwell.gov.uk/info/200202/performance_and_spending/3233/government_procurement_cards,01-Nov-2021,Total ASCHWB,AMZNMKTPLACE AMAZON.CO,Total Adult Social Care,280.84,MISCELLANEOUS AND SPECIALTY RETAIL STORES,2021-22Q3_PC0581
Sandwell Metropolitan Borough Council,http://www.sandwell.gov.uk/info/200202/performance_and_spending/3233/government_procurement_cards,01-Nov-2021,Childrens Services,FARMFOODS 621,Childrens Services,4,"GROCERY STORES, SUPERMARKETS",2021-22Q3_PC0582
Sandwell Metropolitan Borough Council,http://www.sandwell.gov.uk/info/200202/performance_and_spending/3233/government_procurement_cards,01-Nov-2021,Childrens Services,ALDI 62 772,Childrens Services,11.21,"GROCERY STORES, SUPERMARKETS",2021-22Q3_PC0583
Sandwell Metropolitan Borough Council,http://www.sandwell.gov.uk/info/200202/performance_and_spending/3233/government_procurement_cards,01-Nov-2021,Childrens Services,TESCO STORES 2770,Childrens Services,19.71,"GROCERY STORES, SUPERMARKETS",2021-22Q3_PC0584
Sandwell Metropolitan Borough Council,http://www.sandwell.gov.uk/info/200202/performance_and_spending/3233/government_procurement_cards,01-Nov-2021,Childrens Services,UBER    EATS,Childrens Services,122.75,"EATING PLACES, RESTAURANTS",2021-22Q3_PC0585
Sandwell Metropolitan Borough Council,http://www.sandwell.gov.uk/info/200202/performance_and_spending/3233/government_procurement_cards,01-Nov-2021,Housing & Assets Total,ARGOS OLDBURY,Neighbourhoods,74.95,DISCOUNT STORES,2021-22Q3_PC0586
Sandwell Metropolitan Borough Council,http://www.sandwell.gov.uk/info/200202/performance_and_spending/3233/government_procurement_cards,01-Nov-2021,Director of Law & Governance,AMZNMktplace,Assistant Chief Executive (Excl SIU),16.2,MISCELLANEOUS AND SPECIALTY RETAIL STORES,2021-22Q3_PC0587
Sandwell Metropolitan Borough Council,http://www.sandwell.gov.uk/info/200202/performance_and_spending/3233/government_procurement_cards,01-Nov-2021,Director of Law & Governance,AMZNMktplace,Assistant Chief Executive (Excl SIU),20.99,MISCELLANEOUS AND SPECIALTY RETAIL STORES,2021-22Q3_PC0588
Sandwell Metropolitan Borough Council,http://www.sandwell.gov.uk/info/200202/performance_and_spending/3233/government_procurement_cards,01-Nov-2021,Total Business Strategy & Change,AMZNMktplace,Assistant Chief Executive (Excl SIU),36.88,MISCELLANEOUS AND SPECIALTY RETAIL STORES,2021-22Q3_PC0589
Sandwell Metropolitan Borough Council,http://www.sandwell.gov.uk/info/200202/performance_and_spending/3233/government_procurement_cards,02-Nov-2021,Total Housing Revenue Account,TRAVIS PERKINS,Total Housing Revenue Account,18.93,"BUILDING MATERIALS, LUMBER STORES",2021-22Q3_PC0590
Sandwell Metropolitan Borough Council,http://www.sandwell.gov.uk/info/200202/performance_and_spending/3233/government_procurement_cards,02-Nov-2021,Total Housing Revenue Account,CAPITA GAS,Total Housing Revenue Account,31.18,"ORGANIZATIONS, MEMBERSHIP-NOT ELSEWHERE CLASSIFIED",2021-22Q3_PC0591
Sandwell Metropolitan Borough Council,http://www.sandwell.gov.uk/info/200202/performance_and_spending/3233/government_procurement_cards,02-Nov-2021,Total Housing Revenue Account,AMZNMktplace,Total Housing Revenue Account,69.99,MISCELLANEOUS AND SPECIALTY RETAIL STORES,2021-22Q3_PC0592
Sandwell Metropolitan Borough Council,http://www.sandwell.gov.uk/info/200202/performance_and_spending/3233/government_procurement_cards,02-Nov-2021,Total Borough Economy,SP   BOLTON ENGINEERIN,Neighbourhoods,62.64,COMPUTER SOFTWARE STORES,2021-22Q3_PC0593
Sandwell Metropolitan Borough Council,http://www.sandwell.gov.uk/info/200202/performance_and_spending/3233/government_procurement_cards,02-Nov-2021,Total Borough Economy,WM MORRISONS STORE,Neighbourhoods,45.33,"GROCERY STORES, SUPERMARKETS",2021-22Q3_PC0594
Sandwell Metropolitan Borough Council,http://www.sandwell.gov.uk/info/200202/performance_and_spending/3233/government_procurement_cards,02-Nov-2021,Housing & Assets Total,WWW.THENMA.ORG.UK,Neighbourhoods,4,"ORGANIZATIONS, CHARITABLE AND SOCIAL SERVICES",2021-22Q3_PC0595
Sandwell Metropolitan Borough Council,http://www.sandwell.gov.uk/info/200202/performance_and_spending/3233/government_procurement_cards,02-Nov-2021,Total Borough Economy,AMZNMktplace,Neighbourhoods,42.94,MISCELLANEOUS AND SPECIALTY RETAIL STORES,2021-22Q3_PC0596
Sandwell Metropolitan Borough Council,http://www.sandwell.gov.uk/info/200202/performance_and_spending/3233/government_procurement_cards,02-Nov-2021,Director of Law & Governance,SP   HFLTD,Assistant Chief Executive (Excl SIU),54,RELIGIOUS GOODS STORES,2021-22Q3_PC0597
Sandwell Metropolitan Borough Council,http://www.sandwell.gov.uk/info/200202/performance_and_spending/3233/government_procurement_cards,02-Nov-2021,Director of Law & Governance,AMZ XtremeAuto,Assistant Chief Executive (Excl SIU),-13.89,MISCELLANEOUS AND SPECIALTY RETAIL STORES,2021-22Q3_PC0598
Sandwell Metropolitan Borough Council,http://www.sandwell.gov.uk/info/200202/performance_and_spending/3233/government_procurement_cards,02-Nov-2021,Total Borough Economy,IAN SMITH GROUP LTD,Regeneration And The Economy,250,STATIONERY/OFFICE SUPPLIES/PRINTING & WRITING PAP.,2021-22Q3_PC0599
Sandwell Metropolitan Borough Council,http://www.sandwell.gov.uk/info/200202/performance_and_spending/3233/government_procurement_cards,02-Nov-2021,Total Borough Economy,IAN SMITH GROUP LTD,Regeneration And The Economy,176.48,STATIONERY/OFFICE SUPPLIES/PRINTING & WRITING PAP.,2021-22Q3_PC0600
Sandwell Metropolitan Borough Council,http://www.sandwell.gov.uk/info/200202/performance_and_spending/3233/government_procurement_cards,02-Nov-2021,Total ASCHWB,PAYPAL  WILLIAMSMED,Total Adult Social Care,443.88,DENTAL/LAB/MED/OPHTHALMIC HOSP EQUIP & SUPPLIES,2021-22Q3_PC0601
Sandwell Metropolitan Borough Council,http://www.sandwell.gov.uk/info/200202/performance_and_spending/3233/government_procurement_cards,02-Nov-2021,Total ASCHWB,AMZNMktplace,Total Adult Social Care,345.53,MISCELLANEOUS AND SPECIALTY RETAIL STORES,2021-22Q3_PC0602
Sandwell Metropolitan Borough Council,http://www.sandwell.gov.uk/info/200202/performance_and_spending/3233/government_procurement_cards,02-Nov-2021,Childrens Services,AWARD EVENTS,Childrens Services,90,"ORGANIZATIONS, CHARITABLE AND SOCIAL SERVICES",2021-22Q3_PC0603
Sandwell Metropolitan Borough Council,http://www.sandwell.gov.uk/info/200202/performance_and_spending/3233/government_procurement_cards,02-Nov-2021,Childrens Services,ASDA SUPERSTORE,Childrens Services,2.41,"GROCERY STORES, SUPERMARKETS",2021-22Q3_PC0604
Sandwell Metropolitan Borough Council,http://www.sandwell.gov.uk/info/200202/performance_and_spending/3233/government_procurement_cards,02-Nov-2021,Childrens Services,AMZNMktplace,Childrens Services,46.95,MISCELLANEOUS AND SPECIALTY RETAIL STORES,2021-22Q3_PC0605
Sandwell Metropolitan Borough Council,http://www.sandwell.gov.uk/info/200202/performance_and_spending/3233/government_procurement_cards,02-Nov-2021,Childrens Services,Amazon.co.uk XW94V6OV5,Childrens Services,31,DIRECT MARKETING-OTHER DIRECT MARKETERS/NOT ELSEW.,2021-22Q3_PC0606
Sandwell Metropolitan Borough Council,http://www.sandwell.gov.uk/info/200202/performance_and_spending/3233/government_procurement_cards,02-Nov-2021,Childrens Services,ASDA SUPERSTORE,Childrens Services,61.67,"GROCERY STORES, SUPERMARKETS",2021-22Q3_PC0607
Sandwell Metropolitan Borough Council,http://www.sandwell.gov.uk/info/200202/performance_and_spending/3233/government_procurement_cards,02-Nov-2021,Childrens Services,POST OFFICE COUNTER,Childrens Services,2.69,POSTAL SERVICES-GOVERNMENT ONLY,2021-22Q3_PC0608
Sandwell Metropolitan Borough Council,http://www.sandwell.gov.uk/info/200202/performance_and_spending/3233/government_procurement_cards,02-Nov-2021,Director of Law & Governance,T J MORRIS LTD,Assistant Chief Executive (Excl SIU),9.44,HARDWARE STORES,2021-22Q3_PC0609
Sandwell Metropolitan Borough Council,http://www.sandwell.gov.uk/info/200202/performance_and_spending/3233/government_procurement_cards,02-Nov-2021,Total Business Strategy & Change,Google Cloud EMEA Limi,Assistant Chief Executive (Excl SIU),165.27,COMPUTER NETWORK/INFORMATION SERVICES,2021-22Q3_PC0610
Sandwell Metropolitan Borough Council,http://www.sandwell.gov.uk/info/200202/performance_and_spending/3233/government_procurement_cards,03-Nov-2021,Total Borough Economy,HIGHSTREETVOUCHERS,Neighbourhoods,100,"ASSOCIATIONS-CIVIC, SOCIAL, AND FRATERNAL",2021-22Q3_PC0611
Sandwell Metropolitan Borough Council,http://www.sandwell.gov.uk/info/200202/performance_and_spending/3233/government_procurement_cards,03-Nov-2021,Total Borough Economy,HIGHSTREETVOUCHERS,Neighbourhoods,100,"ASSOCIATIONS-CIVIC, SOCIAL, AND FRATERNAL",2021-22Q3_PC0612
Sandwell Metropolitan Borough Council,http://www.sandwell.gov.uk/info/200202/performance_and_spending/3233/government_procurement_cards,03-Nov-2021,Total Borough Economy,FACEBK T8HQC8KJY2,Neighbourhoods,17.17,ADVERTISING SERVICES,2021-22Q3_PC0613
Sandwell Metropolitan Borough Council,http://www.sandwell.gov.uk/info/200202/performance_and_spending/3233/government_procurement_cards,03-Nov-2021,Housing & Assets Total,GOVERNMENT EVENTS,Neighbourhoods,346.8,"THEATRICAL PRODUCERS(EXCL MOTION PIX),TICKET AGNCY",2021-22Q3_PC0614
Sandwell Metropolitan Borough Council,http://www.sandwell.gov.uk/info/200202/performance_and_spending/3233/government_procurement_cards,03-Nov-2021,Total Public Health,Vistaprint,Public Health,119.49,BUSINESS SERVICES-NOT ELSEWHERE CLASSIFIED,2021-22Q3_PC0615
Sandwell Metropolitan Borough Council,http://www.sandwell.gov.uk/info/200202/performance_and_spending/3233/government_procurement_cards,03-Nov-2021,Total Borough Economy,PAYPAL  TOOLSTATION,Neighbourhoods,40.48,HARDWARE STORES,2021-22Q3_PC0616
Sandwell Metropolitan Borough Council,http://www.sandwell.gov.uk/info/200202/performance_and_spending/3233/government_procurement_cards,03-Nov-2021,Total Borough Economy,AMZNMKTPLACE AMAZON.CO,Neighbourhoods,408.95,MISCELLANEOUS AND SPECIALTY RETAIL STORES,2021-22Q3_PC0617
Sandwell Metropolitan Borough Council,http://www.sandwell.gov.uk/info/200202/performance_and_spending/3233/government_procurement_cards,03-Nov-2021,Total ASCHWB,AMZNMKTPLACE AMAZON.CO,Total Adult Social Care,71.34,MISCELLANEOUS AND SPECIALTY RETAIL STORES,2021-22Q3_PC0618
Sandwell Metropolitan Borough Council,http://www.sandwell.gov.uk/info/200202/performance_and_spending/3233/government_procurement_cards,03-Nov-2021,Total ASCHWB,AMZ FirstAid4Less,Total Adult Social Care,150,"HEALTH PRACTITIONERS, MEDICAL SRVCS-NOT ELSEWHERE",2021-22Q3_PC0619
Sandwell Metropolitan Borough Council,http://www.sandwell.gov.uk/info/200202/performance_and_spending/3233/government_procurement_cards,03-Nov-2021,Total ASCHWB,AMZNMKTPLACE AMAZON.CO,Total Adult Social Care,43.98,MISCELLANEOUS AND SPECIALTY RETAIL STORES,2021-22Q3_PC0620
Sandwell Metropolitan Borough Council,http://www.sandwell.gov.uk/info/200202/performance_and_spending/3233/government_procurement_cards,03-Nov-2021,Childrens Services,TESCO STORES 2770,Childrens Services,22.47,"GROCERY STORES, SUPERMARKETS",2021-22Q3_PC0621
Sandwell Metropolitan Borough Council,http://www.sandwell.gov.uk/info/200202/performance_and_spending/3233/government_procurement_cards,03-Nov-2021,Childrens Services,FARMFOODS 621,Childrens Services,19.99,"GROCERY STORES, SUPERMARKETS",2021-22Q3_PC0622
Sandwell Metropolitan Borough Council,http://www.sandwell.gov.uk/info/200202/performance_and_spending/3233/government_procurement_cards,03-Nov-2021,Childrens Services,POST OFFICE COUNTER,Childrens Services,129,POSTAL SERVICES-GOVERNMENT ONLY,2021-22Q3_PC0623
Sandwell Metropolitan Borough Council,http://www.sandwell.gov.uk/info/200202/performance_and_spending/3233/government_procurement_cards,03-Nov-2021,Housing & Assets Total,SCREWFIX DIRECT,Neighbourhoods,10,"BUILDING MATERIALS, LUMBER STORES",2021-22Q3_PC0624
Sandwell Metropolitan Borough Council,http://www.sandwell.gov.uk/info/200202/performance_and_spending/3233/government_procurement_cards,03-Nov-2021,Total Business Strategy & Change,KAYS MEDICAL LIMITED,Assistant Chief Executive (Excl SIU),-51.12,DENTAL/LAB/MED/OPHTHALMIC HOSP EQUIP & SUPPLIES,2021-22Q3_PC0625
Sandwell Metropolitan Borough Council,http://www.sandwell.gov.uk/info/200202/performance_and_spending/3233/government_procurement_cards,04-Nov-2021,Total Housing Revenue Account,ROYAL MAIL GROUP LTD,Total Housing Revenue Account,27.65,POSTAL SERVICES-GOVERNMENT ONLY,2021-22Q3_PC0626
Sandwell Metropolitan Borough Council,http://www.sandwell.gov.uk/info/200202/performance_and_spending/3233/government_procurement_cards,04-Nov-2021,Housing & Assets Total,WWW.SANDWELL.GOV.UK,Neighbourhoods,35,GOVERNMENT SERVICES-NOT ELSEWHERE CLASSIFIED,2021-22Q3_PC0627
Sandwell Metropolitan Borough Council,http://www.sandwell.gov.uk/info/200202/performance_and_spending/3233/government_procurement_cards,04-Nov-2021,Total Borough Economy,Amazon.co.uk JZ03E8QX5,Total Adult Social Care,85,DIRECT MARKETING-OTHER DIRECT MARKETERS/NOT ELSEW.,2021-22Q3_PC0628
Sandwell Metropolitan Borough Council,http://www.sandwell.gov.uk/info/200202/performance_and_spending/3233/government_procurement_cards,04-Nov-2021,Total Borough Economy,AMZNMKTPLACE AMAZON.CO,Neighbourhoods,29.99,MISCELLANEOUS AND SPECIALTY RETAIL STORES,2021-22Q3_PC0629
Sandwell Metropolitan Borough Council,http://www.sandwell.gov.uk/info/200202/performance_and_spending/3233/government_procurement_cards,04-Nov-2021,Total Borough Economy,PODBEAN.COM,Neighbourhoods,29.51,COMPUTER SOFTWARE STORES,2021-22Q3_PC0630
Sandwell Metropolitan Borough Council,http://www.sandwell.gov.uk/info/200202/performance_and_spending/3233/government_procurement_cards,04-Nov-2021,Housing & Assets Total,AMZNMktplace,Neighbourhoods,42.99,MISCELLANEOUS AND SPECIALTY RETAIL STORES,2021-22Q3_PC0631
Sandwell Metropolitan Borough Council,http://www.sandwell.gov.uk/info/200202/performance_and_spending/3233/government_procurement_cards,04-Nov-2021,Total Public Health,WWW.MARKALLENGROUP.COM,Public Health,237.6,SCHOOLS & EDUCATIONAL SVC-NOT ELSEWHERE CLASSIFIED,2021-22Q3_PC0632
Sandwell Metropolitan Borough Council,http://www.sandwell.gov.uk/info/200202/performance_and_spending/3233/government_procurement_cards,04-Nov-2021,Regeneration & Growth,AMZNMktplace,Regeneration And The Economy,65.96,MISCELLANEOUS AND SPECIALTY RETAIL STORES,2021-22Q3_PC0633
Sandwell Metropolitan Borough Council,http://www.sandwell.gov.uk/info/200202/performance_and_spending/3233/government_procurement_cards,04-Nov-2021,FINANCE (Inc SIU),AMZNMKTPLACE AMAZON.CO,Assistant Chief Executive (Excl SIU),28.98,MISCELLANEOUS AND SPECIALTY RETAIL STORES,2021-22Q3_PC0634
Sandwell Metropolitan Borough Council,http://www.sandwell.gov.uk/info/200202/performance_and_spending/3233/government_procurement_cards,04-Nov-2021,Total Borough Economy,SCREWFIX DIRECT,Neighbourhoods,12,"BUILDING MATERIALS, LUMBER STORES",2021-22Q3_PC0635
Sandwell Metropolitan Borough Council,http://www.sandwell.gov.uk/info/200202/performance_and_spending/3233/government_procurement_cards,04-Nov-2021,Total Borough Economy,AMZNMKTPLACE AMAZON.CO,Neighbourhoods,189.99,MISCELLANEOUS AND SPECIALTY RETAIL STORES,2021-22Q3_PC0636
Sandwell Metropolitan Borough Council,http://www.sandwell.gov.uk/info/200202/performance_and_spending/3233/government_procurement_cards,04-Nov-2021,Total ASCHWB,AMZNMktplace,Total Adult Social Care,37.98,MISCELLANEOUS AND SPECIALTY RETAIL STORES,2021-22Q3_PC0637
Sandwell Metropolitan Borough Council,http://www.sandwell.gov.uk/info/200202/performance_and_spending/3233/government_procurement_cards,04-Nov-2021,Total ASCHWB,THE TOOL MARKET,Total Adult Social Care,125.91,HARDWARE STORES,2021-22Q3_PC0638
Sandwell Metropolitan Borough Council,http://www.sandwell.gov.uk/info/200202/performance_and_spending/3233/government_procurement_cards,04-Nov-2021,Total ASCHWB,EBAY COMMERCE UK LTD,Total Adult Social Care,49.25,DEPARTMENT STORES,2021-22Q3_PC0639
Sandwell Metropolitan Borough Council,http://www.sandwell.gov.uk/info/200202/performance_and_spending/3233/government_procurement_cards,04-Nov-2021,Total ASCHWB,EBAY COMMERCE UK LTD,Total Adult Social Care,45,DEPARTMENT STORES,2021-22Q3_PC0640
Sandwell Metropolitan Borough Council,http://www.sandwell.gov.uk/info/200202/performance_and_spending/3233/government_procurement_cards,04-Nov-2021,Childrens Services,TIMPSON LTD,Childrens Services,5,MISCELLANEOUS AND SPECIALTY RETAIL STORES,2021-22Q3_PC0641
Sandwell Metropolitan Borough Council,http://www.sandwell.gov.uk/info/200202/performance_and_spending/3233/government_procurement_cards,04-Nov-2021,Childrens Services,ASDA STORES LTD 5865,Childrens Services,6.08,"GROCERY STORES, SUPERMARKETS",2021-22Q3_PC0642
Sandwell Metropolitan Borough Council,http://www.sandwell.gov.uk/info/200202/performance_and_spending/3233/government_procurement_cards,04-Nov-2021,Individual School Budgets With Inclusion,Amazon.co.uk AI9O52205,Individual School Budgets With Inclusion,45.51,DIRECT MARKETING-OTHER DIRECT MARKETERS/NOT ELSEW.,2021-22Q3_PC0643
Sandwell Metropolitan Borough Council,http://www.sandwell.gov.uk/info/200202/performance_and_spending/3233/government_procurement_cards,04-Nov-2021,Childrens Services,AMZNMKTPLACE AMAZON.CO,Childrens Services,29.99,MISCELLANEOUS AND SPECIALTY RETAIL STORES,2021-22Q3_PC0644
Sandwell Metropolitan Borough Council,http://www.sandwell.gov.uk/info/200202/performance_and_spending/3233/government_procurement_cards,04-Nov-2021,Childrens Services,AMZNMktplace,Childrens Services,30.41,MISCELLANEOUS AND SPECIALTY RETAIL STORES,2021-22Q3_PC0645
Sandwell Metropolitan Borough Council,http://www.sandwell.gov.uk/info/200202/performance_and_spending/3233/government_procurement_cards,04-Nov-2021,Director of Law & Governance,MACE-BEARERS SUBS,Assistant Chief Executive (Excl SIU),10,"ASSOCIATIONS-CIVIC, SOCIAL, AND FRATERNAL",2021-22Q3_PC0646
Sandwell Metropolitan Borough Council,http://www.sandwell.gov.uk/info/200202/performance_and_spending/3233/government_procurement_cards,04-Nov-2021,Director of Law & Governance,AMZNMktplace,Assistant Chief Executive (Excl SIU),31.86,MISCELLANEOUS AND SPECIALTY RETAIL STORES,2021-22Q3_PC0647
Sandwell Metropolitan Borough Council,http://www.sandwell.gov.uk/info/200202/performance_and_spending/3233/government_procurement_cards,05-Nov-2021,Total Housing Revenue Account,AMZNMktplace,Total Housing Revenue Account,44.89,MISCELLANEOUS AND SPECIALTY RETAIL STORES,2021-22Q3_PC0648
Sandwell Metropolitan Borough Council,http://www.sandwell.gov.uk/info/200202/performance_and_spending/3233/government_procurement_cards,05-Nov-2021,Total Housing Revenue Account,Amazon.co.uk RZ4NM5I65,Total Housing Revenue Account,31.59,DIRECT MARKETING-OTHER DIRECT MARKETERS/NOT ELSEW.,2021-22Q3_PC0649
Sandwell Metropolitan Borough Council,http://www.sandwell.gov.uk/info/200202/performance_and_spending/3233/government_procurement_cards,05-Nov-2021,Total Borough Economy,AMZNMktplace,Total Adult Social Care,209.66,MISCELLANEOUS AND SPECIALTY RETAIL STORES,2021-22Q3_PC0650
Sandwell Metropolitan Borough Council,http://www.sandwell.gov.uk/info/200202/performance_and_spending/3233/government_procurement_cards,05-Nov-2021,Total Borough Economy,AMZNMktplace,Neighbourhoods,43.96,MISCELLANEOUS AND SPECIALTY RETAIL STORES,2021-22Q3_PC0651
Sandwell Metropolitan Borough Council,http://www.sandwell.gov.uk/info/200202/performance_and_spending/3233/government_procurement_cards,05-Nov-2021,Total Borough Economy,AMZNMktplace,Neighbourhoods,39.89,MISCELLANEOUS AND SPECIALTY RETAIL STORES,2021-22Q3_PC0652
Sandwell Metropolitan Borough Council,http://www.sandwell.gov.uk/info/200202/performance_and_spending/3233/government_procurement_cards,05-Nov-2021,Total Borough Economy,AMZNMktplace,Neighbourhoods,33.98,MISCELLANEOUS AND SPECIALTY RETAIL STORES,2021-22Q3_PC0653
Sandwell Metropolitan Borough Council,http://www.sandwell.gov.uk/info/200202/performance_and_spending/3233/government_procurement_cards,05-Nov-2021,Total Borough Economy,AMZNMktplace,Neighbourhoods,68.98,MISCELLANEOUS AND SPECIALTY RETAIL STORES,2021-22Q3_PC0654
Sandwell Metropolitan Borough Council,http://www.sandwell.gov.uk/info/200202/performance_and_spending/3233/government_procurement_cards,05-Nov-2021,Total Borough Economy,ICELAND,Neighbourhoods,2.38,"GROCERY STORES, SUPERMARKETS",2021-22Q3_PC0655
Sandwell Metropolitan Borough Council,http://www.sandwell.gov.uk/info/200202/performance_and_spending/3233/government_procurement_cards,05-Nov-2021,Total Borough Economy,TESCO STORES 4512,Neighbourhoods,11.25,"GROCERY STORES, SUPERMARKETS",2021-22Q3_PC0656
Sandwell Metropolitan Borough Council,http://www.sandwell.gov.uk/info/200202/performance_and_spending/3233/government_procurement_cards,05-Nov-2021,Housing & Assets Total,ASDA STORES,Neighbourhoods,28.94,"GROCERY STORES, SUPERMARKETS",2021-22Q3_PC0657
Sandwell Metropolitan Borough Council,http://www.sandwell.gov.uk/info/200202/performance_and_spending/3233/government_procurement_cards,05-Nov-2021,FINANCE (Inc SIU),SMARTY CO UK,Assistant Chief Executive (Excl SIU),10,TELECOM INCL PREPAID/RECURRING PHONE SVCS,2021-22Q3_PC0658
Sandwell Metropolitan Borough Council,http://www.sandwell.gov.uk/info/200202/performance_and_spending/3233/government_procurement_cards,05-Nov-2021,Total Borough Economy,AMZNMktplace,Neighbourhoods,38.97,MISCELLANEOUS AND SPECIALTY RETAIL STORES,2021-22Q3_PC0659
Sandwell Metropolitan Borough Council,http://www.sandwell.gov.uk/info/200202/performance_and_spending/3233/government_procurement_cards,05-Nov-2021,Total Borough Economy,AMZNMKTPLACE AMAZON.CO,Neighbourhoods,34.65,MISCELLANEOUS AND SPECIALTY RETAIL STORES,2021-22Q3_PC0660
Sandwell Metropolitan Borough Council,http://www.sandwell.gov.uk/info/200202/performance_and_spending/3233/government_procurement_cards,05-Nov-2021,Total ASCHWB,EBAY COMMERCE UK LTD,Total Adult Social Care,-49.25,DEPARTMENT STORES,2021-22Q3_PC0661
Sandwell Metropolitan Borough Council,http://www.sandwell.gov.uk/info/200202/performance_and_spending/3233/government_procurement_cards,05-Nov-2021,Total ASCHWB,PAYPAL  WILLIAMSMED,Total Adult Social Care,-443.88,DENTAL/LAB/MED/OPHTHALMIC HOSP EQUIP & SUPPLIES,2021-22Q3_PC0662
Sandwell Metropolitan Borough Council,http://www.sandwell.gov.uk/info/200202/performance_and_spending/3233/government_procurement_cards,05-Nov-2021,Childrens Services,SAINSBURYS S/MKTS,Childrens Services,24.1,"GROCERY STORES, SUPERMARKETS",2021-22Q3_PC0663
Sandwell Metropolitan Borough Council,http://www.sandwell.gov.uk/info/200202/performance_and_spending/3233/government_procurement_cards,05-Nov-2021,Childrens Services,POUNDLAND LTD 1729,Childrens Services,4,DISCOUNT STORES,2021-22Q3_PC0664
Sandwell Metropolitan Borough Council,http://www.sandwell.gov.uk/info/200202/performance_and_spending/3233/government_procurement_cards,05-Nov-2021,Childrens Services,POUNDLAND LTD 1729,Childrens Services,9.5,DISCOUNT STORES,2021-22Q3_PC0665
Sandwell Metropolitan Borough Council,http://www.sandwell.gov.uk/info/200202/performance_and_spending/3233/government_procurement_cards,05-Nov-2021,Childrens Services,AMZNMktplace,Childrens Services,44.49,MISCELLANEOUS AND SPECIALTY RETAIL STORES,2021-22Q3_PC0666
Sandwell Metropolitan Borough Council,http://www.sandwell.gov.uk/info/200202/performance_and_spending/3233/government_procurement_cards,05-Nov-2021,Director of Law & Governance,thetrainline.com,Assistant Chief Executive (Excl SIU),-184.8,PASSENGER RAILWAYS,2021-22Q3_PC0667
Sandwell Metropolitan Borough Council,http://www.sandwell.gov.uk/info/200202/performance_and_spending/3233/government_procurement_cards,05-Nov-2021,Director of Law & Governance,AMZNMktplace,Assistant Chief Executive (Excl SIU),32.85,MISCELLANEOUS AND SPECIALTY RETAIL STORES,2021-22Q3_PC0668
Sandwell Metropolitan Borough Council,http://www.sandwell.gov.uk/info/200202/performance_and_spending/3233/government_procurement_cards,08-Nov-2021,Resources Capital,AMZNMKTPLACE AMAZON.CO,#N/A,18.95,MISCELLANEOUS AND SPECIALTY RETAIL STORES,2021-22Q3_PC0669
Sandwell Metropolitan Borough Council,http://www.sandwell.gov.uk/info/200202/performance_and_spending/3233/government_procurement_cards,08-Nov-2021,Total Housing Revenue Account,AMZNMKTPLACE AMAZON.CO,Total Housing Revenue Account,11.49,MISCELLANEOUS AND SPECIALTY RETAIL STORES,2021-22Q3_PC0670
Sandwell Metropolitan Borough Council,http://www.sandwell.gov.uk/info/200202/performance_and_spending/3233/government_procurement_cards,08-Nov-2021,Total Housing Revenue Account,Amazon.co.uk K12PK3MC5,Total Housing Revenue Account,47.58,DIRECT MARKETING-OTHER DIRECT MARKETERS/NOT ELSEW.,2021-22Q3_PC0671
Sandwell Metropolitan Borough Council,http://www.sandwell.gov.uk/info/200202/performance_and_spending/3233/government_procurement_cards,08-Nov-2021,Total Housing Revenue Account,thetrainline.com,Total Housing Revenue Account,108.06,PASSENGER RAILWAYS,2021-22Q3_PC0672
Sandwell Metropolitan Borough Council,http://www.sandwell.gov.uk/info/200202/performance_and_spending/3233/government_procurement_cards,08-Nov-2021,Total Business Strategy & Change,AMZNMktplace,Assistant Chief Executive (Excl SIU),29.99,MISCELLANEOUS AND SPECIALTY RETAIL STORES,2021-22Q3_PC0673
Sandwell Metropolitan Borough Council,http://www.sandwell.gov.uk/info/200202/performance_and_spending/3233/government_procurement_cards,08-Nov-2021,Total Business Strategy & Change,AMZNMktplace,Assistant Chief Executive (Excl SIU),10.98,MISCELLANEOUS AND SPECIALTY RETAIL STORES,2021-22Q3_PC0674
Sandwell Metropolitan Borough Council,http://www.sandwell.gov.uk/info/200202/performance_and_spending/3233/government_procurement_cards,08-Nov-2021,Housing & Assets Total,Amazon Prime A773C6UY5,Neighbourhoods,7.99,DIRECT MARKETING-CONTINUITY/SUBSCRIPTION MERCHANTS,2021-22Q3_PC0675
Sandwell Metropolitan Borough Council,http://www.sandwell.gov.uk/info/200202/performance_and_spending/3233/government_procurement_cards,08-Nov-2021,Total Borough Economy,AMZNMKTPLACE AMAZON.CO,Neighbourhoods,16.99,MISCELLANEOUS AND SPECIALTY RETAIL STORES,2021-22Q3_PC0676
Sandwell Metropolitan Borough Council,http://www.sandwell.gov.uk/info/200202/performance_and_spending/3233/government_procurement_cards,08-Nov-2021,Total Borough Economy,AMZNMKTPLACE AMAZON.CO,Neighbourhoods,10.95,MISCELLANEOUS AND SPECIALTY RETAIL STORES,2021-22Q3_PC0677
Sandwell Metropolitan Borough Council,http://www.sandwell.gov.uk/info/200202/performance_and_spending/3233/government_procurement_cards,08-Nov-2021,Total Borough Economy,AMZNMktplace,Neighbourhoods,14.99,MISCELLANEOUS AND SPECIALTY RETAIL STORES,2021-22Q3_PC0678
Sandwell Metropolitan Borough Council,http://www.sandwell.gov.uk/info/200202/performance_and_spending/3233/government_procurement_cards,08-Nov-2021,Total Borough Economy,EBAY COMMERCE UK LTD,Neighbourhoods,14.64,DEPARTMENT STORES,2021-22Q3_PC0679
Sandwell Metropolitan Borough Council,http://www.sandwell.gov.uk/info/200202/performance_and_spending/3233/government_procurement_cards,08-Nov-2021,Housing & Assets Total,AMZNMktplace,Neighbourhoods,14.99,MISCELLANEOUS AND SPECIALTY RETAIL STORES,2021-22Q3_PC0680
Sandwell Metropolitan Borough Council,http://www.sandwell.gov.uk/info/200202/performance_and_spending/3233/government_procurement_cards,08-Nov-2021,Total Borough Economy,WWW.FURNITUREATWORK.CO,Neighbourhoods,277.2,"EQUIP, FURNITURE, HOME FURNSHNGS STRS (EXCPT APPL)",2021-22Q3_PC0681
Sandwell Metropolitan Borough Council,http://www.sandwell.gov.uk/info/200202/performance_and_spending/3233/government_procurement_cards,08-Nov-2021,Regeneration & Growth,Amazon.co.uk WY1674A85,Regeneration And The Economy,20.46,DIRECT MARKETING-OTHER DIRECT MARKETERS/NOT ELSEW.,2021-22Q3_PC0682
Sandwell Metropolitan Borough Council,http://www.sandwell.gov.uk/info/200202/performance_and_spending/3233/government_procurement_cards,08-Nov-2021,Regeneration & Growth,AMZNMKTPLACE AMAZON.CO,Regeneration And The Economy,19.5,MISCELLANEOUS AND SPECIALTY RETAIL STORES,2021-22Q3_PC0683
Sandwell Metropolitan Borough Council,http://www.sandwell.gov.uk/info/200202/performance_and_spending/3233/government_procurement_cards,08-Nov-2021,Regeneration & Growth,T J MORRIS LTD,Regeneration And The Economy,7.38,HARDWARE STORES,2021-22Q3_PC0684
Sandwell Metropolitan Borough Council,http://www.sandwell.gov.uk/info/200202/performance_and_spending/3233/government_procurement_cards,08-Nov-2021,Total Borough Economy,AMZNMktplace,Neighbourhoods,5.23,MISCELLANEOUS AND SPECIALTY RETAIL STORES,2021-22Q3_PC0685
Sandwell Metropolitan Borough Council,http://www.sandwell.gov.uk/info/200202/performance_and_spending/3233/government_procurement_cards,08-Nov-2021,Total Borough Economy,ALDI 9 772,Neighbourhoods,5.27,"GROCERY STORES, SUPERMARKETS",2021-22Q3_PC0686
Sandwell Metropolitan Borough Council,http://www.sandwell.gov.uk/info/200202/performance_and_spending/3233/government_procurement_cards,08-Nov-2021,Total Borough Economy,www.lsengineers.co.uk,Neighbourhoods,6.3,HARDWARE STORES,2021-22Q3_PC0687
Sandwell Metropolitan Borough Council,http://www.sandwell.gov.uk/info/200202/performance_and_spending/3233/government_procurement_cards,08-Nov-2021,Total Borough Economy,AMZNMKTPLACE AMAZON.CO,Neighbourhoods,188.9,MISCELLANEOUS AND SPECIALTY RETAIL STORES,2021-22Q3_PC0688
Sandwell Metropolitan Borough Council,http://www.sandwell.gov.uk/info/200202/performance_and_spending/3233/government_procurement_cards,08-Nov-2021,Regeneration & Growth,HOMEBASE LTD 085,Regeneration And The Economy,70.27,HOME SUPPLY WAREHOUSE STORES,2021-22Q3_PC0689
Sandwell Metropolitan Borough Council,http://www.sandwell.gov.uk/info/200202/performance_and_spending/3233/government_procurement_cards,08-Nov-2021,Regeneration & Growth,AMZNMktplace,Regeneration And The Economy,5.36,MISCELLANEOUS AND SPECIALTY RETAIL STORES,2021-22Q3_PC0690
Sandwell Metropolitan Borough Council,http://www.sandwell.gov.uk/info/200202/performance_and_spending/3233/government_procurement_cards,08-Nov-2021,Total ASCHWB,WWW.CICSLIMITED.CO.UK,Total Adult Social Care,28.62,"CLEANING AND MAINTENANCE, JANITORIAL SERVICES",2021-22Q3_PC0691
Sandwell Metropolitan Borough Council,http://www.sandwell.gov.uk/info/200202/performance_and_spending/3233/government_procurement_cards,08-Nov-2021,Total ASCHWB,CLEANING SUPPLIES 4U,Total Adult Social Care,31.07,"CLEANING AND MAINTENANCE, JANITORIAL SERVICES",2021-22Q3_PC0692
Sandwell Metropolitan Borough Council,http://www.sandwell.gov.uk/info/200202/performance_and_spending/3233/government_procurement_cards,08-Nov-2021,Total ASCHWB,SP   GS WORKWEAR,Total Adult Social Care,18.2,DEPARTMENT STORES,2021-22Q3_PC0693
Sandwell Metropolitan Borough Council,http://www.sandwell.gov.uk/info/200202/performance_and_spending/3233/government_procurement_cards,08-Nov-2021,Total ASCHWB,AMZNMktplace,Total Adult Social Care,15.59,MISCELLANEOUS AND SPECIALTY RETAIL STORES,2021-22Q3_PC0694
Sandwell Metropolitan Borough Council,http://www.sandwell.gov.uk/info/200202/performance_and_spending/3233/government_procurement_cards,08-Nov-2021,Total ASCHWB,AMZNMktplace,Total Adult Social Care,120.99,MISCELLANEOUS AND SPECIALTY RETAIL STORES,2021-22Q3_PC0695
Sandwell Metropolitan Borough Council,http://www.sandwell.gov.uk/info/200202/performance_and_spending/3233/government_procurement_cards,08-Nov-2021,Childrens Services,AMZNMktplace,Childrens Services,8.49,MISCELLANEOUS AND SPECIALTY RETAIL STORES,2021-22Q3_PC0696
Sandwell Metropolitan Borough Council,http://www.sandwell.gov.uk/info/200202/performance_and_spending/3233/government_procurement_cards,08-Nov-2021,Childrens Services,ALDI 9 772,Childrens Services,38.65,"GROCERY STORES, SUPERMARKETS",2021-22Q3_PC0697
Sandwell Metropolitan Borough Council,http://www.sandwell.gov.uk/info/200202/performance_and_spending/3233/government_procurement_cards,08-Nov-2021,Childrens Services,AMZNMktplace,Childrens Services,6.94,MISCELLANEOUS AND SPECIALTY RETAIL STORES,2021-22Q3_PC0698
Sandwell Metropolitan Borough Council,http://www.sandwell.gov.uk/info/200202/performance_and_spending/3233/government_procurement_cards,08-Nov-2021,Childrens Services,MEDISUPPLIES LTD,Childrens Services,28.08,MISCELLANEOUS AND SPECIALTY RETAIL STORES,2021-22Q3_PC0699
Sandwell Metropolitan Borough Council,http://www.sandwell.gov.uk/info/200202/performance_and_spending/3233/government_procurement_cards,08-Nov-2021,Childrens Services,WILKO RETAIL LIMITED,Childrens Services,6.8,MISCELLANEOUS GENERAL MERCHANDISE,2021-22Q3_PC0700
Sandwell Metropolitan Borough Council,http://www.sandwell.gov.uk/info/200202/performance_and_spending/3233/government_procurement_cards,08-Nov-2021,Childrens Services,AMZNMKTPLACE AMAZON.CO,Childrens Services,44.49,MISCELLANEOUS AND SPECIALTY RETAIL STORES,2021-22Q3_PC0701
Sandwell Metropolitan Borough Council,http://www.sandwell.gov.uk/info/200202/performance_and_spending/3233/government_procurement_cards,08-Nov-2021,Childrens Services,AMZNMktplace,Childrens Services,22.98,MISCELLANEOUS AND SPECIALTY RETAIL STORES,2021-22Q3_PC0702
Sandwell Metropolitan Borough Council,http://www.sandwell.gov.uk/info/200202/performance_and_spending/3233/government_procurement_cards,08-Nov-2021,Total Business Strategy & Change,Amazon.co.uk 2B49I4OE5,Assistant Chief Executive (Excl SIU),27.57,DIRECT MARKETING-OTHER DIRECT MARKETERS/NOT ELSEW.,2021-22Q3_PC0703
Sandwell Metropolitan Borough Council,http://www.sandwell.gov.uk/info/200202/performance_and_spending/3233/government_procurement_cards,09-Nov-2021,Total Housing Revenue Account,CAPITA GAS,Total Housing Revenue Account,108,"ORGANIZATIONS, MEMBERSHIP-NOT ELSEWHERE CLASSIFIED",2021-22Q3_PC0704
Sandwell Metropolitan Borough Council,http://www.sandwell.gov.uk/info/200202/performance_and_spending/3233/government_procurement_cards,09-Nov-2021,Total Borough Economy,AMZNMKTPLACE AMAZON.CO,Total Adult Social Care,26.47,MISCELLANEOUS AND SPECIALTY RETAIL STORES,2021-22Q3_PC0705
Sandwell Metropolitan Borough Council,http://www.sandwell.gov.uk/info/200202/performance_and_spending/3233/government_procurement_cards,09-Nov-2021,Total Borough Economy,thetrainline.com,Neighbourhoods,8.92,PASSENGER RAILWAYS,2021-22Q3_PC0706
Sandwell Metropolitan Borough Council,http://www.sandwell.gov.uk/info/200202/performance_and_spending/3233/government_procurement_cards,09-Nov-2021,FINANCE (Inc SIU),Amazon Prime GJ1OK8KD5,Assistant Chief Executive (Excl SIU),7.99,DIRECT MARKETING-CONTINUITY/SUBSCRIPTION MERCHANTS,2021-22Q3_PC0707
Sandwell Metropolitan Borough Council,http://www.sandwell.gov.uk/info/200202/performance_and_spending/3233/government_procurement_cards,09-Nov-2021,Total Borough Economy,PARCELFORCE WL,Neighbourhoods,40.08,"COURIER SVC-AIR & GROUND, FREIGHT FORWARDERS",2021-22Q3_PC0708
Sandwell Metropolitan Borough Council,http://www.sandwell.gov.uk/info/200202/performance_and_spending/3233/government_procurement_cards,09-Nov-2021,Total Borough Economy,AMZNMKTPLACE AMAZON.CO,Neighbourhoods,55,MISCELLANEOUS AND SPECIALTY RETAIL STORES,2021-22Q3_PC0709
Sandwell Metropolitan Borough Council,http://www.sandwell.gov.uk/info/200202/performance_and_spending/3233/government_procurement_cards,09-Nov-2021,Total Borough Economy,AMZNMKTPLACE AMAZON.CO,Neighbourhoods,9.44,MISCELLANEOUS AND SPECIALTY RETAIL STORES,2021-22Q3_PC0710
Sandwell Metropolitan Borough Council,http://www.sandwell.gov.uk/info/200202/performance_and_spending/3233/government_procurement_cards,09-Nov-2021,Director of Law & Governance,Amazon.co.uk IO6006965,Assistant Chief Executive (Excl SIU),4.99,DIRECT MARKETING-OTHER DIRECT MARKETERS/NOT ELSEW.,2021-22Q3_PC0711
Sandwell Metropolitan Borough Council,http://www.sandwell.gov.uk/info/200202/performance_and_spending/3233/government_procurement_cards,09-Nov-2021,Director of Law & Governance,Amazon.co.uk UQ9VR0GD5,Assistant Chief Executive (Excl SIU),19.5,DIRECT MARKETING-OTHER DIRECT MARKETERS/NOT ELSEW.,2021-22Q3_PC0712
Sandwell Metropolitan Borough Council,http://www.sandwell.gov.uk/info/200202/performance_and_spending/3233/government_procurement_cards,09-Nov-2021,Total ASCHWB,AMZNMktplace,Total Adult Social Care,45.98,MISCELLANEOUS AND SPECIALTY RETAIL STORES,2021-22Q3_PC0713
Sandwell Metropolitan Borough Council,http://www.sandwell.gov.uk/info/200202/performance_and_spending/3233/government_procurement_cards,09-Nov-2021,Total ASCHWB,AMZNMktplace,Total Adult Social Care,48,MISCELLANEOUS AND SPECIALTY RETAIL STORES,2021-22Q3_PC0714
Sandwell Metropolitan Borough Council,http://www.sandwell.gov.uk/info/200202/performance_and_spending/3233/government_procurement_cards,09-Nov-2021,Total ASCHWB,AMZNMKTPLACE AMAZON.CO,Total Adult Social Care,157.86,MISCELLANEOUS AND SPECIALTY RETAIL STORES,2021-22Q3_PC0715
Sandwell Metropolitan Borough Council,http://www.sandwell.gov.uk/info/200202/performance_and_spending/3233/government_procurement_cards,09-Nov-2021,Total ASCHWB,WWW.JUSTGLOVES.CO.UK,Total Adult Social Care,205.32,MISCELLANEOUS AND SPECIALTY RETAIL STORES,2021-22Q3_PC0716
Sandwell Metropolitan Borough Council,http://www.sandwell.gov.uk/info/200202/performance_and_spending/3233/government_procurement_cards,09-Nov-2021,Childrens Services,B&M 602 - KINGSMEAD,Childrens Services,9.85,MISCELLANEOUS GENERAL MERCHANDISE,2021-22Q3_PC0717
Sandwell Metropolitan Borough Council,http://www.sandwell.gov.uk/info/200202/performance_and_spending/3233/government_procurement_cards,09-Nov-2021,Childrens Services,ASDA,Childrens Services,36.67,"GROCERY STORES, SUPERMARKETS",2021-22Q3_PC0718
Sandwell Metropolitan Borough Council,http://www.sandwell.gov.uk/info/200202/performance_and_spending/3233/government_procurement_cards,09-Nov-2021,Childrens Services,ASDA,Childrens Services,7.38,"GROCERY STORES, SUPERMARKETS",2021-22Q3_PC0719
Sandwell Metropolitan Borough Council,http://www.sandwell.gov.uk/info/200202/performance_and_spending/3233/government_procurement_cards,09-Nov-2021,Childrens Services,AMZNMKTPLACE AMAZON.CO,Childrens Services,17.34,MISCELLANEOUS AND SPECIALTY RETAIL STORES,2021-22Q3_PC0720
Sandwell Metropolitan Borough Council,http://www.sandwell.gov.uk/info/200202/performance_and_spending/3233/government_procurement_cards,09-Nov-2021,Childrens Services,BEEBYS BUBBLES,Childrens Services,187.5,"CLEANING, GARMENT, AND LAUNDRY SERVICES",2021-22Q3_PC0721
Sandwell Metropolitan Borough Council,http://www.sandwell.gov.uk/info/200202/performance_and_spending/3233/government_procurement_cards,09-Nov-2021,Childrens Services,ALDI STORES LTD,Childrens Services,36.31,"GROCERY STORES, SUPERMARKETS",2021-22Q3_PC0722
Sandwell Metropolitan Borough Council,http://www.sandwell.gov.uk/info/200202/performance_and_spending/3233/government_procurement_cards,09-Nov-2021,Childrens Services,AMZNMktplace,Childrens Services,63.99,MISCELLANEOUS AND SPECIALTY RETAIL STORES,2021-22Q3_PC0723
Sandwell Metropolitan Borough Council,http://www.sandwell.gov.uk/info/200202/performance_and_spending/3233/government_procurement_cards,09-Nov-2021,Housing & Assets Total,WWW.VICARAGELODGE.COM,Neighbourhoods,180,"LODGING-HOTELS,MOTELS,RESORTS-NOT CLASSIFIED",2021-22Q3_PC0724
Sandwell Metropolitan Borough Council,http://www.sandwell.gov.uk/info/200202/performance_and_spending/3233/government_procurement_cards,09-Nov-2021,Housing & Assets Total,WWW.VICARAGELODGE.COM,Neighbourhoods,540,"LODGING-HOTELS,MOTELS,RESORTS-NOT CLASSIFIED",2021-22Q3_PC0725
Sandwell Metropolitan Borough Council,http://www.sandwell.gov.uk/info/200202/performance_and_spending/3233/government_procurement_cards,09-Nov-2021,Total Borough Economy,THE BCI FORUM R/T,Neighbourhoods,130,DIRECT MARKETING-CONTINUITY/SUBSCRIPTION MERCHANTS,2021-22Q3_PC0726
Sandwell Metropolitan Borough Council,http://www.sandwell.gov.uk/info/200202/performance_and_spending/3233/government_procurement_cards,10-Nov-2021,Total Housing Revenue Account,SP   THE SIGN SHED,Total Housing Revenue Account,612,COMPUTER SOFTWARE STORES,2021-22Q3_PC0727
Sandwell Metropolitan Borough Council,http://www.sandwell.gov.uk/info/200202/performance_and_spending/3233/government_procurement_cards,10-Nov-2021,Total Housing Revenue Account,AMZNMktplace,Total Housing Revenue Account,24.76,MISCELLANEOUS AND SPECIALTY RETAIL STORES,2021-22Q3_PC0728
Sandwell Metropolitan Borough Council,http://www.sandwell.gov.uk/info/200202/performance_and_spending/3233/government_procurement_cards,10-Nov-2021,Total Borough Economy,AMZNMktplace,Neighbourhoods,20,MISCELLANEOUS AND SPECIALTY RETAIL STORES,2021-22Q3_PC0729
Sandwell Metropolitan Borough Council,http://www.sandwell.gov.uk/info/200202/performance_and_spending/3233/government_procurement_cards,10-Nov-2021,Total Borough Economy,AMZNMktplace,Neighbourhoods,12.99,MISCELLANEOUS AND SPECIALTY RETAIL STORES,2021-22Q3_PC0730
Sandwell Metropolitan Borough Council,http://www.sandwell.gov.uk/info/200202/performance_and_spending/3233/government_procurement_cards,10-Nov-2021,Total Borough Economy,thetrainline.com,Neighbourhoods,4.59,PASSENGER RAILWAYS,2021-22Q3_PC0731
Sandwell Metropolitan Borough Council,http://www.sandwell.gov.uk/info/200202/performance_and_spending/3233/government_procurement_cards,10-Nov-2021,Regeneration & Growth,AMZNMktplace,Regeneration And The Economy,19.87,MISCELLANEOUS AND SPECIALTY RETAIL STORES,2021-22Q3_PC0732
Sandwell Metropolitan Borough Council,http://www.sandwell.gov.uk/info/200202/performance_and_spending/3233/government_procurement_cards,10-Nov-2021,FINANCE (Inc SIU),AMZNMktplace,Assistant Chief Executive (Excl SIU),22.99,MISCELLANEOUS AND SPECIALTY RETAIL STORES,2021-22Q3_PC0733
Sandwell Metropolitan Borough Council,http://www.sandwell.gov.uk/info/200202/performance_and_spending/3233/government_procurement_cards,10-Nov-2021,Total Borough Economy,Amazon.co.uk AG9019JH5,Neighbourhoods,14.99,DIRECT MARKETING-OTHER DIRECT MARKETERS/NOT ELSEW.,2021-22Q3_PC0734
Sandwell Metropolitan Borough Council,http://www.sandwell.gov.uk/info/200202/performance_and_spending/3233/government_procurement_cards,10-Nov-2021,Total Borough Economy,AMZNMktplace,Neighbourhoods,21.9,MISCELLANEOUS AND SPECIALTY RETAIL STORES,2021-22Q3_PC0735
Sandwell Metropolitan Borough Council,http://www.sandwell.gov.uk/info/200202/performance_and_spending/3233/government_procurement_cards,10-Nov-2021,Total Borough Economy,AMZNMktplace,Neighbourhoods,105.16,MISCELLANEOUS AND SPECIALTY RETAIL STORES,2021-22Q3_PC0736
Sandwell Metropolitan Borough Council,http://www.sandwell.gov.uk/info/200202/performance_and_spending/3233/government_procurement_cards,10-Nov-2021,Total Borough Economy,WWW.TRUETRADERS.CO.UK,Neighbourhoods,54.98,HARDWARE STORES,2021-22Q3_PC0737
